Workbook

Sheet Fordeling af omkostninger (hidden)
A2: Afgrøde | B2: Aktivitet | C2: Året før | D2: Start jan. | E2: Slut jan. | F2: Start feb. | G2: Slut feb. | H2: Start mar. | I2: Slut mar. | J2: Start apr. | K2: Slut apr. | L2: Start maj | M2: Slut maj | N2: Start jun | O2: Slut jun | P2: Start jul. | Q2: Slut jul. | R2: Start Aug. | S2: Slut Aug. | T2: Start sep. | U2: Slut sep. | V2: Start okt. | W2: Slut okt. | X2: Start nov. | Y2: Slut nov. | Z2: Start dec. | AA2: Slut dec.
A3: Frøgræs (Rajgræs) | B3: Pløjning
B4: Jorbearb. Før såning
B5: Afgrødeetabl. (såning, lægning o.l.) | C5: ='Fordeling af arbejdsopgaver'!D4*(Kalkuler!$Q$15+Kalkuler!$Q$29)*2 -> -1240 | D5: ='Fordeling af arbejdsopgaver'!E4*(Kalkuler!$Q$15+Kalkuler!$Q$29)*2 -> 0 | E5: ='Fordeling af arbejdsopgaver'!F4*(Kalkuler!$Q$15+Kalkuler!$Q$29)*2 -> 0 | F5: ='Fordeling af arbejdsopgaver'!G4*(Kalkuler!$Q$15+Kalkuler!$Q$29)*2 -> 0 | G5: ='Fordeling af arbejdsopgaver'!H4*(Kalkuler!$Q$15+Kalkuler!$Q$29)*2 -> 0 | H5: ='Fordeling af arbejdsopgaver'!I4*(Kalkuler!$Q$15+Kalkuler!$Q$29)*2 -> 0 | I5: ='Fordeling af arbejdsopgaver'!J4*(Kalkuler!$Q$15+Kalkuler!$Q$29)*2 -> 0 | J5: ='Fordeling af arbejdsopgaver'!K4*(Kalkuler!$Q$15+Kalkuler!$Q$29)*2 -> 0 | K5: ='Fordeling af arbejdsopgaver'!L4*(Kalkuler!$Q$15+Kalkuler!$Q$29)*2 -> 0 | L5: ='Fordeling af arbejdsopgaver'!M4*(Kalkuler!$Q$15+Kalkuler!$Q$29)*2 -> 0 | M5: ='Fordeling af arbejdsopgaver'!N4*(Kalkuler!$Q$15+Kalkuler!$Q$29)*2 -> 0 | N5: ='Fordeling af arbejdsopgaver'!O4*(Kalkuler!$Q$15+Kalkuler!$Q$29)*2 -> 0 | O5: ='Fordeling af arbejdsopgaver'!P4*(Kalkuler!$Q$15+Kalkuler!$Q$29)*2 -> 0 | P5: ='Fordeling af arbejdsopgaver'!Q4*(Kalkuler!$Q$15+Kalkuler!$Q$29)*2 -> 0 | Q5: ='Fordeling af arbejdsopgaver'!R4*(Kalkuler!$Q$15+Kalkuler!$Q$29)*2 -> 0 | S5: ='Fordeling af arbejdsopgaver'!T4*(Kalkuler!$Q$15+Kalkuler!$Q$29)*2 -> 0 | T5: ='Fordeling af arbejdsopgaver'!U4*(Kalkuler!$Q$15+Kalkuler!$Q$29)*2 -> 0 | U5: ='Fordeling af arbejdsopgaver'!V4*(Kalkuler!$Q$15+Kalkuler!$Q$29)*2 -> 0 | V5: ='Fordeling af arbejdsopgaver'!W4*(Kalkuler!$Q$15+Kalkuler!$Q$29)*2 -> 0 | W5: ='Fordeling af arbejdsopgaver'!X4*(Kalkuler!$Q$15+Kalkuler!$Q$29)*2 -> 0 | X5: ='Fordeling af arbejdsopgaver'!Y4*(Kalkuler!$Q$15+Kalkuler!$Q$29)*2 -> 0 | Y5: ='Fordeling af arbejdsopgaver'!Z4*(Kalkuler!$Q$15+Kalkuler!$Q$29)*2 -> 0 | Z5: ='Fordeling af arbejdsopgaver'!AA4*(Kalkuler!$Q$15+Kalkuler!$Q$29)*2 -> 0 | AA5: ='Fordeling af arbejdsopgaver'!AB4*(Kalkuler!$Q$15+Kalkuler!$Q$29)*2 -> 0
B6: Gødskning (handelsgødning) | D6: =('Fordeling af arbejdsopgaver'!E5*Kalkuler!$Q$28)+('Fordeling af arbejdsopgaver'!E5*(Kalkuler!$Q$15+Kalkuler!$Q$16+Kalkuler!$Q$17+Kalkuler!$Q$18)) -> 0 | E6: =('Fordeling af arbejdsopgaver'!F5*Kalkuler!$Q$28)+('Fordeling af arbejdsopgaver'!F5*(Kalkuler!$Q$15+Kalkuler!$Q$16+Kalkuler!$Q$17+Kalkuler!$Q$18)) -> 0 | F6: =('Fordeling af arbejdsopgaver'!G5*Kalkuler!$Q$28)+('Fordeling af arbejdsopgaver'!G5*(Kalkuler!$Q$15+Kalkuler!$Q$16+Kalkuler!$Q$17+Kalkuler!$Q$18)) -> 0 | G6: =('Fordeling af arbejdsopgaver'!H5*Kalkuler!$Q$28)+('Fordeling af arbejdsopgaver'!H5*(Kalkuler!$Q$15+Kalkuler!$Q$16+Kalkuler!$Q$17+Kalkuler!$Q$18)) -> 0 | H6: =('Fordeling af arbejdsopgaver'!I5*Kalkuler!$Q$28)+('Fordeling af arbejdsopgaver'!I5*(Kalkuler!$Q$15+Kalkuler!$Q$16+Kalkuler!$Q$17+Kalkuler!$Q$18)) -> 0 | I6: =('Fordeling af arbejdsopgaver'!J5*Kalkuler!$Q$28)+('Fordeling af arbejdsopgaver'!J5*(Kalkuler!$Q$15+Kalkuler!$Q$16+Kalkuler!$Q$17+Kalkuler!$Q$18)) -> -3310.5 | J6: =('Fordeling af arbejdsopgaver'!K5*Kalkuler!$Q$28)+('Fordeling af arbejdsopgaver'!K5*(Kalkuler!$Q$15+Kalkuler!$Q$16+Kalkuler!$Q$17+Kalkuler!$Q$18)) -> 0 | K6: =('Fordeling af arbejdsopgaver'!L5*Kalkuler!$Q$28)+('Fordeling af arbejdsopgaver'!L5*(Kalkuler!$Q$15+Kalkuler!$Q$16+Kalkuler!$Q$17+Kalkuler!$Q$18)) -> 0 | L6: =('Fordeling af arbejdsopgaver'!M5*Kalkuler!$Q$28)+('Fordeling af arbejdsopgaver'!M5*(Kalkuler!$Q$15+Kalkuler!$Q$16+Kalkuler!$Q$17+Kalkuler!$Q$18)) -> 0 | M6: =('Fordeling af arbejdsopgaver'!N5*Kalkuler!$Q$28)+('Fordeling af arbejdsopgaver'!N5*(Kalkuler!$Q$15+Kalkuler!$Q$16+Kalkuler!$Q$17+Kalkuler!$Q$18)) -> 0 | N6: =('Fordeling af arbejdsopgaver'!O5*Kalkuler!$Q$28)+('Fordeling af arbejdsopgaver'!O5*(Kalkuler!$Q$15+Kalkuler!$Q$16+Kalkuler!$Q$17+Kalkuler!$Q$18)) -> 0 | O6: =('Fordeling af arbejdsopgaver'!P5*Kalkuler!$Q$28)+('Fordeling af arbejdsopgaver'!P5*(Kalkuler!$Q$15+Kalkuler!$Q$16+Kalkuler!$Q$17+Kalkuler!$Q$18)) -> 0 | P6: =('Fordeling af arbejdsopgaver'!Q5*Kalkuler!$Q$28)+('Fordeling af arbejdsopgaver'!Q5*(Kalkuler!$Q$15+Kalkuler!$Q$16+Kalkuler!$Q$17+Kalkuler!$Q$18)) -> 0 | Q6: =('Fordeling af arbejdsopgaver'!R5*Kalkuler!$Q$28)+('Fordeling af arbejdsopgaver'!R5*(Kalkuler!$Q$15+Kalkuler!$Q$16+Kalkuler!$Q$17+Kalkuler!$Q$18)) -> 0 | R6: =('Fordeling af arbejdsopgaver'!S5*Kalkuler!$Q$28)+('Fordeling af arbejdsopgaver'!S5*(Kalkuler!$Q$15+Kalkuler!$Q$16+Kalkuler!$Q$17+Kalkuler!$Q$18)) -> 0 | S6: =('Fordeling af arbejdsopgaver'!T5*Kalkuler!$Q$28)+('Fordeling af arbejdsopgaver'!T5*(Kalkuler!$Q$15+Kalkuler!$Q$16+Kalkuler!$Q$17+Kalkuler!$Q$18)) -> 0 | T6: =('Fordeling af arbejdsopgaver'!U5*Kalkuler!$Q$28)+('Fordeling af arbejdsopgaver'!U5*(Kalkuler!$Q$15+Kalkuler!$Q$16+Kalkuler!$Q$17+Kalkuler!$Q$18)) -> 0 | U6: =('Fordeling af arbejdsopgaver'!V5*Kalkuler!$Q$28)+('Fordeling af arbejdsopgaver'!V5*(Kalkuler!$Q$15+Kalkuler!$Q$16+Kalkuler!$Q$17+Kalkuler!$Q$18)) -> -3310.5 | V6: =('Fordeling af arbejdsopgaver'!W5*Kalkuler!$Q$28)+('Fordeling af arbejdsopgaver'!W5*(Kalkuler!$Q$15+Kalkuler!$Q$16+Kalkuler!$Q$17+Kalkuler!$Q$18)) -> 0 | W6: =('Fordeling af arbejdsopgaver'!X5*Kalkuler!$Q$28)+('Fordeling af arbejdsopgaver'!X5*(Kalkuler!$Q$15+Kalkuler!$Q$16+Kalkuler!$Q$17+Kalkuler!$Q$18)) -> 0 | X6: =('Fordeling af arbejdsopgaver'!Y5*Kalkuler!$Q$28)+('Fordeling af arbejdsopgaver'!Y5*(Kalkuler!$Q$15+Kalkuler!$Q$16+Kalkuler!$Q$17+Kalkuler!$Q$18)) -> 0 | Y6: =('Fordeling af arbejdsopgaver'!Z5*Kalkuler!$Q$28)+('Fordeling af arbejdsopgaver'!Z5*(Kalkuler!$Q$15+Kalkuler!$Q$16+Kalkuler!$Q$17+Kalkuler!$Q$18)) -> 0 | Z6: =('Fordeling af arbejdsopgaver'!AA5*Kalkuler!$Q$28)+('Fordeling af arbejdsopgaver'!AA5*(Kalkuler!$Q$15+Kalkuler!$Q$16+Kalkuler!$Q$17+Kalkuler!$Q$18)) -> 0 | AA6: =('Fordeling af arbejdsopgaver'!AB5*Kalkuler!$Q$28)+('Fordeling af arbejdsopgaver'!AB5*(Kalkuler!$Q$15+Kalkuler!$Q$16+Kalkuler!$Q$17+Kalkuler!$Q$18)) -> 0
B7: Planteværn | D7: =('Fordeling af arbejdsopgaver'!E6*Kalkuler!$Q$30)+('Fordeling af arbejdsopgaver'!E6*(Kalkuler!$Q$19+Kalkuler!$Q$20+Kalkuler!$Q$21)) -> 0 | E7: =('Fordeling af arbejdsopgaver'!F6*Kalkuler!$Q$30)+('Fordeling af arbejdsopgaver'!F6*(Kalkuler!$Q$19+Kalkuler!$Q$20+Kalkuler!$Q$21)) -> 0 | F7: =('Fordeling af arbejdsopgaver'!G6*Kalkuler!$Q$30)+('Fordeling af arbejdsopgaver'!G6*(Kalkuler!$Q$19+Kalkuler!$Q$20+Kalkuler!$Q$21)) -> 0 | G7: =('Fordeling af arbejdsopgaver'!H6*Kalkuler!$Q$30)+('Fordeling af arbejdsopgaver'!H6*(Kalkuler!$Q$19+Kalkuler!$Q$20+Kalkuler!$Q$21)) -> 0 | H7: =('Fordeling af arbejdsopgaver'!I6*Kalkuler!$Q$30)+('Fordeling af arbejdsopgaver'!I6*(Kalkuler!$Q$19+Kalkuler!$Q$20+Kalkuler!$Q$21)) -> 0 | I7: =('Fordeling af arbejdsopgaver'!J6*Kalkuler!$Q$30)+('Fordeling af arbejdsopgaver'!J6*(Kalkuler!$Q$19+Kalkuler!$Q$20+Kalkuler!$Q$21)) -> 0 | J7: =('Fordeling af arbejdsopgaver'!K6*Kalkuler!$Q$30)+('Fordeling af arbejdsopgaver'!K6*(Kalkuler!$Q$19+Kalkuler!$Q$20+Kalkuler!$Q$21)) -> -223 | K7: =('Fordeling af arbejdsopgaver'!L6*Kalkuler!$Q$30)+('Fordeling af arbejdsopgaver'!L6*(Kalkuler!$Q$19+Kalkuler!$Q$20+Kalkuler!$Q$21)) -> -223 | L7: =('Fordeling af arbejdsopgaver'!M6*Kalkuler!$Q$30)+('Fordeling af arbejdsopgaver'!M6*(Kalkuler!$Q$19+Kalkuler!$Q$20+Kalkuler!$Q$21)) -> -223 | M7: =('Fordeling af arbejdsopgaver'!N6*Kalkuler!$Q$30)+('Fordeling af arbejdsopgaver'!N6*(Kalkuler!$Q$19+Kalkuler!$Q$20+Kalkuler!$Q$21)) -> -223 | N7: =('Fordeling af arbejdsopgaver'!O6*Kalkuler!$Q$30)+('Fordeling af arbejdsopgaver'!O6*(Kalkuler!$Q$19+Kalkuler!$Q$20+Kalkuler!$Q$21)) -> 0 | O7: =('Fordeling af arbejdsopgaver'!P6*Kalkuler!$Q$30)+('Fordeling af arbejdsopgaver'!P6*(Kalkuler!$Q$19+Kalkuler!$Q$20+Kalkuler!$Q$21)) -> 0 | P7: =('Fordeling af arbejdsopgaver'!Q6*Kalkuler!$Q$30)+('Fordeling af arbejdsopgaver'!Q6*(Kalkuler!$Q$19+Kalkuler!$Q$20+Kalkuler!$Q$21)) -> 0 | Q7: =('Fordeling af arbejdsopgaver'!R6*Kalkuler!$Q$30)+('Fordeling af arbejdsopgaver'!R6*(Kalkuler!$Q$19+Kalkuler!$Q$20+Kalkuler!$Q$21)) -> 0 | R7: =('Fordeling af arbejdsopgaver'!S6*Kalkuler!$Q$30)+('Fordeling af arbejdsopgaver'!S6*(Kalkuler!$Q$19+Kalkuler!$Q$20+Kalkuler!$Q$21)) -> 0 | S7: =('Fordeling af arbejdsopgaver'!T6*Kalkuler!$Q$30)+('Fordeling af arbejdsopgaver'!T6*(Kalkuler!$Q$19+Kalkuler!$Q$20+Kalkuler!$Q$21)) -> -223 | T7: =('Fordeling af arbejdsopgaver'!U6*Kalkuler!$Q$30)+('Fordeling af arbejdsopgaver'!U6*(Kalkuler!$Q$19+Kalkuler!$Q$20+Kalkuler!$Q$21)) -> -223 | U7: =('Fordeling af arbejdsopgaver'!V6*Kalkuler!$Q$30)+('Fordeling af arbejdsopgaver'!V6*(Kalkuler!$Q$19+Kalkuler!$Q$20+Kalkuler!$Q$21)) -> 0 | V7: =('Fordeling af arbejdsopgaver'!W6*Kalkuler!$Q$30)+('Fordeling af arbejdsopgaver'!W6*(Kalkuler!$Q$19+Kalkuler!$Q$20+Kalkuler!$Q$21)) -> 0 | W7: =('Fordeling af arbejdsopgaver'!X6*Kalkuler!$Q$30)+('Fordeling af arbejdsopgaver'!X6*(Kalkuler!$Q$19+Kalkuler!$Q$20+Kalkuler!$Q$21)) -> 0 | X7: =('Fordeling af arbejdsopgaver'!Y6*Kalkuler!$Q$30)+('Fordeling af arbejdsopgaver'!Y6*(Kalkuler!$Q$19+Kalkuler!$Q$20+Kalkuler!$Q$21)) -> 0 | Y7: =('Fordeling af arbejdsopgaver'!Z6*Kalkuler!$Q$30)+('Fordeling af arbejdsopgaver'!Z6*(Kalkuler!$Q$19+Kalkuler!$Q$20+Kalkuler!$Q$21)) -> 0 | Z7: =('Fordeling af arbejdsopgaver'!AA6*Kalkuler!$Q$30)+('Fordeling af arbejdsopgaver'!AA6*(Kalkuler!$Q$19+Kalkuler!$Q$20+Kalkuler!$Q$21)) -> 0 | AA7: =('Fordeling af arbejdsopgaver'!AB6*Kalkuler!$Q$30)+('Fordeling af arbejdsopgaver'!AB6*(Kalkuler!$Q$19+Kalkuler!$Q$20+Kalkuler!$Q$21)) -> 0
B8: I alt | C8: =SUM(C3:C7) -> -1240 | D8: 0 | E8: 0 | F8: 0 | G8: 0 | H8: 0 | I8: -3310.5 | J8: -223 | K8: -223 | L8: -223 | M8: -223 | N8: 0 | O8: 0 | P8: 0 | Q8: 0 | R8: 0 | S8: -223 | T8: -223 | U8: -3310.5 | V8: 0 | W8: 0 | X8: 0 | Y8: 0 | Z8: 0 | AA8: 0
B9: År til dato | D9: =SUM($D8:D8) -> 0 | E9: =SUM($D8:E8) -> 0 | F9: =SUM($D8:F8) -> 0 | G9: =SUM($D8:G8) -> 0 | H9: =SUM($D8:H8) -> 0 | I9: =SUM($D8:I8) -> -3310.5 | J9: =SUM($D8:J8) -> -3533.5 | K9: =SUM($D8:K8) -> -3756.5 | L9: =SUM($D8:L8) -> -3979.5 | M9: =SUM($D8:M8) -> -4202.5 | N9: =SUM($D8:N8) -> -4202.5 | O9: =SUM($D8:O8) -> -4202.5 | P9: =SUM($D8:P8) -> -4202.5 | Q9: =SUM($D8:Q8) -> -4202.5 | R9: =SUM($D8:R8) -> -4202.5 | S9: =SUM($D8:S8) -> -4425.5 | T9: =SUM($D8:T8) -> -4648.5 | U9: =SUM($D8:U8) -> -7959 | V9: =SUM($D8:V8) -> -7959 | W9: =SUM($D8:W8) -> -7959 | X9: =SUM($D8:X8) -> -7959 | Y9: =SUM($D8:Y8) -> -7959 | Z9: =SUM($D8:Z8) -> -7959 | AA9: =SUM($D8:AA8) -> -7959
A10: Stivelsekartofler | B10: Pløjning | D10: =SUM($D9:D9) -> 0 | E10: ='Fordeling af arbejdsopgaver'!F9*Kalkuler!$AC$31 -> 0 | F10: ='Fordeling af arbejdsopgaver'!G9*Kalkuler!$AC$31 -> 0 | G10: ='Fordeling af arbejdsopgaver'!H9*Kalkuler!$AC$31 -> -362.5 | H10: ='Fordeling af arbejdsopgaver'!I9*Kalkuler!$AC$31 -> -362.5 | I10: ='Fordeling af arbejdsopgaver'!J9*Kalkuler!$AC$31 -> 0 | J10: ='Fordeling af arbejdsopgaver'!K9*Kalkuler!$AC$31 -> 0 | K10: ='Fordeling af arbejdsopgaver'!L9*Kalkuler!$AC$31 -> 0 | L10: ='Fordeling af arbejdsopgaver'!M9*Kalkuler!$AC$31 -> 0 | M10: ='Fordeling af arbejdsopgaver'!N9*Kalkuler!$AC$31 -> 0 | N10: ='Fordeling af arbejdsopgaver'!O9*Kalkuler!$AC$31 -> 0 | O10: ='Fordeling af arbejdsopgaver'!P9*Kalkuler!$AC$31 -> 0 | P10: ='Fordeling af arbejdsopgaver'!Q9*Kalkuler!$AC$31 -> 0 | Q10: ='Fordeling af arbejdsopgaver'!R9*Kalkuler!$AC$31 -> 0 | R10: ='Fordeling af arbejdsopgaver'!S9*Kalkuler!$AC$31 -> 0 | S10: ='Fordeling af arbejdsopgaver'!T9*Kalkuler!$AC$31 -> 0 | T10: ='Fordeling af arbejdsopgaver'!U9*Kalkuler!$AC$31 -> 0 | U10: ='Fordeling af arbejdsopgaver'!V9*Kalkuler!$AC$31 -> 0 | V10: ='Fordeling af arbejdsopgaver'!W9*Kalkuler!$AC$31 -> 0 | W10: ='Fordeling af arbejdsopgaver'!X9*Kalkuler!$AC$31 -> 0 | X10: ='Fordeling af arbejdsopgaver'!Y9*Kalkuler!$AC$31 -> 0 | Y10: ='Fordeling af arbejdsopgaver'!Z9*Kalkuler!$AC$31 -> 0 | Z10: ='Fordeling af arbejdsopgaver'!AA9*Kalkuler!$AC$31 -> 0 | AA10: ='Fordeling af arbejdsopgaver'!AB9*Kalkuler!$AC$31 -> 0
B11: Jorbearb. Før såning | D11: =SUM($D10:D10) -> 0 | E11: ='Fordeling af arbejdsopgaver'!F10*(Kalkuler!$AC$32+Kalkuler!$AC$34) -> 0 | F11: ='Fordeling af arbejdsopgaver'!G10*(Kalkuler!$AC$32+Kalkuler!$AC$34) -> 0 | G11: ='Fordeling af arbejdsopgaver'!H10*(Kalkuler!$AC$32+Kalkuler!$AC$34) -> 0 | H11: ='Fordeling af arbejdsopgaver'!I10*(Kalkuler!$AC$32+Kalkuler!$AC$34) -> 0 | I11: ='Fordeling af arbejdsopgaver'!J10*(Kalkuler!$AC$32+Kalkuler!$AC$34) -> 0 | J11: ='Fordeling af arbejdsopgaver'!K10*(Kalkuler!$AC$32+Kalkuler!$AC$34) -> -1387.5 | K11: ='Fordeling af arbejdsopgaver'!L10*(Kalkuler!$AC$32+Kalkuler!$AC$34) -> -1387.5 | L11: ='Fordeling af arbejdsopgaver'!M10*(Kalkuler!$AC$32+Kalkuler!$AC$34) -> 0 | M11: ='Fordeling af arbejdsopgaver'!N10*(Kalkuler!$AC$32+Kalkuler!$AC$34) -> 0 | N11: ='Fordeling af arbejdsopgaver'!O10*(Kalkuler!$AC$32+Kalkuler!$AC$34) -> 0 | O11: ='Fordeling af arbejdsopgaver'!P10*(Kalkuler!$AC$32+Kalkuler!$AC$34) -> 0 | P11: ='Fordeling af arbejdsopgaver'!Q10*(Kalkuler!$AC$32+Kalkuler!$AC$34) -> 0 | Q11: ='Fordeling af arbejdsopgaver'!R10*(Kalkuler!$AC$32+Kalkuler!$AC$34) -> 0 | R11: ='Fordeling af arbejdsopgaver'!S10*(Kalkuler!$AC$32+Kalkuler!$AC$34) -> 0 | S11: ='Fordeling af arbejdsopgaver'!T10*(Kalkuler!$AC$32+Kalkuler!$AC$34) -> 0 | T11: ='Fordeling af arbejdsopgaver'!U10*(Kalkuler!$AC$32+Kalkuler!$AC$34) -> 0 | U11: ='Fordeling af arbejdsopgaver'!V10*(Kalkuler!$AC$32+Kalkuler!$AC$34) -> 0 | V11: ='Fordeling af arbejdsopgaver'!W10*(Kalkuler!$AC$32+Kalkuler!$AC$34) -> 0 | W11: ='Fordeling af arbejdsopgaver'!X10*(Kalkuler!$AC$32+Kalkuler!$AC$34) -> 0 | X11: ='Fordeling af arbejdsopgaver'!Y10*(Kalkuler!$AC$32+Kalkuler!$AC$34) -> 0 | Y11: ='Fordeling af arbejdsopgaver'!Z10*(Kalkuler!$AC$32+Kalkuler!$AC$34) -> 0 | Z11: ='Fordeling af arbejdsopgaver'!AA10*(Kalkuler!$AC$32+Kalkuler!$AC$34) -> 0 | AA11: ='Fordeling af arbejdsopgaver'!AB10*(Kalkuler!$AC$32+Kalkuler!$AC$34) -> 0
B12: Afgrødeetabl. (såning, lægning o.l.) | D12: =SUM($D11:D11) -> 0 | E12: ='Fordeling af arbejdsopgaver'!F11*(Kalkuler!$AC$15+Kalkuler!$AC$16+Kalkuler!$AC$34+Kalkuler!$AC$35) -> 0 | F12: ='Fordeling af arbejdsopgaver'!G11*(Kalkuler!$AC$15+Kalkuler!$AC$16+Kalkuler!$AC$34+Kalkuler!$AC$35) -> 0 | G12: ='Fordeling af arbejdsopgaver'!H11*(Kalkuler!$AC$15+Kalkuler!$AC$16+Kalkuler!$AC$34+Kalkuler!$AC$35) -> 0 | H12: ='Fordeling af arbejdsopgaver'!I11*(Kalkuler!$AC$15+Kalkuler!$AC$16+Kalkuler!$AC$34+Kalkuler!$AC$35) -> 0 | I12: ='Fordeling af arbejdsopgaver'!J11*(Kalkuler!$AC$15+Kalkuler!$AC$16+Kalkuler!$AC$34+Kalkuler!$AC$35) -> 0 | J12: ='Fordeling af arbejdsopgaver'!K11*(Kalkuler!$AC$15+Kalkuler!$AC$16+Kalkuler!$AC$34+Kalkuler!$AC$35) -> -3656 | K12: ='Fordeling af arbejdsopgaver'!L11*(Kalkuler!$AC$15+Kalkuler!$AC$16+Kalkuler!$AC$34+Kalkuler!$AC$35) -> -3656 | L12: ='Fordeling af arbejdsopgaver'!M11*(Kalkuler!$AC$15+Kalkuler!$AC$16+Kalkuler!$AC$34+Kalkuler!$AC$35) -> 0 | M12: ='Fordeling af arbejdsopgaver'!N11*(Kalkuler!$AC$15+Kalkuler!$AC$16+Kalkuler!$AC$34+Kalkuler!$AC$35) -> 0 | N12: ='Fordeling af arbejdsopgaver'!O11*(Kalkuler!$AC$15+Kalkuler!$AC$16+Kalkuler!$AC$34+Kalkuler!$AC$35) -> 0 | O12: ='Fordeling af arbejdsopgaver'!P11*(Kalkuler!$AC$15+Kalkuler!$AC$16+Kalkuler!$AC$34+Kalkuler!$AC$35) -> 0 | P12: ='Fordeling af arbejdsopgaver'!Q11*(Kalkuler!$AC$15+Kalkuler!$AC$16+Kalkuler!$AC$34+Kalkuler!$AC$35) -> 0 | Q12: ='Fordeling af arbejdsopgaver'!R11*(Kalkuler!$AC$15+Kalkuler!$AC$16+Kalkuler!$AC$34+Kalkuler!$AC$35) -> 0 | R12: ='Fordeling af arbejdsopgaver'!S11*(Kalkuler!$AC$15+Kalkuler!$AC$16+Kalkuler!$AC$34+Kalkuler!$AC$35) -> 0 | S12: ='Fordeling af arbejdsopgaver'!T11*(Kalkuler!$AC$15+Kalkuler!$AC$16+Kalkuler!$AC$34+Kalkuler!$AC$35) -> 0 | T12: ='Fordeling af arbejdsopgaver'!U11*(Kalkuler!$AC$15+Kalkuler!$AC$16+Kalkuler!$AC$34+Kalkuler!$AC$35) -> 0 | U12: ='Fordeling af arbejdsopgaver'!V11*(Kalkuler!$AC$15+Kalkuler!$AC$16+Kalkuler!$AC$34+Kalkuler!$AC$35) -> 0 | V12: ='Fordeling af arbejdsopgaver'!W11*(Kalkuler!$AC$15+Kalkuler!$AC$16+Kalkuler!$AC$34+Kalkuler!$AC$35) -> 0 | W12: ='Fordeling af arbejdsopgaver'!X11*(Kalkuler!$AC$15+Kalkuler!$AC$16+Kalkuler!$AC$34+Kalkuler!$AC$35) -> 0 | X12: ='Fordeling af arbejdsopgaver'!Y11*(Kalkuler!$AC$15+Kalkuler!$AC$16+Kalkuler!$AC$34+Kalkuler!$AC$35) -> 0 | Y12: ='Fordeling af arbejdsopgaver'!Z11*(Kalkuler!$AC$15+Kalkuler!$AC$16+Kalkuler!$AC$34+Kalkuler!$AC$35) -> 0 | Z12: ='Fordeling af arbejdsopgaver'!AA11*(Kalkuler!$AC$15+Kalkuler!$AC$16+Kalkuler!$AC$34+Kalkuler!$AC$35) -> 0 | AA12: ='Fordeling af arbejdsopgaver'!AB11*(Kalkuler!$AC$15+Kalkuler!$AC$16+Kalkuler!$AC$34+Kalkuler!$AC$35) -> 0
B13: Gødskning (handelsgødning) | D13: =SUM($D12:D12) -> 0 | E13: ='Fordeling af arbejdsopgaver'!F12*(Kalkuler!$AC$17+Kalkuler!$AC$18+Kalkuler!$AC$19+Kalkuler!$AC$33) -> 0 | F13: ='Fordeling af arbejdsopgaver'!G12*(Kalkuler!$AC$17+Kalkuler!$AC$18+Kalkuler!$AC$19+Kalkuler!$AC$33) -> 0 | G13: ='Fordeling af arbejdsopgaver'!H12*(Kalkuler!$AC$17+Kalkuler!$AC$18+Kalkuler!$AC$19+Kalkuler!$AC$33) -> 0 | H13: ='Fordeling af arbejdsopgaver'!I12*(Kalkuler!$AC$17+Kalkuler!$AC$18+Kalkuler!$AC$19+Kalkuler!$AC$33) -> 0 | I13: ='Fordeling af arbejdsopgaver'!J12*(Kalkuler!$AC$17+Kalkuler!$AC$18+Kalkuler!$AC$19+Kalkuler!$AC$33) -> 0 | J13: ='Fordeling af arbejdsopgaver'!K12*(Kalkuler!$AC$17+Kalkuler!$AC$18+Kalkuler!$AC$19+Kalkuler!$AC$33) -> -4260 | K13: ='Fordeling af arbejdsopgaver'!L12*(Kalkuler!$AC$17+Kalkuler!$AC$18+Kalkuler!$AC$19+Kalkuler!$AC$33) -> -4260 | L13: ='Fordeling af arbejdsopgaver'!M12*(Kalkuler!$AC$17+Kalkuler!$AC$18+Kalkuler!$AC$19+Kalkuler!$AC$33) -> 0 | M13: ='Fordeling af arbejdsopgaver'!N12*(Kalkuler!$AC$17+Kalkuler!$AC$18+Kalkuler!$AC$19+Kalkuler!$AC$33) -> 0 | N13: ='Fordeling af arbejdsopgaver'!O12*(Kalkuler!$AC$17+Kalkuler!$AC$18+Kalkuler!$AC$19+Kalkuler!$AC$33) -> 0 | O13: ='Fordeling af arbejdsopgaver'!P12*(Kalkuler!$AC$17+Kalkuler!$AC$18+Kalkuler!$AC$19+Kalkuler!$AC$33) -> 0 | P13: ='Fordeling af arbejdsopgaver'!Q12*(Kalkuler!$AC$17+Kalkuler!$AC$18+Kalkuler!$AC$19+Kalkuler!$AC$33) -> 0 | Q13: ='Fordeling af arbejdsopgaver'!R12*(Kalkuler!$AC$17+Kalkuler!$AC$18+Kalkuler!$AC$19+Kalkuler!$AC$33) -> 0 | R13: ='Fordeling af arbejdsopgaver'!S12*(Kalkuler!$AC$17+Kalkuler!$AC$18+Kalkuler!$AC$19+Kalkuler!$AC$33) -> 0 | S13: ='Fordeling af arbejdsopgaver'!T12*(Kalkuler!$AC$17+Kalkuler!$AC$18+Kalkuler!$AC$19+Kalkuler!$AC$33) -> 0 | T13: ='Fordeling af arbejdsopgaver'!U12*(Kalkuler!$AC$17+Kalkuler!$AC$18+Kalkuler!$AC$19+Kalkuler!$AC$33) -> 0 | U13: ='Fordeling af arbejdsopgaver'!V12*(Kalkuler!$AC$17+Kalkuler!$AC$18+Kalkuler!$AC$19+Kalkuler!$AC$33) -> 0 | V13: ='Fordeling af arbejdsopgaver'!W12*(Kalkuler!$AC$17+Kalkuler!$AC$18+Kalkuler!$AC$19+Kalkuler!$AC$33) -> 0 | W13: ='Fordeling af arbejdsopgaver'!X12*(Kalkuler!$AC$17+Kalkuler!$AC$18+Kalkuler!$AC$19+Kalkuler!$AC$33) -> 0 | X13: ='Fordeling af arbejdsopgaver'!Y12*(Kalkuler!$AC$17+Kalkuler!$AC$18+Kalkuler!$AC$19+Kalkuler!$AC$33) -> 0 | Y13: ='Fordeling af arbejdsopgaver'!Z12*(Kalkuler!$AC$17+Kalkuler!$AC$18+Kalkuler!$AC$19+Kalkuler!$AC$33) -> 0 | Z13: ='Fordeling af arbejdsopgaver'!AA12*(Kalkuler!$AC$17+Kalkuler!$AC$18+Kalkuler!$AC$19+Kalkuler!$AC$33) -> 0 | AA13: ='Fordeling af arbejdsopgaver'!AB12*(Kalkuler!$AC$17+Kalkuler!$AC$18+Kalkuler!$AC$19+Kalkuler!$AC$33) -> 0
B14: Planteværn | D14: =SUM($D13:D13) -> 0 | E14: ='Fordeling af arbejdsopgaver'!F13*(Kalkuler!$AC$20+Kalkuler!$AC$21+Kalkuler!$AC$22+Kalkuler!$AC$36) -> 0 | F14: ='Fordeling af arbejdsopgaver'!G13*(Kalkuler!$AC$20+Kalkuler!$AC$21+Kalkuler!$AC$22+Kalkuler!$AC$36) -> 0 | G14: ='Fordeling af arbejdsopgaver'!H13*(Kalkuler!$AC$20+Kalkuler!$AC$21+Kalkuler!$AC$22+Kalkuler!$AC$36) -> 0 | H14: ='Fordeling af arbejdsopgaver'!I13*(Kalkuler!$AC$20+Kalkuler!$AC$21+Kalkuler!$AC$22+Kalkuler!$AC$36) -> 0 | I14: ='Fordeling af arbejdsopgaver'!J13*(Kalkuler!$AC$20+Kalkuler!$AC$21+Kalkuler!$AC$22+Kalkuler!$AC$36) -> 0 | J14: ='Fordeling af arbejdsopgaver'!K13*(Kalkuler!$AC$20+Kalkuler!$AC$21+Kalkuler!$AC$22+Kalkuler!$AC$36) -> 0 | K14: ='Fordeling af arbejdsopgaver'!L13*(Kalkuler!$AC$20+Kalkuler!$AC$21+Kalkuler!$AC$22+Kalkuler!$AC$36) -> 0 | L14: ='Fordeling af arbejdsopgaver'!M13*(Kalkuler!$AC$20+Kalkuler!$AC$21+Kalkuler!$AC$22+Kalkuler!$AC$36) -> -444.75 | M14: ='Fordeling af arbejdsopgaver'!N13*(Kalkuler!$AC$20+Kalkuler!$AC$21+Kalkuler!$AC$22+Kalkuler!$AC$36) -> -444.75 | N14: ='Fordeling af arbejdsopgaver'!O13*(Kalkuler!$AC$20+Kalkuler!$AC$21+Kalkuler!$AC$22+Kalkuler!$AC$36) -> -889.5 | O14: ='Fordeling af arbejdsopgaver'!P13*(Kalkuler!$AC$20+Kalkuler!$AC$21+Kalkuler!$AC$22+Kalkuler!$AC$36) -> -889.5 | P14: ='Fordeling af arbejdsopgaver'!Q13*(Kalkuler!$AC$20+Kalkuler!$AC$21+Kalkuler!$AC$22+Kalkuler!$AC$36) -> -889.5 | Q14: ='Fordeling af arbejdsopgaver'!R13*(Kalkuler!$AC$20+Kalkuler!$AC$21+Kalkuler!$AC$22+Kalkuler!$AC$36) -> -889.5 | R14: ='Fordeling af arbejdsopgaver'!S13*(Kalkuler!$AC$20+Kalkuler!$AC$21+Kalkuler!$AC$22+Kalkuler!$AC$36) -> -889.5 | S14: ='Fordeling af arbejdsopgaver'!T13*(Kalkuler!$AC$20+Kalkuler!$AC$21+Kalkuler!$AC$22+Kalkuler!$AC$36) -> -889.5 | T14: ='Fordeling af arbejdsopgaver'!U13*(Kalkuler!$AC$20+Kalkuler!$AC$21+Kalkuler!$AC$22+Kalkuler!$AC$36) -> -889.5 | U14: ='Fordeling af arbejdsopgaver'!V13*(Kalkuler!$AC$20+Kalkuler!$AC$21+Kalkuler!$AC$22+Kalkuler!$AC$36) -> 0 | V14: ='Fordeling af arbejdsopgaver'!W13*(Kalkuler!$AC$20+Kalkuler!$AC$21+Kalkuler!$AC$22+Kalkuler!$AC$36) -> 0 | W14: ='Fordeling af arbejdsopgaver'!X13*(Kalkuler!$AC$20+Kalkuler!$AC$21+Kalkuler!$AC$22+Kalkuler!$AC$36) -> 0 | X14: ='Fordeling af arbejdsopgaver'!Y13*(Kalkuler!$AC$20+Kalkuler!$AC$21+Kalkuler!$AC$22+Kalkuler!$AC$36) -> 0 | Y14: ='Fordeling af arbejdsopgaver'!Z13*(Kalkuler!$AC$20+Kalkuler!$AC$21+Kalkuler!$AC$22+Kalkuler!$AC$36) -> 0 | Z14: ='Fordeling af arbejdsopgaver'!AA13*(Kalkuler!$AC$20+Kalkuler!$AC$21+Kalkuler!$AC$22+Kalkuler!$AC$36) -> 0 | AA14: ='Fordeling af arbejdsopgaver'!AB13*(Kalkuler!$AC$20+Kalkuler!$AC$21+Kalkuler!$AC$22+Kalkuler!$AC$36) -> 0
B15: I alt | C15: =SUM(C10:C14) -> 0 | D15: =SUM(D9:D14) -> 0 | E15: =SUM(E10:E14) -> 0 | F15: 0 | G15: -362.5 | H15: -362.5 | I15: 0 | J15: -9303.5 | K15: -9303.5 | L15: -444.75 | M15: -444.75 | N15: -889.5 | O15: -889.5 | P15: -889.5 | Q15: -889.5 | R15: -889.5 | S15: -889.5 | T15: -889.5 | U15: 0 | V15: 0 | W15: 0 | X15: 0 | Y15: 0 | Z15: 0 | AA15: 0
B16: År til dato
A17: Kløvergræs til slæt | B17: Pløjning
B18: Jorbearb. Før såning
B19: Afgrødeetabl. (såning, lægning o.l.) | C19: ='Fordeling af arbejdsopgaver'!D17*(Kalkuler!$BA$15+Kalkuler!$BA$25)*3 -> -1278 | D19: ='Fordeling af arbejdsopgaver'!E17*(Kalkuler!$BA$15+Kalkuler!$BA$25)*3 -> 0 | E19: ='Fordeling af arbejdsopgaver'!F17*(Kalkuler!$BA$15+Kalkuler!$BA$25)*3 -> 0 | F19: ='Fordeling af arbejdsopgaver'!G17*(Kalkuler!$BA$15+Kalkuler!$BA$25)*3 -> 0 | G19: ='Fordeling af arbejdsopgaver'!H17*(Kalkuler!$BA$15+Kalkuler!$BA$25)*3 -> 0 | H19: ='Fordeling af arbejdsopgaver'!I17*(Kalkuler!$BA$15+Kalkuler!$BA$25)*3 -> 0 | I19: ='Fordeling af arbejdsopgaver'!J17*(Kalkuler!$BA$15+Kalkuler!$BA$25)*3 -> 0 | J19: ='Fordeling af arbejdsopgaver'!K17*(Kalkuler!$BA$15+Kalkuler!$BA$25)*3 -> 0 | K19: ='Fordeling af arbejdsopgaver'!L17*(Kalkuler!$BA$15+Kalkuler!$BA$25)*3 -> 0 | L19: ='Fordeling af arbejdsopgaver'!M17*(Kalkuler!$BA$15+Kalkuler!$BA$25)*3 -> 0 | M19: ='Fordeling af arbejdsopgaver'!N17*(Kalkuler!$BA$15+Kalkuler!$BA$25)*3 -> 0 | N19: ='Fordeling af arbejdsopgaver'!O17*(Kalkuler!$BA$15+Kalkuler!$BA$25)*3 -> 0 | O19: ='Fordeling af arbejdsopgaver'!P17*(Kalkuler!$BA$15+Kalkuler!$BA$25)*3 -> 0 | P19: ='Fordeling af arbejdsopgaver'!Q17*(Kalkuler!$BA$15+Kalkuler!$BA$25)*3 -> 0 | Q19: ='Fordeling af arbejdsopgaver'!R17*(Kalkuler!$BA$15+Kalkuler!$BA$25)*3 -> 0 | R19: ='Fordeling af arbejdsopgaver'!S17*(Kalkuler!$BA$15+Kalkuler!$BA$25)*3 -> -1278 | S19: ='Fordeling af arbejdsopgaver'!T17*(Kalkuler!$BA$15+Kalkuler!$BA$25)*3 -> 0 | T19: ='Fordeling af arbejdsopgaver'!U17*(Kalkuler!$BA$15+Kalkuler!$BA$25)*3 -> 0 | U19: ='Fordeling af arbejdsopgaver'!V17*(Kalkuler!$BA$15+Kalkuler!$BA$25)*3 -> 0 | V19: ='Fordeling af arbejdsopgaver'!W17*(Kalkuler!$BA$15+Kalkuler!$BA$25)*3 -> 0 | W19: ='Fordeling af arbejdsopgaver'!X17*(Kalkuler!$BA$15+Kalkuler!$BA$25)*3 -> 0 | X19: ='Fordeling af arbejdsopgaver'!Y17*(Kalkuler!$BA$15+Kalkuler!$BA$25)*3 -> 0 | Y19: ='Fordeling af arbejdsopgaver'!Z17*(Kalkuler!$BA$15+Kalkuler!$BA$25)*3 -> 0 | Z19: ='Fordeling af arbejdsopgaver'!AA17*(Kalkuler!$BA$15+Kalkuler!$BA$25)*3 -> 0 | AA19: ='Fordeling af arbejdsopgaver'!AB17*(Kalkuler!$BA$15+Kalkuler!$BA$25)*3 -> 0
B20: Gødskning (handelsgødning) | D20: ='Fordeling af arbejdsopgaver'!E18*(Kalkuler!$BA$16+Kalkuler!$BA$17+Kalkuler!$BA$18+Kalkuler!$BA$24) -> 0 | E20: ='Fordeling af arbejdsopgaver'!F18*(Kalkuler!$BA$16+Kalkuler!$BA$17+Kalkuler!$BA$18+Kalkuler!$BA$24) -> 0 | F20: ='Fordeling af arbejdsopgaver'!G18*(Kalkuler!$BA$16+Kalkuler!$BA$17+Kalkuler!$BA$18+Kalkuler!$BA$24) -> 0 | G20: ='Fordeling af arbejdsopgaver'!H18*(Kalkuler!$BA$16+Kalkuler!$BA$17+Kalkuler!$BA$18+Kalkuler!$BA$24) -> 0 | H20: ='Fordeling af arbejdsopgaver'!I18*(Kalkuler!$BA$16+Kalkuler!$BA$17+Kalkuler!$BA$18+Kalkuler!$BA$24) -> 0 | I20: ='Fordeling af arbejdsopgaver'!J18*(Kalkuler!$BA$16+Kalkuler!$BA$17+Kalkuler!$BA$18+Kalkuler!$BA$24) -> -3814 | J20: ='Fordeling af arbejdsopgaver'!K18*(Kalkuler!$BA$16+Kalkuler!$BA$17+Kalkuler!$BA$18+Kalkuler!$BA$24) -> 0 | K20: ='Fordeling af arbejdsopgaver'!L18*(Kalkuler!$BA$16+Kalkuler!$BA$17+Kalkuler!$BA$18+Kalkuler!$BA$24) -> 0 | L20: ='Fordeling af arbejdsopgaver'!M18*(Kalkuler!$BA$16+Kalkuler!$BA$17+Kalkuler!$BA$18+Kalkuler!$BA$24) -> 0 | M20: ='Fordeling af arbejdsopgaver'!N18*(Kalkuler!$BA$16+Kalkuler!$BA$17+Kalkuler!$BA$18+Kalkuler!$BA$24) -> -3814 | N20: ='Fordeling af arbejdsopgaver'!O18*(Kalkuler!$BA$16+Kalkuler!$BA$17+Kalkuler!$BA$18+Kalkuler!$BA$24) -> 0 | O20: ='Fordeling af arbejdsopgaver'!P18*(Kalkuler!$BA$16+Kalkuler!$BA$17+Kalkuler!$BA$18+Kalkuler!$BA$24) -> 0 | P20: ='Fordeling af arbejdsopgaver'!Q18*(Kalkuler!$BA$16+Kalkuler!$BA$17+Kalkuler!$BA$18+Kalkuler!$BA$24) -> -3814 | Q20: ='Fordeling af arbejdsopgaver'!R18*(Kalkuler!$BA$16+Kalkuler!$BA$17+Kalkuler!$BA$18+Kalkuler!$BA$24) -> 0 | R20: ='Fordeling af arbejdsopgaver'!S18*(Kalkuler!$BA$16+Kalkuler!$BA$17+Kalkuler!$BA$18+Kalkuler!$BA$24) -> 0 | S20: ='Fordeling af arbejdsopgaver'!T18*(Kalkuler!$BA$16+Kalkuler!$BA$17+Kalkuler!$BA$18+Kalkuler!$BA$24) -> 0 | T20: ='Fordeling af arbejdsopgaver'!U18*(Kalkuler!$BA$16+Kalkuler!$BA$17+Kalkuler!$BA$18+Kalkuler!$BA$24) -> 0 | U20: ='Fordeling af arbejdsopgaver'!V18*(Kalkuler!$BA$16+Kalkuler!$BA$17+Kalkuler!$BA$18+Kalkuler!$BA$24) -> 0 | V20: ='Fordeling af arbejdsopgaver'!W18*(Kalkuler!$BA$16+Kalkuler!$BA$17+Kalkuler!$BA$18+Kalkuler!$BA$24) -> 0 | W20: ='Fordeling af arbejdsopgaver'!X18*(Kalkuler!$BA$16+Kalkuler!$BA$17+Kalkuler!$BA$18+Kalkuler!$BA$24) -> 0 | X20: ='Fordeling af arbejdsopgaver'!Y18*(Kalkuler!$BA$16+Kalkuler!$BA$17+Kalkuler!$BA$18+Kalkuler!$BA$24) -> 0 | Y20: ='Fordeling af arbejdsopgaver'!Z18*(Kalkuler!$BA$16+Kalkuler!$BA$17+Kalkuler!$BA$18+Kalkuler!$BA$24) -> 0 | Z20: ='Fordeling af arbejdsopgaver'!AA18*(Kalkuler!$BA$16+Kalkuler!$BA$17+Kalkuler!$BA$18+Kalkuler!$BA$24) -> 0 | AA20: ='Fordeling af arbejdsopgaver'!AB18*(Kalkuler!$BA$16+Kalkuler!$BA$17+Kalkuler!$BA$18+Kalkuler!$BA$24) -> 0
B21: Planteværn
B22: I alt | C22: =SUM(C17:C21) -> -1278 | D22: 0 | E22: 0 | F22: 0 | G22: 0 | H22: 0 | I22: -3814 | J22: 0 | K22: 0 | L22: 0 | M22: -3814 | N22: 0 | O22: 0 | P22: -3814 | Q22: 0 | R22: -1278 | S22: 0 | T22: 0 | U22: 0 | V22: 0 | W22: 0 | X22: 0 | Y22: 0 | Z22: 0 | AA22: 0
B23: År til dato
A24: Majs til helsæd | B24: Pløjning | D24: ='Fordeling af arbejdsopgaver'!E21*Kalkuler!$AU$26 -> 0 | E24: ='Fordeling af arbejdsopgaver'!F21*Kalkuler!$AU$26 -> 0 | F24: ='Fordeling af arbejdsopgaver'!G21*Kalkuler!$AU$26 -> 0 | G24: ='Fordeling af arbejdsopgaver'!H21*Kalkuler!$AU$26 -> 0 | H24: ='Fordeling af arbejdsopgaver'!I21*Kalkuler!$AU$26 -> 0 | I24: ='Fordeling af arbejdsopgaver'!J21*Kalkuler!$AU$26 -> -362.5 | J24: ='Fordeling af arbejdsopgaver'!K21*Kalkuler!$AU$26 -> -362.5 | K24: ='Fordeling af arbejdsopgaver'!L21*Kalkuler!$AU$26 -> 0 | L24: ='Fordeling af arbejdsopgaver'!M21*Kalkuler!$AU$26 -> 0 | M24: ='Fordeling af arbejdsopgaver'!N21*Kalkuler!$AU$26 -> 0 | N24: ='Fordeling af arbejdsopgaver'!O21*Kalkuler!$AU$26 -> 0 | O24: ='Fordeling af arbejdsopgaver'!P21*Kalkuler!$AU$26 -> 0 | P24: ='Fordeling af arbejdsopgaver'!Q21*Kalkuler!$AU$26 -> 0 | Q24: ='Fordeling af arbejdsopgaver'!R21*Kalkuler!$AU$26 -> 0 | R24: ='Fordeling af arbejdsopgaver'!S21*Kalkuler!$AU$26 -> 0 | S24: ='Fordeling af arbejdsopgaver'!T21*Kalkuler!$AU$26 -> 0 | T24: ='Fordeling af arbejdsopgaver'!U21*Kalkuler!$AU$26 -> 0 | U24: ='Fordeling af arbejdsopgaver'!V21*Kalkuler!$AU$26 -> 0 | V24: ='Fordeling af arbejdsopgaver'!W21*Kalkuler!$AU$26 -> 0 | W24: ='Fordeling af arbejdsopgaver'!X21*Kalkuler!$AU$26 -> 0 | X24: ='Fordeling af arbejdsopgaver'!Y21*Kalkuler!$AU$26 -> 0 | Y24: ='Fordeling af arbejdsopgaver'!Z21*Kalkuler!$AU$26 -> 0 | Z24: ='Fordeling af arbejdsopgaver'!AA21*Kalkuler!$AU$26 -> 0 | AA24: ='Fordeling af arbejdsopgaver'!AB21*Kalkuler!$AU$26 -> 0
B25: Jorbearb. Før såning | D25: ='Fordeling af arbejdsopgaver'!E22*Kalkuler!$AU$28 -> 0 | E25: ='Fordeling af arbejdsopgaver'!F22*Kalkuler!$AU$28 -> 0 | F25: ='Fordeling af arbejdsopgaver'!G22*Kalkuler!$AU$28 -> 0 | G25: ='Fordeling af arbejdsopgaver'!H22*Kalkuler!$AU$28 -> 0 | H25: ='Fordeling af arbejdsopgaver'!I22*Kalkuler!$AU$28 -> 0 | I25: ='Fordeling af arbejdsopgaver'!J22*Kalkuler!$AU$28 -> 0 | J25: ='Fordeling af arbejdsopgaver'!K22*Kalkuler!$AU$28 -> -200 | K25: ='Fordeling af arbejdsopgaver'!L22*Kalkuler!$AU$28 -> 0 | L25: ='Fordeling af arbejdsopgaver'!M22*Kalkuler!$AU$28 -> 0 | M25: ='Fordeling af arbejdsopgaver'!N22*Kalkuler!$AU$28 -> 0 | N25: ='Fordeling af arbejdsopgaver'!O22*Kalkuler!$AU$28 -> 0 | O25: ='Fordeling af arbejdsopgaver'!P22*Kalkuler!$AU$28 -> 0 | P25: ='Fordeling af arbejdsopgaver'!Q22*Kalkuler!$AU$28 -> 0 | Q25: ='Fordeling af arbejdsopgaver'!R22*Kalkuler!$AU$28 -> 0 | R25: ='Fordeling af arbejdsopgaver'!S22*Kalkuler!$AU$28 -> 0 | S25: ='Fordeling af arbejdsopgaver'!T22*Kalkuler!$AU$28 -> 0 | T25: ='Fordeling af arbejdsopgaver'!U22*Kalkuler!$AU$28 -> 0 | U25: ='Fordeling af arbejdsopgaver'!V22*Kalkuler!$AU$28 -> 0 | V25: ='Fordeling af arbejdsopgaver'!W22*Kalkuler!$AU$28 -> 0 | W25: ='Fordeling af arbejdsopgaver'!X22*Kalkuler!$AU$28 -> 0 | X25: ='Fordeling af arbejdsopgaver'!Y22*Kalkuler!$AU$28 -> 0 | Y25: ='Fordeling af arbejdsopgaver'!Z22*Kalkuler!$AU$28 -> 0 | Z25: ='Fordeling af arbejdsopgaver'!AA22*Kalkuler!$AU$28 -> 0 | AA25: ='Fordeling af arbejdsopgaver'!AB22*Kalkuler!$AU$28 -> 0
B26: Afgrødeetabl. (såning, lægning o.l.) | D26: ='Fordeling af arbejdsopgaver'!E23*(Kalkuler!$AU$15+Kalkuler!$AU$29+Kalkuler!$AU$30) -> 0 | E26: ='Fordeling af arbejdsopgaver'!F23*(Kalkuler!$AU$15+Kalkuler!$AU$29+Kalkuler!$AU$30) -> 0 | F26: ='Fordeling af arbejdsopgaver'!G23*(Kalkuler!$AU$15+Kalkuler!$AU$29+Kalkuler!$AU$30) -> 0 | G26: ='Fordeling af arbejdsopgaver'!H23*(Kalkuler!$AU$15+Kalkuler!$AU$29+Kalkuler!$AU$30) -> 0 | H26: ='Fordeling af arbejdsopgaver'!I23*(Kalkuler!$AU$15+Kalkuler!$AU$29+Kalkuler!$AU$30) -> 0 | I26: ='Fordeling af arbejdsopgaver'!J23*(Kalkuler!$AU$15+Kalkuler!$AU$29+Kalkuler!$AU$30) -> 0 | J26: ='Fordeling af arbejdsopgaver'!K23*(Kalkuler!$AU$15+Kalkuler!$AU$29+Kalkuler!$AU$30) -> 0 | K26: ='Fordeling af arbejdsopgaver'!L23*(Kalkuler!$AU$15+Kalkuler!$AU$29+Kalkuler!$AU$30) -> -2575 | L26: ='Fordeling af arbejdsopgaver'!M23*(Kalkuler!$AU$15+Kalkuler!$AU$29+Kalkuler!$AU$30) -> 0 | M26: ='Fordeling af arbejdsopgaver'!N23*(Kalkuler!$AU$15+Kalkuler!$AU$29+Kalkuler!$AU$30) -> 0 | N26: ='Fordeling af arbejdsopgaver'!O23*(Kalkuler!$AU$15+Kalkuler!$AU$29+Kalkuler!$AU$30) -> 0 | O26: ='Fordeling af arbejdsopgaver'!P23*(Kalkuler!$AU$15+Kalkuler!$AU$29+Kalkuler!$AU$30) -> 0 | P26: ='Fordeling af arbejdsopgaver'!Q23*(Kalkuler!$AU$15+Kalkuler!$AU$29+Kalkuler!$AU$30) -> 0 | Q26: ='Fordeling af arbejdsopgaver'!R23*(Kalkuler!$AU$15+Kalkuler!$AU$29+Kalkuler!$AU$30) -> 0 | R26: ='Fordeling af arbejdsopgaver'!S23*(Kalkuler!$AU$15+Kalkuler!$AU$29+Kalkuler!$AU$30) -> 0 | S26: ='Fordeling af arbejdsopgaver'!T23*(Kalkuler!$AU$15+Kalkuler!$AU$29+Kalkuler!$AU$30) -> 0 | T26: ='Fordeling af arbejdsopgaver'!U23*(Kalkuler!$AU$15+Kalkuler!$AU$29+Kalkuler!$AU$30) -> 0 | U26: ='Fordeling af arbejdsopgaver'!V23*(Kalkuler!$AU$15+Kalkuler!$AU$29+Kalkuler!$AU$30) -> 0 | V26: ='Fordeling af arbejdsopgaver'!W23*(Kalkuler!$AU$15+Kalkuler!$AU$29+Kalkuler!$AU$30) -> 0 | W26: ='Fordeling af arbejdsopgaver'!X23*(Kalkuler!$AU$15+Kalkuler!$AU$29+Kalkuler!$AU$30) -> 0 | X26: ='Fordeling af arbejdsopgaver'!Y23*(Kalkuler!$AU$15+Kalkuler!$AU$29+Kalkuler!$AU$30) -> 0 | Y26: ='Fordeling af arbejdsopgaver'!Z23*(Kalkuler!$AU$15+Kalkuler!$AU$29+Kalkuler!$AU$30) -> 0 | Z26: ='Fordeling af arbejdsopgaver'!AA23*(Kalkuler!$AU$15+Kalkuler!$AU$29+Kalkuler!$AU$30) -> 0 | AA26: ='Fordeling af arbejdsopgaver'!AB23*(Kalkuler!$AU$15+Kalkuler!$AU$29+Kalkuler!$AU$30) -> 0 | AC26: Udsæd, Såning med gødningsplacering
B27: Gødskning (handelsgødning) | D27: ='Fordeling af arbejdsopgaver'!E24*(Kalkuler!$AU$16+Kalkuler!$AU$17+Kalkuler!$AU$18+Kalkuler!$AU$27) -> 0 | E27: ='Fordeling af arbejdsopgaver'!F24*(Kalkuler!$AU$16+Kalkuler!$AU$17+Kalkuler!$AU$18+Kalkuler!$AU$27) -> 0 | F27: ='Fordeling af arbejdsopgaver'!G24*(Kalkuler!$AU$16+Kalkuler!$AU$17+Kalkuler!$AU$18+Kalkuler!$AU$27) -> 0 | G27: ='Fordeling af arbejdsopgaver'!H24*(Kalkuler!$AU$16+Kalkuler!$AU$17+Kalkuler!$AU$18+Kalkuler!$AU$27) -> 0 | H27: ='Fordeling af arbejdsopgaver'!I24*(Kalkuler!$AU$16+Kalkuler!$AU$17+Kalkuler!$AU$18+Kalkuler!$AU$27) -> 0 | I27: ='Fordeling af arbejdsopgaver'!J24*(Kalkuler!$AU$16+Kalkuler!$AU$17+Kalkuler!$AU$18+Kalkuler!$AU$27) -> 0 | J27: ='Fordeling af arbejdsopgaver'!K24*(Kalkuler!$AU$16+Kalkuler!$AU$17+Kalkuler!$AU$18+Kalkuler!$AU$27) -> -6624 | K27: ='Fordeling af arbejdsopgaver'!L24*(Kalkuler!$AU$16+Kalkuler!$AU$17+Kalkuler!$AU$18+Kalkuler!$AU$27) -> 0 | L27: ='Fordeling af arbejdsopgaver'!M24*(Kalkuler!$AU$16+Kalkuler!$AU$17+Kalkuler!$AU$18+Kalkuler!$AU$27) -> 0 | M27: ='Fordeling af arbejdsopgaver'!N24*(Kalkuler!$AU$16+Kalkuler!$AU$17+Kalkuler!$AU$18+Kalkuler!$AU$27) -> 0 | N27: ='Fordeling af arbejdsopgaver'!O24*(Kalkuler!$AU$16+Kalkuler!$AU$17+Kalkuler!$AU$18+Kalkuler!$AU$27) -> 0 | O27: ='Fordeling af arbejdsopgaver'!P24*(Kalkuler!$AU$16+Kalkuler!$AU$17+Kalkuler!$AU$18+Kalkuler!$AU$27) -> 0 | P27: ='Fordeling af arbejdsopgaver'!Q24*(Kalkuler!$AU$16+Kalkuler!$AU$17+Kalkuler!$AU$18+Kalkuler!$AU$27) -> 0 | Q27: ='Fordeling af arbejdsopgaver'!R24*(Kalkuler!$AU$16+Kalkuler!$AU$17+Kalkuler!$AU$18+Kalkuler!$AU$27) -> 0 | R27: ='Fordeling af arbejdsopgaver'!S24*(Kalkuler!$AU$16+Kalkuler!$AU$17+Kalkuler!$AU$18+Kalkuler!$AU$27) -> 0 | S27: ='Fordeling af arbejdsopgaver'!T24*(Kalkuler!$AU$16+Kalkuler!$AU$17+Kalkuler!$AU$18+Kalkuler!$AU$27) -> 0 | T27: ='Fordeling af arbejdsopgaver'!U24*(Kalkuler!$AU$16+Kalkuler!$AU$17+Kalkuler!$AU$18+Kalkuler!$AU$27) -> 0 | U27: ='Fordeling af arbejdsopgaver'!V24*(Kalkuler!$AU$16+Kalkuler!$AU$17+Kalkuler!$AU$18+Kalkuler!$AU$27) -> 0 | V27: ='Fordeling af arbejdsopgaver'!W24*(Kalkuler!$AU$16+Kalkuler!$AU$17+Kalkuler!$AU$18+Kalkuler!$AU$27) -> 0 | W27: ='Fordeling af arbejdsopgaver'!X24*(Kalkuler!$AU$16+Kalkuler!$AU$17+Kalkuler!$AU$18+Kalkuler!$AU$27) -> 0 | X27: ='Fordeling af arbejdsopgaver'!Y24*(Kalkuler!$AU$16+Kalkuler!$AU$17+Kalkuler!$AU$18+Kalkuler!$AU$27) -> 0 | Y27: ='Fordeling af arbejdsopgaver'!Z24*(Kalkuler!$AU$16+Kalkuler!$AU$17+Kalkuler!$AU$18+Kalkuler!$AU$27) -> 0 | Z27: ='Fordeling af arbejdsopgaver'!AA24*(Kalkuler!$AU$16+Kalkuler!$AU$17+Kalkuler!$AU$18+Kalkuler!$AU$27) -> 0 | AA27: ='Fordeling af arbejdsopgaver'!AB24*(Kalkuler!$AU$16+Kalkuler!$AU$17+Kalkuler!$AU$18+Kalkuler!$AU$27) -> 0
B28: Planteværn | D28: ='Fordeling af arbejdsopgaver'!E25*(Kalkuler!$AU$19+Kalkuler!$AU$20+Kalkuler!$AU$31) -> 0 | E28: ='Fordeling af arbejdsopgaver'!F25*(Kalkuler!$AU$19+Kalkuler!$AU$20+Kalkuler!$AU$31) -> 0 | F28: ='Fordeling af arbejdsopgaver'!G25*(Kalkuler!$AU$19+Kalkuler!$AU$20+Kalkuler!$AU$31) -> 0 | G28: ='Fordeling af arbejdsopgaver'!H25*(Kalkuler!$AU$19+Kalkuler!$AU$20+Kalkuler!$AU$31) -> 0 | H28: ='Fordeling af arbejdsopgaver'!I25*(Kalkuler!$AU$19+Kalkuler!$AU$20+Kalkuler!$AU$31) -> 0 | I28: ='Fordeling af arbejdsopgaver'!J25*(Kalkuler!$AU$19+Kalkuler!$AU$20+Kalkuler!$AU$31) -> 0 | J28: ='Fordeling af arbejdsopgaver'!K25*(Kalkuler!$AU$19+Kalkuler!$AU$20+Kalkuler!$AU$31) -> 0 | K28: ='Fordeling af arbejdsopgaver'!L25*(Kalkuler!$AU$19+Kalkuler!$AU$20+Kalkuler!$AU$31) -> 0 | L28: ='Fordeling af arbejdsopgaver'!M25*(Kalkuler!$AU$19+Kalkuler!$AU$20+Kalkuler!$AU$31) -> 0 | M28: ='Fordeling af arbejdsopgaver'!N25*(Kalkuler!$AU$19+Kalkuler!$AU$20+Kalkuler!$AU$31) -> -460.5 | N28: ='Fordeling af arbejdsopgaver'!O25*(Kalkuler!$AU$19+Kalkuler!$AU$20+Kalkuler!$AU$31) -> -460.5 | O28: ='Fordeling af arbejdsopgaver'!P25*(Kalkuler!$AU$19+Kalkuler!$AU$20+Kalkuler!$AU$31) -> 0 | P28: ='Fordeling af arbejdsopgaver'!Q25*(Kalkuler!$AU$19+Kalkuler!$AU$20+Kalkuler!$AU$31) -> 0 | Q28: ='Fordeling af arbejdsopgaver'!R25*(Kalkuler!$AU$19+Kalkuler!$AU$20+Kalkuler!$AU$31) -> 0 | R28: ='Fordeling af arbejdsopgaver'!S25*(Kalkuler!$AU$19+Kalkuler!$AU$20+Kalkuler!$AU$31) -> 0 | S28: ='Fordeling af arbejdsopgaver'!T25*(Kalkuler!$AU$19+Kalkuler!$AU$20+Kalkuler!$AU$31) -> 0 | T28: ='Fordeling af arbejdsopgaver'!U25*(Kalkuler!$AU$19+Kalkuler!$AU$20+Kalkuler!$AU$31) -> 0 | U28: ='Fordeling af arbejdsopgaver'!V25*(Kalkuler!$AU$19+Kalkuler!$AU$20+Kalkuler!$AU$31) -> 0 | V28: ='Fordeling af arbejdsopgaver'!W25*(Kalkuler!$AU$19+Kalkuler!$AU$20+Kalkuler!$AU$31) -> 0 | W28: ='Fordeling af arbejdsopgaver'!X25*(Kalkuler!$AU$19+Kalkuler!$AU$20+Kalkuler!$AU$31) -> 0 | X28: ='Fordeling af arbejdsopgaver'!Y25*(Kalkuler!$AU$19+Kalkuler!$AU$20+Kalkuler!$AU$31) -> 0 | Y28: ='Fordeling af arbejdsopgaver'!Z25*(Kalkuler!$AU$19+Kalkuler!$AU$20+Kalkuler!$AU$31) -> 0 | Z28: ='Fordeling af arbejdsopgaver'!AA25*(Kalkuler!$AU$19+Kalkuler!$AU$20+Kalkuler!$AU$31) -> 0 | AA28: ='Fordeling af arbejdsopgaver'!AB25*(Kalkuler!$AU$19+Kalkuler!$AU$20+Kalkuler!$AU$31) -> 0
B29: I alt | C29: =SUM(C24:C28) -> 0 | D29: 0 | E29: 0 | F29: 0 | G29: 0 | H29: 0 | I29: -362.5 | J29: -7186.5 | K29: -2575 | L29: 0 | M29: -460.5 | N29: -460.5 | O29: 0 | P29: 0 | Q29: 0 | R29: 0 | S29: 0 | T29: 0 | U29: 0 | V29: 0 | W29: 0 | X29: 0 | Y29: 0 | Z29: 0 | AA29: 0
B30: År til dato
A31: Sukkerroer | B31: Pløjning | D31: ='Fordeling af arbejdsopgaver'!E27*Kalkuler!$AI$27 -> 0 | E31: ='Fordeling af arbejdsopgaver'!F27*Kalkuler!$AI$27 -> 0 | F31: ='Fordeling af arbejdsopgaver'!G27*Kalkuler!$AI$27 -> 0 | G31: ='Fordeling af arbejdsopgaver'!H27*Kalkuler!$AI$27 -> 0 | H31: ='Fordeling af arbejdsopgaver'!I27*Kalkuler!$AI$27 -> 0 | I31: ='Fordeling af arbejdsopgaver'!J27*Kalkuler!$AI$27 -> 0 | J31: ='Fordeling af arbejdsopgaver'!K27*Kalkuler!$AI$27 -> 0 | K31: ='Fordeling af arbejdsopgaver'!L27*Kalkuler!$AI$27 -> 0 | L31: ='Fordeling af arbejdsopgaver'!M27*Kalkuler!$AI$27 -> 0 | M31: ='Fordeling af arbejdsopgaver'!N27*Kalkuler!$AI$27 -> 0 | N31: ='Fordeling af arbejdsopgaver'!O27*Kalkuler!$AI$27 -> 0 | O31: ='Fordeling af arbejdsopgaver'!P27*Kalkuler!$AI$27 -> 0 | P31: ='Fordeling af arbejdsopgaver'!Q27*Kalkuler!$AI$27 -> 0 | Q31: ='Fordeling af arbejdsopgaver'!R27*Kalkuler!$AI$27 -> 0 | R31: ='Fordeling af arbejdsopgaver'!S27*Kalkuler!$AI$27 -> 0 | S31: ='Fordeling af arbejdsopgaver'!T27*Kalkuler!$AI$27 -> 0 | T31: ='Fordeling af arbejdsopgaver'!U27*Kalkuler!$AI$27 -> 0 | U31: ='Fordeling af arbejdsopgaver'!V27*Kalkuler!$AI$27 -> 0 | V31: ='Fordeling af arbejdsopgaver'!W27*Kalkuler!$AI$27 -> 0 | W31: ='Fordeling af arbejdsopgaver'!X27*Kalkuler!$AI$27 -> 0 | X31: ='Fordeling af arbejdsopgaver'!Y27*Kalkuler!$AI$27 -> -181.25 | Y31: ='Fordeling af arbejdsopgaver'!Z27*Kalkuler!$AI$27 -> -181.25 | Z31: ='Fordeling af arbejdsopgaver'!AA27*Kalkuler!$AI$27 -> -181.25 | AA31: ='Fordeling af arbejdsopgaver'!AB27*Kalkuler!$AI$27 -> -181.25
B32: Jorbearb. Før såning | D32: ='Fordeling af arbejdsopgaver'!E28*Kalkuler!$AI$29 -> 0 | E32: ='Fordeling af arbejdsopgaver'!F28*Kalkuler!$AI$29 -> 0 | F32: ='Fordeling af arbejdsopgaver'!G28*Kalkuler!$AI$29 -> 0 | G32: ='Fordeling af arbejdsopgaver'!H28*Kalkuler!$AI$29 -> 0 | H32: ='Fordeling af arbejdsopgaver'!I28*Kalkuler!$AI$29 -> 0 | I32: ='Fordeling af arbejdsopgaver'!J28*Kalkuler!$AI$29 -> -400 | J32: ='Fordeling af arbejdsopgaver'!K28*Kalkuler!$AI$29 -> 0 | K32: ='Fordeling af arbejdsopgaver'!L28*Kalkuler!$AI$29 -> 0 | L32: ='Fordeling af arbejdsopgaver'!M28*Kalkuler!$AI$29 -> 0 | M32: ='Fordeling af arbejdsopgaver'!N28*Kalkuler!$AI$29 -> 0 | N32: ='Fordeling af arbejdsopgaver'!O28*Kalkuler!$AI$29 -> 0 | O32: ='Fordeling af arbejdsopgaver'!P28*Kalkuler!$AI$29 -> 0 | P32: ='Fordeling af arbejdsopgaver'!Q28*Kalkuler!$AI$29 -> 0 | Q32: ='Fordeling af arbejdsopgaver'!R28*Kalkuler!$AI$29 -> 0 | R32: ='Fordeling af arbejdsopgaver'!S28*Kalkuler!$AI$29 -> 0 | S32: ='Fordeling af arbejdsopgaver'!T28*Kalkuler!$AI$29 -> 0 | T32: ='Fordeling af arbejdsopgaver'!U28*Kalkuler!$AI$29 -> 0 | U32: ='Fordeling af arbejdsopgaver'!V28*Kalkuler!$AI$29 -> 0 | V32: ='Fordeling af arbejdsopgaver'!W28*Kalkuler!$AI$29 -> 0 | W32: ='Fordeling af arbejdsopgaver'!X28*Kalkuler!$AI$29 -> 0 | X32: ='Fordeling af arbejdsopgaver'!Y28*Kalkuler!$AI$29 -> 0 | Y32: ='Fordeling af arbejdsopgaver'!Z28*Kalkuler!$AI$29 -> 0 | Z32: ='Fordeling af arbejdsopgaver'!AA28*Kalkuler!$AI$29 -> 0 | AA32: ='Fordeling af arbejdsopgaver'!AB28*Kalkuler!$AI$29 -> 0
B33: Afgrødeetabl. (såning, lægning o.l.) | D33: ='Fordeling af arbejdsopgaver'!E29*(Kalkuler!$AI$16+Kalkuler!$AI$30) -> 0 | E33: ='Fordeling af arbejdsopgaver'!F29*(Kalkuler!$AI$16+Kalkuler!$AI$30) -> 0 | F33: ='Fordeling af arbejdsopgaver'!G29*(Kalkuler!$AI$16+Kalkuler!$AI$30) -> 0 | G33: ='Fordeling af arbejdsopgaver'!H29*(Kalkuler!$AI$16+Kalkuler!$AI$30) -> 0 | H33: ='Fordeling af arbejdsopgaver'!I29*(Kalkuler!$AI$16+Kalkuler!$AI$30) -> 0 | I33: ='Fordeling af arbejdsopgaver'!J29*(Kalkuler!$AI$16+Kalkuler!$AI$30) -> 0 | J33: ='Fordeling af arbejdsopgaver'!K29*(Kalkuler!$AI$16+Kalkuler!$AI$30) -> -2350 | K33: ='Fordeling af arbejdsopgaver'!L29*(Kalkuler!$AI$16+Kalkuler!$AI$30) -> 0 | L33: ='Fordeling af arbejdsopgaver'!M29*(Kalkuler!$AI$16+Kalkuler!$AI$30) -> 0 | M33: ='Fordeling af arbejdsopgaver'!N29*(Kalkuler!$AI$16+Kalkuler!$AI$30) -> 0 | N33: ='Fordeling af arbejdsopgaver'!O29*(Kalkuler!$AI$16+Kalkuler!$AI$30) -> 0 | O33: ='Fordeling af arbejdsopgaver'!P29*(Kalkuler!$AI$16+Kalkuler!$AI$30) -> 0 | P33: ='Fordeling af arbejdsopgaver'!Q29*(Kalkuler!$AI$16+Kalkuler!$AI$30) -> 0 | Q33: ='Fordeling af arbejdsopgaver'!R29*(Kalkuler!$AI$16+Kalkuler!$AI$30) -> 0 | R33: ='Fordeling af arbejdsopgaver'!S29*(Kalkuler!$AI$16+Kalkuler!$AI$30) -> 0 | S33: ='Fordeling af arbejdsopgaver'!T29*(Kalkuler!$AI$16+Kalkuler!$AI$30) -> 0 | T33: ='Fordeling af arbejdsopgaver'!U29*(Kalkuler!$AI$16+Kalkuler!$AI$30) -> 0 | U33: ='Fordeling af arbejdsopgaver'!V29*(Kalkuler!$AI$16+Kalkuler!$AI$30) -> 0 | V33: ='Fordeling af arbejdsopgaver'!W29*(Kalkuler!$AI$16+Kalkuler!$AI$30) -> 0 | W33: ='Fordeling af arbejdsopgaver'!X29*(Kalkuler!$AI$16+Kalkuler!$AI$30) -> 0 | X33: ='Fordeling af arbejdsopgaver'!Y29*(Kalkuler!$AI$16+Kalkuler!$AI$30) -> 0 | Y33: ='Fordeling af arbejdsopgaver'!Z29*(Kalkuler!$AI$16+Kalkuler!$AI$30) -> 0 | Z33: ='Fordeling af arbejdsopgaver'!AA29*(Kalkuler!$AI$16+Kalkuler!$AI$30) -> 0 | AA33: ='Fordeling af arbejdsopgaver'!AB29*(Kalkuler!$AI$16+Kalkuler!$AI$30) -> 0
B34: Gødskning (handelsgødning) | D34: ='Fordeling af arbejdsopgaver'!E30*(Kalkuler!$AI$17+Kalkuler!$AI$18+Kalkuler!$AI$19+Kalkuler!$AI$28) -> 0 | E34: ='Fordeling af arbejdsopgaver'!F30*(Kalkuler!$AI$17+Kalkuler!$AI$18+Kalkuler!$AI$19+Kalkuler!$AI$28) -> 0 | F34: ='Fordeling af arbejdsopgaver'!G30*(Kalkuler!$AI$17+Kalkuler!$AI$18+Kalkuler!$AI$19+Kalkuler!$AI$28) -> 0 | G34: ='Fordeling af arbejdsopgaver'!H30*(Kalkuler!$AI$17+Kalkuler!$AI$18+Kalkuler!$AI$19+Kalkuler!$AI$28) -> 0 | H34: ='Fordeling af arbejdsopgaver'!I30*(Kalkuler!$AI$17+Kalkuler!$AI$18+Kalkuler!$AI$19+Kalkuler!$AI$28) -> 0 | I34: ='Fordeling af arbejdsopgaver'!J30*(Kalkuler!$AI$17+Kalkuler!$AI$18+Kalkuler!$AI$19+Kalkuler!$AI$28) -> 0 | J34: ='Fordeling af arbejdsopgaver'!K30*(Kalkuler!$AI$17+Kalkuler!$AI$18+Kalkuler!$AI$19+Kalkuler!$AI$28) -> -5880 | K34: ='Fordeling af arbejdsopgaver'!L30*(Kalkuler!$AI$17+Kalkuler!$AI$18+Kalkuler!$AI$19+Kalkuler!$AI$28) -> 0 | L34: ='Fordeling af arbejdsopgaver'!M30*(Kalkuler!$AI$17+Kalkuler!$AI$18+Kalkuler!$AI$19+Kalkuler!$AI$28) -> 0 | M34: ='Fordeling af arbejdsopgaver'!N30*(Kalkuler!$AI$17+Kalkuler!$AI$18+Kalkuler!$AI$19+Kalkuler!$AI$28) -> 0 | N34: ='Fordeling af arbejdsopgaver'!O30*(Kalkuler!$AI$17+Kalkuler!$AI$18+Kalkuler!$AI$19+Kalkuler!$AI$28) -> 0 | O34: ='Fordeling af arbejdsopgaver'!P30*(Kalkuler!$AI$17+Kalkuler!$AI$18+Kalkuler!$AI$19+Kalkuler!$AI$28) -> 0 | P34: ='Fordeling af arbejdsopgaver'!Q30*(Kalkuler!$AI$17+Kalkuler!$AI$18+Kalkuler!$AI$19+Kalkuler!$AI$28) -> 0 | Q34: ='Fordeling af arbejdsopgaver'!R30*(Kalkuler!$AI$17+Kalkuler!$AI$18+Kalkuler!$AI$19+Kalkuler!$AI$28) -> 0 | R34: ='Fordeling af arbejdsopgaver'!S30*(Kalkuler!$AI$17+Kalkuler!$AI$18+Kalkuler!$AI$19+Kalkuler!$AI$28) -> 0 | S34: ='Fordeling af arbejdsopgaver'!T30*(Kalkuler!$AI$17+Kalkuler!$AI$18+Kalkuler!$AI$19+Kalkuler!$AI$28) -> 0 | T34: ='Fordeling af arbejdsopgaver'!U30*(Kalkuler!$AI$17+Kalkuler!$AI$18+Kalkuler!$AI$19+Kalkuler!$AI$28) -> 0 | U34: ='Fordeling af arbejdsopgaver'!V30*(Kalkuler!$AI$17+Kalkuler!$AI$18+Kalkuler!$AI$19+Kalkuler!$AI$28) -> 0 | V34: ='Fordeling af arbejdsopgaver'!W30*(Kalkuler!$AI$17+Kalkuler!$AI$18+Kalkuler!$AI$19+Kalkuler!$AI$28) -> 0 | W34: ='Fordeling af arbejdsopgaver'!X30*(Kalkuler!$AI$17+Kalkuler!$AI$18+Kalkuler!$AI$19+Kalkuler!$AI$28) -> 0 | X34: ='Fordeling af arbejdsopgaver'!Y30*(Kalkuler!$AI$17+Kalkuler!$AI$18+Kalkuler!$AI$19+Kalkuler!$AI$28) -> 0 | Y34: ='Fordeling af arbejdsopgaver'!Z30*(Kalkuler!$AI$17+Kalkuler!$AI$18+Kalkuler!$AI$19+Kalkuler!$AI$28) -> 0 | Z34: ='Fordeling af arbejdsopgaver'!AA30*(Kalkuler!$AI$17+Kalkuler!$AI$18+Kalkuler!$AI$19+Kalkuler!$AI$28) -> 0 | AA34: ='Fordeling af arbejdsopgaver'!AB30*(Kalkuler!$AI$17+Kalkuler!$AI$18+Kalkuler!$AI$19+Kalkuler!$AI$28) -> 0
B35: Planteværn | D35: ='Fordeling af arbejdsopgaver'!E31*(Kalkuler!$AI$20+Kalkuler!$AI$21+Kalkuler!$AI$31+Kalkuler!$AI$32) -> 0 | E35: ='Fordeling af arbejdsopgaver'!F31*(Kalkuler!$AI$20+Kalkuler!$AI$21+Kalkuler!$AI$31+Kalkuler!$AI$32) -> 0 | F35: ='Fordeling af arbejdsopgaver'!G31*(Kalkuler!$AI$20+Kalkuler!$AI$21+Kalkuler!$AI$31+Kalkuler!$AI$32) -> 0 | G35: ='Fordeling af arbejdsopgaver'!H31*(Kalkuler!$AI$20+Kalkuler!$AI$21+Kalkuler!$AI$31+Kalkuler!$AI$32) -> 0 | H35: ='Fordeling af arbejdsopgaver'!I31*(Kalkuler!$AI$20+Kalkuler!$AI$21+Kalkuler!$AI$31+Kalkuler!$AI$32) -> 0 | I35: ='Fordeling af arbejdsopgaver'!J31*(Kalkuler!$AI$20+Kalkuler!$AI$21+Kalkuler!$AI$31+Kalkuler!$AI$32) -> 0 | J35: ='Fordeling af arbejdsopgaver'!K31*(Kalkuler!$AI$20+Kalkuler!$AI$21+Kalkuler!$AI$31+Kalkuler!$AI$32) -> 0 | K35: ='Fordeling af arbejdsopgaver'!L31*(Kalkuler!$AI$20+Kalkuler!$AI$21+Kalkuler!$AI$31+Kalkuler!$AI$32) -> -1220.4 | L35: ='Fordeling af arbejdsopgaver'!M31*(Kalkuler!$AI$20+Kalkuler!$AI$21+Kalkuler!$AI$31+Kalkuler!$AI$32) -> 0 | M35: ='Fordeling af arbejdsopgaver'!N31*(Kalkuler!$AI$20+Kalkuler!$AI$21+Kalkuler!$AI$31+Kalkuler!$AI$32) -> -610.2 | N35: ='Fordeling af arbejdsopgaver'!O31*(Kalkuler!$AI$20+Kalkuler!$AI$21+Kalkuler!$AI$31+Kalkuler!$AI$32) -> -610.2 | O35: ='Fordeling af arbejdsopgaver'!P31*(Kalkuler!$AI$20+Kalkuler!$AI$21+Kalkuler!$AI$31+Kalkuler!$AI$32) -> -610.2 | P35: ='Fordeling af arbejdsopgaver'!Q31*(Kalkuler!$AI$20+Kalkuler!$AI$21+Kalkuler!$AI$31+Kalkuler!$AI$32) -> 0 | Q35: ='Fordeling af arbejdsopgaver'!R31*(Kalkuler!$AI$20+Kalkuler!$AI$21+Kalkuler!$AI$31+Kalkuler!$AI$32) -> 0 | R35: ='Fordeling af arbejdsopgaver'!S31*(Kalkuler!$AI$20+Kalkuler!$AI$21+Kalkuler!$AI$31+Kalkuler!$AI$32) -> 0 | S35: ='Fordeling af arbejdsopgaver'!T31*(Kalkuler!$AI$20+Kalkuler!$AI$21+Kalkuler!$AI$31+Kalkuler!$AI$32) -> 0 | T35: ='Fordeling af arbejdsopgaver'!U31*(Kalkuler!$AI$20+Kalkuler!$AI$21+Kalkuler!$AI$31+Kalkuler!$AI$32) -> 0 | U35: ='Fordeling af arbejdsopgaver'!V31*(Kalkuler!$AI$20+Kalkuler!$AI$21+Kalkuler!$AI$31+Kalkuler!$AI$32) -> 0 | V35: ='Fordeling af arbejdsopgaver'!W31*(Kalkuler!$AI$20+Kalkuler!$AI$21+Kalkuler!$AI$31+Kalkuler!$AI$32) -> 0 | W35: ='Fordeling af arbejdsopgaver'!X31*(Kalkuler!$AI$20+Kalkuler!$AI$21+Kalkuler!$AI$31+Kalkuler!$AI$32) -> 0 | X35: ='Fordeling af arbejdsopgaver'!Y31*(Kalkuler!$AI$20+Kalkuler!$AI$21+Kalkuler!$AI$31+Kalkuler!$AI$32) -> 0 | Y35: ='Fordeling af arbejdsopgaver'!Z31*(Kalkuler!$AI$20+Kalkuler!$AI$21+Kalkuler!$AI$31+Kalkuler!$AI$32) -> 0 | Z35: ='Fordeling af arbejdsopgaver'!AA31*(Kalkuler!$AI$20+Kalkuler!$AI$21+Kalkuler!$AI$31+Kalkuler!$AI$32) -> 0 | AA35: ='Fordeling af arbejdsopgaver'!AB31*(Kalkuler!$AI$20+Kalkuler!$AI$21+Kalkuler!$AI$31+Kalkuler!$AI$32) -> 0 | AC35: Ukrudt, Sygdom, sprøjtning
B36: I alt | C36: =SUM(C31:C35) -> 0 | D36: 0 | E36: 0 | F36: 0 | G36: 0 | H36: 0 | I36: -400 | J36: -8230 | K36: -1220.4 | L36: 0 | M36: -610.2 | N36: -610.2 | O36: -610.2 | P36: 0 | Q36: 0 | R36: 0 | S36: 0 | T36: 0 | U36: 0 | V36: 0 | W36: 0 | X36: -181.25 | Y36: -181.25 | Z36: -181.25 | AA36: -181.25
B37: År til dato
A38: Vinterraps | B38: Pløjning | D38: ='Fordeling af arbejdsopgaver'!E33*Kalkuler!$W$28 -> 0 | E38: ='Fordeling af arbejdsopgaver'!F33*Kalkuler!$W$28 -> 0 | F38: ='Fordeling af arbejdsopgaver'!G33*Kalkuler!$W$28 -> 0 | G38: ='Fordeling af arbejdsopgaver'!H33*Kalkuler!$W$28 -> 0 | H38: ='Fordeling af arbejdsopgaver'!I33*Kalkuler!$W$28 -> 0 | I38: ='Fordeling af arbejdsopgaver'!J33*Kalkuler!$W$28 -> 0 | J38: ='Fordeling af arbejdsopgaver'!K33*Kalkuler!$W$28 -> 0 | K38: ='Fordeling af arbejdsopgaver'!L33*Kalkuler!$W$28 -> 0 | L38: ='Fordeling af arbejdsopgaver'!M33*Kalkuler!$W$28 -> 0 | M38: ='Fordeling af arbejdsopgaver'!N33*Kalkuler!$W$28 -> 0 | N38: ='Fordeling af arbejdsopgaver'!O33*Kalkuler!$W$28 -> 0 | O38: ='Fordeling af arbejdsopgaver'!P33*Kalkuler!$W$28 -> 0 | P38: ='Fordeling af arbejdsopgaver'!Q33*Kalkuler!$W$28 -> 0 | Q38: ='Fordeling af arbejdsopgaver'!R33*Kalkuler!$W$28 -> 0 | R38: ='Fordeling af arbejdsopgaver'!S33*Kalkuler!$W$28 -> -543.75 | S38: ='Fordeling af arbejdsopgaver'!T33*Kalkuler!$W$28 -> -181.25 | T38: ='Fordeling af arbejdsopgaver'!U33*Kalkuler!$W$28 -> 0 | U38: ='Fordeling af arbejdsopgaver'!V33*Kalkuler!$W$28 -> 0 | V38: ='Fordeling af arbejdsopgaver'!W33*Kalkuler!$W$28 -> 0 | W38: ='Fordeling af arbejdsopgaver'!X33*Kalkuler!$W$28 -> 0 | X38: ='Fordeling af arbejdsopgaver'!Y33*Kalkuler!$W$28 -> 0 | Y38: ='Fordeling af arbejdsopgaver'!Z33*Kalkuler!$W$28 -> 0 | Z38: ='Fordeling af arbejdsopgaver'!AA33*Kalkuler!$W$28 -> 0 | AA38: ='Fordeling af arbejdsopgaver'!AB33*Kalkuler!$W$28 -> 0 | AC38: Pløjning med pakning
B39: Jorbearb. Før såning | D39: ='Fordeling af arbejdsopgaver'!E34*Kalkuler!$W$30 -> 0 | R39: 0.75 | S39: 0.25
B40: Afgrødeetabl. (såning, lægning o.l.) | D40: ='Fordeling af arbejdsopgaver'!E35*(Kalkuler!$W$14+Kalkuler!$W$30) -> 0 | E40: ='Fordeling af arbejdsopgaver'!F35*(Kalkuler!$W$14+Kalkuler!$W$30) -> 0 | F40: ='Fordeling af arbejdsopgaver'!G35*(Kalkuler!$W$14+Kalkuler!$W$30) -> 0 | G40: ='Fordeling af arbejdsopgaver'!H35*(Kalkuler!$W$14+Kalkuler!$W$30) -> 0 | H40: ='Fordeling af arbejdsopgaver'!I35*(Kalkuler!$W$14+Kalkuler!$W$30) -> 0 | I40: ='Fordeling af arbejdsopgaver'!J35*(Kalkuler!$W$14+Kalkuler!$W$30) -> 0 | J40: ='Fordeling af arbejdsopgaver'!K35*(Kalkuler!$W$14+Kalkuler!$W$30) -> 0 | K40: ='Fordeling af arbejdsopgaver'!L35*(Kalkuler!$W$14+Kalkuler!$W$30) -> 0 | L40: ='Fordeling af arbejdsopgaver'!M35*(Kalkuler!$W$14+Kalkuler!$W$30) -> 0 | M40: ='Fordeling af arbejdsopgaver'!N35*(Kalkuler!$W$14+Kalkuler!$W$30) -> 0 | N40: ='Fordeling af arbejdsopgaver'!O35*(Kalkuler!$W$14+Kalkuler!$W$30) -> 0 | O40: ='Fordeling af arbejdsopgaver'!P35*(Kalkuler!$W$14+Kalkuler!$W$30) -> 0 | P40: ='Fordeling af arbejdsopgaver'!Q35*(Kalkuler!$W$14+Kalkuler!$W$30) -> 0 | Q40: ='Fordeling af arbejdsopgaver'!R35*(Kalkuler!$W$14+Kalkuler!$W$30) -> 0 | R40: ='Fordeling af arbejdsopgaver'!S35*(Kalkuler!$W$14+Kalkuler!$W$30) -> -712.5 | S40: ='Fordeling af arbejdsopgaver'!T35*(Kalkuler!$W$14+Kalkuler!$W$30) -> -237.5 | T40: ='Fordeling af arbejdsopgaver'!U35*(Kalkuler!$W$14+Kalkuler!$W$30) -> 0 | U40: ='Fordeling af arbejdsopgaver'!V35*(Kalkuler!$W$14+Kalkuler!$W$30) -> 0 | V40: ='Fordeling af arbejdsopgaver'!W35*(Kalkuler!$W$14+Kalkuler!$W$30) -> 0 | W40: ='Fordeling af arbejdsopgaver'!X35*(Kalkuler!$W$14+Kalkuler!$W$30) -> 0 | X40: ='Fordeling af arbejdsopgaver'!Y35*(Kalkuler!$W$14+Kalkuler!$W$30) -> 0 | Y40: ='Fordeling af arbejdsopgaver'!Z35*(Kalkuler!$W$14+Kalkuler!$W$30) -> 0 | Z40: ='Fordeling af arbejdsopgaver'!AA35*(Kalkuler!$W$14+Kalkuler!$W$30) -> 0 | AA40: ='Fordeling af arbejdsopgaver'!AB35*(Kalkuler!$W$14+Kalkuler!$W$30) -> 0 | AC40: Udsæd, Komb. harvning og såning
B41: Gødskning (handelsgødning) | D41: ='Fordeling af arbejdsopgaver'!E36*(Kalkuler!$W$15+Kalkuler!$W$16+Kalkuler!$W$17+Kalkuler!$W$29) -> 0 | E41: ='Fordeling af arbejdsopgaver'!F36*(Kalkuler!$W$15+Kalkuler!$W$16+Kalkuler!$W$17+Kalkuler!$W$29) -> 0 | F41: ='Fordeling af arbejdsopgaver'!G36*(Kalkuler!$W$15+Kalkuler!$W$16+Kalkuler!$W$17+Kalkuler!$W$29) -> 0 | G41: ='Fordeling af arbejdsopgaver'!H36*(Kalkuler!$W$15+Kalkuler!$W$16+Kalkuler!$W$17+Kalkuler!$W$29) -> 0 | H41: ='Fordeling af arbejdsopgaver'!I36*(Kalkuler!$W$15+Kalkuler!$W$16+Kalkuler!$W$17+Kalkuler!$W$29) -> -2186.333333 | I41: ='Fordeling af arbejdsopgaver'!J36*(Kalkuler!$W$15+Kalkuler!$W$16+Kalkuler!$W$17+Kalkuler!$W$29) -> 0 | J41: ='Fordeling af arbejdsopgaver'!K36*(Kalkuler!$W$15+Kalkuler!$W$16+Kalkuler!$W$17+Kalkuler!$W$29) -> -2186.333333 | K41: ='Fordeling af arbejdsopgaver'!L36*(Kalkuler!$W$15+Kalkuler!$W$16+Kalkuler!$W$17+Kalkuler!$W$29) -> 0 | L41: ='Fordeling af arbejdsopgaver'!M36*(Kalkuler!$W$15+Kalkuler!$W$16+Kalkuler!$W$17+Kalkuler!$W$29) -> 0 | M41: ='Fordeling af arbejdsopgaver'!N36*(Kalkuler!$W$15+Kalkuler!$W$16+Kalkuler!$W$17+Kalkuler!$W$29) -> 0 | N41: ='Fordeling af arbejdsopgaver'!O36*(Kalkuler!$W$15+Kalkuler!$W$16+Kalkuler!$W$17+Kalkuler!$W$29) -> 0 | O41: ='Fordeling af arbejdsopgaver'!P36*(Kalkuler!$W$15+Kalkuler!$W$16+Kalkuler!$W$17+Kalkuler!$W$29) -> 0 | P41: ='Fordeling af arbejdsopgaver'!Q36*(Kalkuler!$W$15+Kalkuler!$W$16+Kalkuler!$W$17+Kalkuler!$W$29) -> 0 | Q41: ='Fordeling af arbejdsopgaver'!R36*(Kalkuler!$W$15+Kalkuler!$W$16+Kalkuler!$W$17+Kalkuler!$W$29) -> 0 | R41: ='Fordeling af arbejdsopgaver'!S36*(Kalkuler!$W$15+Kalkuler!$W$16+Kalkuler!$W$17+Kalkuler!$W$29) -> 0 | S41: ='Fordeling af arbejdsopgaver'!T36*(Kalkuler!$W$15+Kalkuler!$W$16+Kalkuler!$W$17+Kalkuler!$W$29) -> 0 | T41: ='Fordeling af arbejdsopgaver'!U36*(Kalkuler!$W$15+Kalkuler!$W$16+Kalkuler!$W$17+Kalkuler!$W$29) -> 0 | U41: ='Fordeling af arbejdsopgaver'!V36*(Kalkuler!$W$15+Kalkuler!$W$16+Kalkuler!$W$17+Kalkuler!$W$29) -> -2186.333333 | V41: ='Fordeling af arbejdsopgaver'!W36*(Kalkuler!$W$15+Kalkuler!$W$16+Kalkuler!$W$17+Kalkuler!$W$29) -> 0 | W41: ='Fordeling af arbejdsopgaver'!X36*(Kalkuler!$W$15+Kalkuler!$W$16+Kalkuler!$W$17+Kalkuler!$W$29) -> 0 | X41: ='Fordeling af arbejdsopgaver'!Y36*(Kalkuler!$W$15+Kalkuler!$W$16+Kalkuler!$W$17+Kalkuler!$W$29) -> 0 | Y41: ='Fordeling af arbejdsopgaver'!Z36*(Kalkuler!$W$15+Kalkuler!$W$16+Kalkuler!$W$17+Kalkuler!$W$29) -> 0 | Z41: ='Fordeling af arbejdsopgaver'!AA36*(Kalkuler!$W$15+Kalkuler!$W$16+Kalkuler!$W$17+Kalkuler!$W$29) -> 0 | AA41: ='Fordeling af arbejdsopgaver'!AB36*(Kalkuler!$W$15+Kalkuler!$W$16+Kalkuler!$W$17+Kalkuler!$W$29) -> 0 | AC41: Handelsgødning Kvælstof, Handelsgødning Fosfor, Handelsgødning Kalium, Gødningsspredning
B42: Planteværn | D42: ='Fordeling af arbejdsopgaver'!E37*(Kalkuler!$W$18+Kalkuler!$W$19+Kalkuler!$W$20+Kalkuler!$W$21+Kalkuler!$W$31) -> 0 | E42: ='Fordeling af arbejdsopgaver'!F37*(Kalkuler!$W$18+Kalkuler!$W$19+Kalkuler!$W$20+Kalkuler!$W$21+Kalkuler!$W$31) -> 0 | F42: ='Fordeling af arbejdsopgaver'!G37*(Kalkuler!$W$18+Kalkuler!$W$19+Kalkuler!$W$20+Kalkuler!$W$21+Kalkuler!$W$31) -> 0 | G42: ='Fordeling af arbejdsopgaver'!H37*(Kalkuler!$W$18+Kalkuler!$W$19+Kalkuler!$W$20+Kalkuler!$W$21+Kalkuler!$W$31) -> 0 | H42: ='Fordeling af arbejdsopgaver'!I37*(Kalkuler!$W$18+Kalkuler!$W$19+Kalkuler!$W$20+Kalkuler!$W$21+Kalkuler!$W$31) -> 0 | I42: ='Fordeling af arbejdsopgaver'!J37*(Kalkuler!$W$18+Kalkuler!$W$19+Kalkuler!$W$20+Kalkuler!$W$21+Kalkuler!$W$31) -> 0 | J42: ='Fordeling af arbejdsopgaver'!K37*(Kalkuler!$W$18+Kalkuler!$W$19+Kalkuler!$W$20+Kalkuler!$W$21+Kalkuler!$W$31) -> -168.75 | K42: ='Fordeling af arbejdsopgaver'!L37*(Kalkuler!$W$18+Kalkuler!$W$19+Kalkuler!$W$20+Kalkuler!$W$21+Kalkuler!$W$31) -> -168.75 | L42: ='Fordeling af arbejdsopgaver'!M37*(Kalkuler!$W$18+Kalkuler!$W$19+Kalkuler!$W$20+Kalkuler!$W$21+Kalkuler!$W$31) -> -337.5 | M42: ='Fordeling af arbejdsopgaver'!N37*(Kalkuler!$W$18+Kalkuler!$W$19+Kalkuler!$W$20+Kalkuler!$W$21+Kalkuler!$W$31) -> -337.5 | N42: ='Fordeling af arbejdsopgaver'!O37*(Kalkuler!$W$18+Kalkuler!$W$19+Kalkuler!$W$20+Kalkuler!$W$21+Kalkuler!$W$31) -> 0 | O42: ='Fordeling af arbejdsopgaver'!P37*(Kalkuler!$W$18+Kalkuler!$W$19+Kalkuler!$W$20+Kalkuler!$W$21+Kalkuler!$W$31) -> 0 | P42: ='Fordeling af arbejdsopgaver'!Q37*(Kalkuler!$W$18+Kalkuler!$W$19+Kalkuler!$W$20+Kalkuler!$W$21+Kalkuler!$W$31) -> 0 | Q42: ='Fordeling af arbejdsopgaver'!R37*(Kalkuler!$W$18+Kalkuler!$W$19+Kalkuler!$W$20+Kalkuler!$W$21+Kalkuler!$W$31) -> 0 | R42: ='Fordeling af arbejdsopgaver'!S37*(Kalkuler!$W$18+Kalkuler!$W$19+Kalkuler!$W$20+Kalkuler!$W$21+Kalkuler!$W$31) -> 0 | S42: ='Fordeling af arbejdsopgaver'!T37*(Kalkuler!$W$18+Kalkuler!$W$19+Kalkuler!$W$20+Kalkuler!$W$21+Kalkuler!$W$31) -> 0 | T42: ='Fordeling af arbejdsopgaver'!U37*(Kalkuler!$W$18+Kalkuler!$W$19+Kalkuler!$W$20+Kalkuler!$W$21+Kalkuler!$W$31) -> -337.5 | U42: ='Fordeling af arbejdsopgaver'!V37*(Kalkuler!$W$18+Kalkuler!$W$19+Kalkuler!$W$20+Kalkuler!$W$21+Kalkuler!$W$31) -> 0 | V42: ='Fordeling af arbejdsopgaver'!W37*(Kalkuler!$W$18+Kalkuler!$W$19+Kalkuler!$W$20+Kalkuler!$W$21+Kalkuler!$W$31) -> -337.5 | W42: ='Fordeling af arbejdsopgaver'!X37*(Kalkuler!$W$18+Kalkuler!$W$19+Kalkuler!$W$20+Kalkuler!$W$21+Kalkuler!$W$31) -> 0 | X42: ='Fordeling af arbejdsopgaver'!Y37*(Kalkuler!$W$18+Kalkuler!$W$19+Kalkuler!$W$20+Kalkuler!$W$21+Kalkuler!$W$31) -> -337.5 | Y42: ='Fordeling af arbejdsopgaver'!Z37*(Kalkuler!$W$18+Kalkuler!$W$19+Kalkuler!$W$20+Kalkuler!$W$21+Kalkuler!$W$31) -> 0 | Z42: ='Fordeling af arbejdsopgaver'!AA37*(Kalkuler!$W$18+Kalkuler!$W$19+Kalkuler!$W$20+Kalkuler!$W$21+Kalkuler!$W$31) -> 0 | AA42: ='Fordeling af arbejdsopgaver'!AB37*(Kalkuler!$W$18+Kalkuler!$W$19+Kalkuler!$W$20+Kalkuler!$W$21+Kalkuler!$W$31) -> 0 | AC42: Ukrudt, sygdom, skadedyr, vækstregulering, sprøjtning
B43: I alt | C43: =SUM(C38:C42) -> 0 | D43: 0 | E43: 0 | F43: 0 | G43: 0 | H43: -2186.333333 | I43: 0 | J43: -2355.083333 | K43: -168.75 | L43: -337.5 | M43: -337.5 | N43: 0 | O43: 0 | P43: 0 | Q43: 0 | R43: -1255.5 | S43: -418.5 | T43: -337.5 | U43: -2186.333333 | V43: -337.5 | W43: 0 | X43: -337.5 | Y43: 0 | Z43: 0 | AA43: 0
B44: År til dato
A45: Vintersæd (byg) | B45: Pløjning | D45: ='Fordeling af arbejdsopgaver'!E39*Kalkuler!$K$27 -> 0 | E45: ='Fordeling af arbejdsopgaver'!F39*Kalkuler!$K$27 -> 0 | F45: ='Fordeling af arbejdsopgaver'!G39*Kalkuler!$K$27 -> 0 | G45: ='Fordeling af arbejdsopgaver'!H39*Kalkuler!$K$27 -> 0 | H45: ='Fordeling af arbejdsopgaver'!I39*Kalkuler!$K$27 -> 0 | I45: ='Fordeling af arbejdsopgaver'!J39*Kalkuler!$K$27 -> 0 | J45: ='Fordeling af arbejdsopgaver'!K39*Kalkuler!$K$27 -> 0 | K45: ='Fordeling af arbejdsopgaver'!L39*Kalkuler!$K$27 -> 0 | L45: ='Fordeling af arbejdsopgaver'!M39*Kalkuler!$K$27 -> 0 | M45: ='Fordeling af arbejdsopgaver'!N39*Kalkuler!$K$27 -> 0 | N45: ='Fordeling af arbejdsopgaver'!O39*Kalkuler!$K$27 -> 0 | O45: ='Fordeling af arbejdsopgaver'!P39*Kalkuler!$K$27 -> 0 | P45: ='Fordeling af arbejdsopgaver'!Q39*Kalkuler!$K$27 -> 0 | Q45: ='Fordeling af arbejdsopgaver'!R39*Kalkuler!$K$27 -> 0 | R45: ='Fordeling af arbejdsopgaver'!S39*Kalkuler!$K$27 -> 0 | S45: ='Fordeling af arbejdsopgaver'!T39*Kalkuler!$K$27 -> -362.5 | T45: ='Fordeling af arbejdsopgaver'!U39*Kalkuler!$K$27 -> -362.5 | U45: ='Fordeling af arbejdsopgaver'!V39*Kalkuler!$K$27 -> 0 | V45: ='Fordeling af arbejdsopgaver'!W39*Kalkuler!$K$27 -> 0 | W45: ='Fordeling af arbejdsopgaver'!X39*Kalkuler!$K$27 -> 0 | X45: ='Fordeling af arbejdsopgaver'!Y39*Kalkuler!$K$27 -> 0 | Y45: ='Fordeling af arbejdsopgaver'!Z39*Kalkuler!$K$27 -> 0 | Z45: ='Fordeling af arbejdsopgaver'!AA39*Kalkuler!$K$27 -> 0 | AA45: ='Fordeling af arbejdsopgaver'!AB39*Kalkuler!$K$27 -> 0 | AC45: Pløjning med pakning
B46: Jorbearb. Før såning | S46: 0.5 | T46: 0.5
B47: Afgrødeetabl. (såning, lægning o.l.) | D47: ='Fordeling af arbejdsopgaver'!E40*(Kalkuler!$K$15+Kalkuler!$K$29) -> 0 | E47: ='Fordeling af arbejdsopgaver'!F40*(Kalkuler!$K$15+Kalkuler!$K$29) -> 0 | F47: ='Fordeling af arbejdsopgaver'!G40*(Kalkuler!$K$15+Kalkuler!$K$29) -> 0 | G47: ='Fordeling af arbejdsopgaver'!H40*(Kalkuler!$K$15+Kalkuler!$K$29) -> 0 | H47: ='Fordeling af arbejdsopgaver'!I40*(Kalkuler!$K$15+Kalkuler!$K$29) -> 0 | I47: ='Fordeling af arbejdsopgaver'!J40*(Kalkuler!$K$15+Kalkuler!$K$29) -> 0 | J47: ='Fordeling af arbejdsopgaver'!K40*(Kalkuler!$K$15+Kalkuler!$K$29) -> 0 | K47: ='Fordeling af arbejdsopgaver'!L40*(Kalkuler!$K$15+Kalkuler!$K$29) -> 0 | L47: ='Fordeling af arbejdsopgaver'!M40*(Kalkuler!$K$15+Kalkuler!$K$29) -> 0 | M47: ='Fordeling af arbejdsopgaver'!N40*(Kalkuler!$K$15+Kalkuler!$K$29) -> 0 | N47: ='Fordeling af arbejdsopgaver'!O40*(Kalkuler!$K$15+Kalkuler!$K$29) -> 0 | O47: ='Fordeling af arbejdsopgaver'!P40*(Kalkuler!$K$15+Kalkuler!$K$29) -> 0 | P47: ='Fordeling af arbejdsopgaver'!Q40*(Kalkuler!$K$15+Kalkuler!$K$29) -> 0 | Q47: ='Fordeling af arbejdsopgaver'!R40*(Kalkuler!$K$15+Kalkuler!$K$29) -> 0 | R47: ='Fordeling af arbejdsopgaver'!S40*(Kalkuler!$K$15+Kalkuler!$K$29) -> 0 | S47: ='Fordeling af arbejdsopgaver'!T40*(Kalkuler!$K$15+Kalkuler!$K$29) -> -528 | T47: ='Fordeling af arbejdsopgaver'!U40*(Kalkuler!$K$15+Kalkuler!$K$29) -> -528 | U47: ='Fordeling af arbejdsopgaver'!V40*(Kalkuler!$K$15+Kalkuler!$K$29) -> 0 | V47: ='Fordeling af arbejdsopgaver'!W40*(Kalkuler!$K$15+Kalkuler!$K$29) -> 0 | W47: ='Fordeling af arbejdsopgaver'!X40*(Kalkuler!$K$15+Kalkuler!$K$29) -> 0 | X47: ='Fordeling af arbejdsopgaver'!Y40*(Kalkuler!$K$15+Kalkuler!$K$29) -> 0 | Y47: ='Fordeling af arbejdsopgaver'!Z40*(Kalkuler!$K$15+Kalkuler!$K$29) -> 0 | Z47: ='Fordeling af arbejdsopgaver'!AA40*(Kalkuler!$K$15+Kalkuler!$K$29) -> 0 | AA47: ='Fordeling af arbejdsopgaver'!AB40*(Kalkuler!$K$15+Kalkuler!$K$29) -> 0 | AC47: Udsæd, Komb. harvning og såning
B48: Gødskning (handelsgødning) | D48: ='Fordeling af arbejdsopgaver'!E42*(Kalkuler!$K$16+Kalkuler!$K$17+Kalkuler!$K$18+Kalkuler!$K$28) -> 0 | E48: ='Fordeling af arbejdsopgaver'!F42*(Kalkuler!$K$16+Kalkuler!$K$17+Kalkuler!$K$18+Kalkuler!$K$28) -> 0 | F48: ='Fordeling af arbejdsopgaver'!G42*(Kalkuler!$K$16+Kalkuler!$K$17+Kalkuler!$K$18+Kalkuler!$K$28) -> 0 | G48: ='Fordeling af arbejdsopgaver'!H42*(Kalkuler!$K$16+Kalkuler!$K$17+Kalkuler!$K$18+Kalkuler!$K$28) -> 0 | H48: ='Fordeling af arbejdsopgaver'!I42*(Kalkuler!$K$16+Kalkuler!$K$17+Kalkuler!$K$18+Kalkuler!$K$28) -> 0 | I48: ='Fordeling af arbejdsopgaver'!J42*(Kalkuler!$K$16+Kalkuler!$K$17+Kalkuler!$K$18+Kalkuler!$K$28) -> -5845 | J48: ='Fordeling af arbejdsopgaver'!K42*(Kalkuler!$K$16+Kalkuler!$K$17+Kalkuler!$K$18+Kalkuler!$K$28) -> 0 | K48: ='Fordeling af arbejdsopgaver'!L42*(Kalkuler!$K$16+Kalkuler!$K$17+Kalkuler!$K$18+Kalkuler!$K$28) -> 0 | L48: ='Fordeling af arbejdsopgaver'!M42*(Kalkuler!$K$16+Kalkuler!$K$17+Kalkuler!$K$18+Kalkuler!$K$28) -> 0 | M48: ='Fordeling af arbejdsopgaver'!N42*(Kalkuler!$K$16+Kalkuler!$K$17+Kalkuler!$K$18+Kalkuler!$K$28) -> 0 | N48: ='Fordeling af arbejdsopgaver'!O42*(Kalkuler!$K$16+Kalkuler!$K$17+Kalkuler!$K$18+Kalkuler!$K$28) -> 0 | O48: ='Fordeling af arbejdsopgaver'!P42*(Kalkuler!$K$16+Kalkuler!$K$17+Kalkuler!$K$18+Kalkuler!$K$28) -> 0 | P48: ='Fordeling af arbejdsopgaver'!Q42*(Kalkuler!$K$16+Kalkuler!$K$17+Kalkuler!$K$18+Kalkuler!$K$28) -> 0 | Q48: ='Fordeling af arbejdsopgaver'!R42*(Kalkuler!$K$16+Kalkuler!$K$17+Kalkuler!$K$18+Kalkuler!$K$28) -> 0 | R48: ='Fordeling af arbejdsopgaver'!S42*(Kalkuler!$K$16+Kalkuler!$K$17+Kalkuler!$K$18+Kalkuler!$K$28) -> 0 | S48: ='Fordeling af arbejdsopgaver'!T42*(Kalkuler!$K$16+Kalkuler!$K$17+Kalkuler!$K$18+Kalkuler!$K$28) -> 0 | T48: ='Fordeling af arbejdsopgaver'!U42*(Kalkuler!$K$16+Kalkuler!$K$17+Kalkuler!$K$18+Kalkuler!$K$28) -> 0 | U48: ='Fordeling af arbejdsopgaver'!V42*(Kalkuler!$K$16+Kalkuler!$K$17+Kalkuler!$K$18+Kalkuler!$K$28) -> 0 | V48: ='Fordeling af arbejdsopgaver'!W42*(Kalkuler!$K$16+Kalkuler!$K$17+Kalkuler!$K$18+Kalkuler!$K$28) -> 0 | W48: ='Fordeling af arbejdsopgaver'!X42*(Kalkuler!$K$16+Kalkuler!$K$17+Kalkuler!$K$18+Kalkuler!$K$28) -> 0 | X48: ='Fordeling af arbejdsopgaver'!Y42*(Kalkuler!$K$16+Kalkuler!$K$17+Kalkuler!$K$18+Kalkuler!$K$28) -> 0 | Y48: ='Fordeling af arbejdsopgaver'!Z42*(Kalkuler!$K$16+Kalkuler!$K$17+Kalkuler!$K$18+Kalkuler!$K$28) -> 0 | Z48: ='Fordeling af arbejdsopgaver'!AA42*(Kalkuler!$K$16+Kalkuler!$K$17+Kalkuler!$K$18+Kalkuler!$K$28) -> 0 | AA48: ='Fordeling af arbejdsopgaver'!AB42*(Kalkuler!$K$16+Kalkuler!$K$17+Kalkuler!$K$18+Kalkuler!$K$28) -> 0 | AC48: Handelsgødning Kvælstof, Handelsgødning Fosfor, Handelsgødning Kalium, Gødningsspredning
B49: Planteværn | D49: ='Fordeling af arbejdsopgaver'!E43*(Kalkuler!$K$19+Kalkuler!$K$20+Kalkuler!$K$21+Kalkuler!$K$22+Kalkuler!$K$30) -> 0 | E49: ='Fordeling af arbejdsopgaver'!F43*(Kalkuler!$K$19+Kalkuler!$K$20+Kalkuler!$K$21+Kalkuler!$K$22+Kalkuler!$K$30) -> 0 | F49: ='Fordeling af arbejdsopgaver'!G43*(Kalkuler!$K$19+Kalkuler!$K$20+Kalkuler!$K$21+Kalkuler!$K$22+Kalkuler!$K$30) -> 0 | G49: ='Fordeling af arbejdsopgaver'!H43*(Kalkuler!$K$19+Kalkuler!$K$20+Kalkuler!$K$21+Kalkuler!$K$22+Kalkuler!$K$30) -> 0 | H49: ='Fordeling af arbejdsopgaver'!I43*(Kalkuler!$K$19+Kalkuler!$K$20+Kalkuler!$K$21+Kalkuler!$K$22+Kalkuler!$K$30) -> 0 | I49: ='Fordeling af arbejdsopgaver'!J43*(Kalkuler!$K$19+Kalkuler!$K$20+Kalkuler!$K$21+Kalkuler!$K$22+Kalkuler!$K$30) -> 0 | J49: ='Fordeling af arbejdsopgaver'!K43*(Kalkuler!$K$19+Kalkuler!$K$20+Kalkuler!$K$21+Kalkuler!$K$22+Kalkuler!$K$30) -> -159.125 | K49: ='Fordeling af arbejdsopgaver'!L43*(Kalkuler!$K$19+Kalkuler!$K$20+Kalkuler!$K$21+Kalkuler!$K$22+Kalkuler!$K$30) -> -159.125 | L49: ='Fordeling af arbejdsopgaver'!M43*(Kalkuler!$K$19+Kalkuler!$K$20+Kalkuler!$K$21+Kalkuler!$K$22+Kalkuler!$K$30) -> -318.25 | M49: ='Fordeling af arbejdsopgaver'!N43*(Kalkuler!$K$19+Kalkuler!$K$20+Kalkuler!$K$21+Kalkuler!$K$22+Kalkuler!$K$30) -> -318.25 | N49: ='Fordeling af arbejdsopgaver'!O43*(Kalkuler!$K$19+Kalkuler!$K$20+Kalkuler!$K$21+Kalkuler!$K$22+Kalkuler!$K$30) -> 0 | O49: ='Fordeling af arbejdsopgaver'!P43*(Kalkuler!$K$19+Kalkuler!$K$20+Kalkuler!$K$21+Kalkuler!$K$22+Kalkuler!$K$30) -> 0 | P49: ='Fordeling af arbejdsopgaver'!Q43*(Kalkuler!$K$19+Kalkuler!$K$20+Kalkuler!$K$21+Kalkuler!$K$22+Kalkuler!$K$30) -> 0 | Q49: ='Fordeling af arbejdsopgaver'!R43*(Kalkuler!$K$19+Kalkuler!$K$20+Kalkuler!$K$21+Kalkuler!$K$22+Kalkuler!$K$30) -> 0 | R49: ='Fordeling af arbejdsopgaver'!S43*(Kalkuler!$K$19+Kalkuler!$K$20+Kalkuler!$K$21+Kalkuler!$K$22+Kalkuler!$K$30) -> 0 | S49: ='Fordeling af arbejdsopgaver'!T43*(Kalkuler!$K$19+Kalkuler!$K$20+Kalkuler!$K$21+Kalkuler!$K$22+Kalkuler!$K$30) -> 0 | T49: ='Fordeling af arbejdsopgaver'!U43*(Kalkuler!$K$19+Kalkuler!$K$20+Kalkuler!$K$21+Kalkuler!$K$22+Kalkuler!$K$30) -> 0 | U49: ='Fordeling af arbejdsopgaver'!V43*(Kalkuler!$K$19+Kalkuler!$K$20+Kalkuler!$K$21+Kalkuler!$K$22+Kalkuler!$K$30) -> 0 | V49: ='Fordeling af arbejdsopgaver'!W43*(Kalkuler!$K$19+Kalkuler!$K$20+Kalkuler!$K$21+Kalkuler!$K$22+Kalkuler!$K$30) -> -318.25 | W49: ='Fordeling af arbejdsopgaver'!X43*(Kalkuler!$K$19+Kalkuler!$K$20+Kalkuler!$K$21+Kalkuler!$K$22+Kalkuler!$K$30) -> 0 | X49: ='Fordeling af arbejdsopgaver'!Y43*(Kalkuler!$K$19+Kalkuler!$K$20+Kalkuler!$K$21+Kalkuler!$K$22+Kalkuler!$K$30) -> 0 | Y49: ='Fordeling af arbejdsopgaver'!Z43*(Kalkuler!$K$19+Kalkuler!$K$20+Kalkuler!$K$21+Kalkuler!$K$22+Kalkuler!$K$30) -> 0 | Z49: ='Fordeling af arbejdsopgaver'!AA43*(Kalkuler!$K$19+Kalkuler!$K$20+Kalkuler!$K$21+Kalkuler!$K$22+Kalkuler!$K$30) -> 0 | AA49: ='Fordeling af arbejdsopgaver'!AB43*(Kalkuler!$K$19+Kalkuler!$K$20+Kalkuler!$K$21+Kalkuler!$K$22+Kalkuler!$K$30) -> 0 | AC49: Ukrudt, sygdom, skadedyr, vækstregulering, sprøjtning
B50: I alt | C50: =SUM(C45:C49) -> 0 | D50: 0 | E50: 0 | F50: 0 | G50: 0 | H50: 0 | I50: -5845 | J50: -159.125 | K50: -159.125 | L50: -318.25 | M50: -318.25 | N50: 0 | O50: 0 | P50: 0 | Q50: 0 | R50: 0 | S50: -890 | T50: -890 | U50: 0 | V50: -318.25 | W50: 0 | X50: 0 | Y50: 0 | Z50: 0 | AA50: 0
B51: År til dato
A52: Vintersæd (hvede) | B52: Pløjning | D52: ='Fordeling af arbejdsopgaver'!E45*Kalkuler!$AO$27 -> 0 | E52: ='Fordeling af arbejdsopgaver'!F45*Kalkuler!$AO$27 -> 0 | F52: ='Fordeling af arbejdsopgaver'!G45*Kalkuler!$AO$27 -> 0 | G52: ='Fordeling af arbejdsopgaver'!H45*Kalkuler!$AO$27 -> 0 | H52: ='Fordeling af arbejdsopgaver'!I45*Kalkuler!$AO$27 -> 0 | I52: ='Fordeling af arbejdsopgaver'!J45*Kalkuler!$AO$27 -> 0 | J52: ='Fordeling af arbejdsopgaver'!K45*Kalkuler!$AO$27 -> 0 | K52: ='Fordeling af arbejdsopgaver'!L45*Kalkuler!$AO$27 -> 0 | L52: ='Fordeling af arbejdsopgaver'!M45*Kalkuler!$AO$27 -> 0 | M52: ='Fordeling af arbejdsopgaver'!N45*Kalkuler!$AO$27 -> 0 | N52: ='Fordeling af arbejdsopgaver'!O45*Kalkuler!$AO$27 -> 0 | O52: ='Fordeling af arbejdsopgaver'!P45*Kalkuler!$AO$27 -> 0 | P52: ='Fordeling af arbejdsopgaver'!Q45*Kalkuler!$AO$27 -> 0 | Q52: ='Fordeling af arbejdsopgaver'!R45*Kalkuler!$AO$27 -> 0 | R52: ='Fordeling af arbejdsopgaver'!S45*Kalkuler!$AO$27 -> 0 | S52: ='Fordeling af arbejdsopgaver'!T45*Kalkuler!$AO$27 -> -181.25 | T52: ='Fordeling af arbejdsopgaver'!U45*Kalkuler!$AO$27 -> -362.5 | U52: ='Fordeling af arbejdsopgaver'!V45*Kalkuler!$AO$27 -> -181.25 | V52: ='Fordeling af arbejdsopgaver'!W45*Kalkuler!$AO$27 -> 0 | W52: ='Fordeling af arbejdsopgaver'!X45*Kalkuler!$AO$27 -> 0 | X52: ='Fordeling af arbejdsopgaver'!Y45*Kalkuler!$AO$27 -> 0 | Y52: ='Fordeling af arbejdsopgaver'!Z45*Kalkuler!$AO$27 -> 0 | Z52: ='Fordeling af arbejdsopgaver'!AA45*Kalkuler!$AO$27 -> 0 | AA52: ='Fordeling af arbejdsopgaver'!AB45*Kalkuler!$AO$27 -> 0
B53: Jorbearb. Før såning
B54: Afgrødeetabl. (såning, lægning o.l.) | D54: ='Fordeling af arbejdsopgaver'!E47*(Kalkuler!$AO$15+Kalkuler!$AO$29) -> 0 | E54: ='Fordeling af arbejdsopgaver'!F47*(Kalkuler!$AO$15+Kalkuler!$AO$29) -> 0 | F54: ='Fordeling af arbejdsopgaver'!G47*(Kalkuler!$AO$15+Kalkuler!$AO$29) -> 0 | G54: ='Fordeling af arbejdsopgaver'!H47*(Kalkuler!$AO$15+Kalkuler!$AO$29) -> 0 | H54: ='Fordeling af arbejdsopgaver'!I47*(Kalkuler!$AO$15+Kalkuler!$AO$29) -> 0 | I54: ='Fordeling af arbejdsopgaver'!J47*(Kalkuler!$AO$15+Kalkuler!$AO$29) -> 0 | J54: ='Fordeling af arbejdsopgaver'!K47*(Kalkuler!$AO$15+Kalkuler!$AO$29) -> 0 | K54: ='Fordeling af arbejdsopgaver'!L47*(Kalkuler!$AO$15+Kalkuler!$AO$29) -> 0 | L54: ='Fordeling af arbejdsopgaver'!M47*(Kalkuler!$AO$15+Kalkuler!$AO$29) -> 0 | M54: ='Fordeling af arbejdsopgaver'!N47*(Kalkuler!$AO$15+Kalkuler!$AO$29) -> 0 | N54: ='Fordeling af arbejdsopgaver'!O47*(Kalkuler!$AO$15+Kalkuler!$AO$29) -> 0 | O54: ='Fordeling af arbejdsopgaver'!P47*(Kalkuler!$AO$15+Kalkuler!$AO$29) -> 0 | P54: ='Fordeling af arbejdsopgaver'!Q47*(Kalkuler!$AO$15+Kalkuler!$AO$29) -> 0 | Q54: ='Fordeling af arbejdsopgaver'!R47*(Kalkuler!$AO$15+Kalkuler!$AO$29) -> 0 | R54: ='Fordeling af arbejdsopgaver'!S47*(Kalkuler!$AO$15+Kalkuler!$AO$29) -> 0 | S54: ='Fordeling af arbejdsopgaver'!T47*(Kalkuler!$AO$15+Kalkuler!$AO$29) -> 0 | T54: ='Fordeling af arbejdsopgaver'!U47*(Kalkuler!$AO$15+Kalkuler!$AO$29) -> -515 | U54: ='Fordeling af arbejdsopgaver'!V47*(Kalkuler!$AO$15+Kalkuler!$AO$29) -> -515 | V54: ='Fordeling af arbejdsopgaver'!W47*(Kalkuler!$AO$15+Kalkuler!$AO$29) -> 0 | W54: ='Fordeling af arbejdsopgaver'!X47*(Kalkuler!$AO$15+Kalkuler!$AO$29) -> 0 | X54: ='Fordeling af arbejdsopgaver'!Y47*(Kalkuler!$AO$15+Kalkuler!$AO$29) -> 0 | Y54: ='Fordeling af arbejdsopgaver'!Z47*(Kalkuler!$AO$15+Kalkuler!$AO$29) -> 0 | Z54: ='Fordeling af arbejdsopgaver'!AA47*(Kalkuler!$AO$15+Kalkuler!$AO$29) -> 0 | AA54: ='Fordeling af arbejdsopgaver'!AB47*(Kalkuler!$AO$15+Kalkuler!$AO$29) -> 0
B55: Gødskning (handelsgødning) | D55: ='Fordeling af arbejdsopgaver'!E48*(Kalkuler!$AO$16+Kalkuler!$AO$17+Kalkuler!$AO$18+Kalkuler!$AO$28) -> 0 | E55: ='Fordeling af arbejdsopgaver'!F48*(Kalkuler!$AO$16+Kalkuler!$AO$17+Kalkuler!$AO$18+Kalkuler!$AO$28) -> 0 | F55: ='Fordeling af arbejdsopgaver'!G48*(Kalkuler!$AO$16+Kalkuler!$AO$17+Kalkuler!$AO$18+Kalkuler!$AO$28) -> 0 | G55: ='Fordeling af arbejdsopgaver'!H48*(Kalkuler!$AO$16+Kalkuler!$AO$17+Kalkuler!$AO$18+Kalkuler!$AO$28) -> 0 | H55: ='Fordeling af arbejdsopgaver'!I48*(Kalkuler!$AO$16+Kalkuler!$AO$17+Kalkuler!$AO$18+Kalkuler!$AO$28) -> 0 | I55: ='Fordeling af arbejdsopgaver'!J48*(Kalkuler!$AO$16+Kalkuler!$AO$17+Kalkuler!$AO$18+Kalkuler!$AO$28) -> -3304.5 | J55: ='Fordeling af arbejdsopgaver'!K48*(Kalkuler!$AO$16+Kalkuler!$AO$17+Kalkuler!$AO$18+Kalkuler!$AO$28) -> 0 | K55: ='Fordeling af arbejdsopgaver'!L48*(Kalkuler!$AO$16+Kalkuler!$AO$17+Kalkuler!$AO$18+Kalkuler!$AO$28) -> -3304.5 | L55: ='Fordeling af arbejdsopgaver'!M48*(Kalkuler!$AO$16+Kalkuler!$AO$17+Kalkuler!$AO$18+Kalkuler!$AO$28) -> 0 | M55: ='Fordeling af arbejdsopgaver'!N48*(Kalkuler!$AO$16+Kalkuler!$AO$17+Kalkuler!$AO$18+Kalkuler!$AO$28) -> 0 | N55: ='Fordeling af arbejdsopgaver'!O48*(Kalkuler!$AO$16+Kalkuler!$AO$17+Kalkuler!$AO$18+Kalkuler!$AO$28) -> 0 | O55: ='Fordeling af arbejdsopgaver'!P48*(Kalkuler!$AO$16+Kalkuler!$AO$17+Kalkuler!$AO$18+Kalkuler!$AO$28) -> 0 | P55: ='Fordeling af arbejdsopgaver'!Q48*(Kalkuler!$AO$16+Kalkuler!$AO$17+Kalkuler!$AO$18+Kalkuler!$AO$28) -> 0 | Q55: ='Fordeling af arbejdsopgaver'!R48*(Kalkuler!$AO$16+Kalkuler!$AO$17+Kalkuler!$AO$18+Kalkuler!$AO$28) -> 0 | R55: ='Fordeling af arbejdsopgaver'!S48*(Kalkuler!$AO$16+Kalkuler!$AO$17+Kalkuler!$AO$18+Kalkuler!$AO$28) -> 0 | S55: ='Fordeling af arbejdsopgaver'!T48*(Kalkuler!$AO$16+Kalkuler!$AO$17+Kalkuler!$AO$18+Kalkuler!$AO$28) -> 0 | T55: ='Fordeling af arbejdsopgaver'!U48*(Kalkuler!$AO$16+Kalkuler!$AO$17+Kalkuler!$AO$18+Kalkuler!$AO$28) -> 0 | U55: ='Fordeling af arbejdsopgaver'!V48*(Kalkuler!$AO$16+Kalkuler!$AO$17+Kalkuler!$AO$18+Kalkuler!$AO$28) -> 0 | V55: ='Fordeling af arbejdsopgaver'!W48*(Kalkuler!$AO$16+Kalkuler!$AO$17+Kalkuler!$AO$18+Kalkuler!$AO$28) -> 0 | W55: ='Fordeling af arbejdsopgaver'!X48*(Kalkuler!$AO$16+Kalkuler!$AO$17+Kalkuler!$AO$18+Kalkuler!$AO$28) -> 0 | X55: ='Fordeling af arbejdsopgaver'!Y48*(Kalkuler!$AO$16+Kalkuler!$AO$17+Kalkuler!$AO$18+Kalkuler!$AO$28) -> 0 | Y55: ='Fordeling af arbejdsopgaver'!Z48*(Kalkuler!$AO$16+Kalkuler!$AO$17+Kalkuler!$AO$18+Kalkuler!$AO$28) -> 0 | Z55: ='Fordeling af arbejdsopgaver'!AA48*(Kalkuler!$AO$16+Kalkuler!$AO$17+Kalkuler!$AO$18+Kalkuler!$AO$28) -> 0 | AA55: ='Fordeling af arbejdsopgaver'!AB48*(Kalkuler!$AO$16+Kalkuler!$AO$17+Kalkuler!$AO$18+Kalkuler!$AO$28) -> 0
B56: Planteværn | D56: ='Fordeling af arbejdsopgaver'!E49*(Kalkuler!$AO$19+Kalkuler!$AO$20+Kalkuler!$AO$21+Kalkuler!$AO$22+Kalkuler!$AO$30) -> 0 | E56: ='Fordeling af arbejdsopgaver'!F49*(Kalkuler!$AO$19+Kalkuler!$AO$20+Kalkuler!$AO$21+Kalkuler!$AO$22+Kalkuler!$AO$30) -> 0 | F56: ='Fordeling af arbejdsopgaver'!G49*(Kalkuler!$AO$19+Kalkuler!$AO$20+Kalkuler!$AO$21+Kalkuler!$AO$22+Kalkuler!$AO$30) -> 0 | G56: ='Fordeling af arbejdsopgaver'!H49*(Kalkuler!$AO$19+Kalkuler!$AO$20+Kalkuler!$AO$21+Kalkuler!$AO$22+Kalkuler!$AO$30) -> 0 | H56: ='Fordeling af arbejdsopgaver'!I49*(Kalkuler!$AO$19+Kalkuler!$AO$20+Kalkuler!$AO$21+Kalkuler!$AO$22+Kalkuler!$AO$30) -> 0 | I56: ='Fordeling af arbejdsopgaver'!J49*(Kalkuler!$AO$19+Kalkuler!$AO$20+Kalkuler!$AO$21+Kalkuler!$AO$22+Kalkuler!$AO$30) -> 0 | J56: ='Fordeling af arbejdsopgaver'!K49*(Kalkuler!$AO$19+Kalkuler!$AO$20+Kalkuler!$AO$21+Kalkuler!$AO$22+Kalkuler!$AO$30) -> -176.65 | K56: ='Fordeling af arbejdsopgaver'!L49*(Kalkuler!$AO$19+Kalkuler!$AO$20+Kalkuler!$AO$21+Kalkuler!$AO$22+Kalkuler!$AO$30) -> -176.65 | L56: ='Fordeling af arbejdsopgaver'!M49*(Kalkuler!$AO$19+Kalkuler!$AO$20+Kalkuler!$AO$21+Kalkuler!$AO$22+Kalkuler!$AO$30) -> -176.65 | M56: ='Fordeling af arbejdsopgaver'!N49*(Kalkuler!$AO$19+Kalkuler!$AO$20+Kalkuler!$AO$21+Kalkuler!$AO$22+Kalkuler!$AO$30) -> -176.65 | N56: ='Fordeling af arbejdsopgaver'!O49*(Kalkuler!$AO$19+Kalkuler!$AO$20+Kalkuler!$AO$21+Kalkuler!$AO$22+Kalkuler!$AO$30) -> -353.3 | O56: ='Fordeling af arbejdsopgaver'!P49*(Kalkuler!$AO$19+Kalkuler!$AO$20+Kalkuler!$AO$21+Kalkuler!$AO$22+Kalkuler!$AO$30) -> -353.3 | P56: ='Fordeling af arbejdsopgaver'!Q49*(Kalkuler!$AO$19+Kalkuler!$AO$20+Kalkuler!$AO$21+Kalkuler!$AO$22+Kalkuler!$AO$30) -> 0 | Q56: ='Fordeling af arbejdsopgaver'!R49*(Kalkuler!$AO$19+Kalkuler!$AO$20+Kalkuler!$AO$21+Kalkuler!$AO$22+Kalkuler!$AO$30) -> 0 | R56: ='Fordeling af arbejdsopgaver'!S49*(Kalkuler!$AO$19+Kalkuler!$AO$20+Kalkuler!$AO$21+Kalkuler!$AO$22+Kalkuler!$AO$30) -> 0 | S56: ='Fordeling af arbejdsopgaver'!T49*(Kalkuler!$AO$19+Kalkuler!$AO$20+Kalkuler!$AO$21+Kalkuler!$AO$22+Kalkuler!$AO$30) -> 0 | T56: ='Fordeling af arbejdsopgaver'!U49*(Kalkuler!$AO$19+Kalkuler!$AO$20+Kalkuler!$AO$21+Kalkuler!$AO$22+Kalkuler!$AO$30) -> 0 | U56: ='Fordeling af arbejdsopgaver'!V49*(Kalkuler!$AO$19+Kalkuler!$AO$20+Kalkuler!$AO$21+Kalkuler!$AO$22+Kalkuler!$AO$30) -> 0 | V56: ='Fordeling af arbejdsopgaver'!W49*(Kalkuler!$AO$19+Kalkuler!$AO$20+Kalkuler!$AO$21+Kalkuler!$AO$22+Kalkuler!$AO$30) -> -353.3 | W56: ='Fordeling af arbejdsopgaver'!X49*(Kalkuler!$AO$19+Kalkuler!$AO$20+Kalkuler!$AO$21+Kalkuler!$AO$22+Kalkuler!$AO$30) -> 0 | X56: ='Fordeling af arbejdsopgaver'!Y49*(Kalkuler!$AO$19+Kalkuler!$AO$20+Kalkuler!$AO$21+Kalkuler!$AO$22+Kalkuler!$AO$30) -> 0 | Y56: ='Fordeling af arbejdsopgaver'!Z49*(Kalkuler!$AO$19+Kalkuler!$AO$20+Kalkuler!$AO$21+Kalkuler!$AO$22+Kalkuler!$AO$30) -> 0 | Z56: ='Fordeling af arbejdsopgaver'!AA49*(Kalkuler!$AO$19+Kalkuler!$AO$20+Kalkuler!$AO$21+Kalkuler!$AO$22+Kalkuler!$AO$30) -> 0 | AA56: ='Fordeling af arbejdsopgaver'!AB49*(Kalkuler!$AO$19+Kalkuler!$AO$20+Kalkuler!$AO$21+Kalkuler!$AO$22+Kalkuler!$AO$30) -> 0
B57: I alt | C57: =SUM(C52:C56) -> 0 | D57: 0 | E57: 0 | F57: 0 | G57: 0 | H57: 0 | I57: -3304.5 | J57: -176.65 | K57: -3481.15 | L57: -176.65 | M57: -176.65 | N57: -353.3 | O57: -353.3 | P57: 0 | Q57: 0 | R57: 0 | S57: -181.25 | T57: -877.5 | U57: -696.25 | V57: -353.3 | W57: 0 | X57: 0 | Y57: 0 | Z57: 0 | AA57: 0
B58: År til dato
A59: Vårsæd (byg) | B59: Pløjning | D59: ='Fordeling af arbejdsopgaver'!E51*Kalkuler!$E$27 -> 0 | E59: ='Fordeling af arbejdsopgaver'!F51*Kalkuler!$E$27 -> 0 | F59: ='Fordeling af arbejdsopgaver'!G51*Kalkuler!$E$27 -> 0 | G59: ='Fordeling af arbejdsopgaver'!H51*Kalkuler!$E$27 -> -362.5 | H59: ='Fordeling af arbejdsopgaver'!I51*Kalkuler!$E$27 -> -362.5 | I59: ='Fordeling af arbejdsopgaver'!J51*Kalkuler!$E$27 -> 0 | J59: ='Fordeling af arbejdsopgaver'!K51*Kalkuler!$E$27 -> 0 | K59: ='Fordeling af arbejdsopgaver'!L51*Kalkuler!$E$27 -> 0 | L59: ='Fordeling af arbejdsopgaver'!M51*Kalkuler!$E$27 -> 0 | M59: ='Fordeling af arbejdsopgaver'!N51*Kalkuler!$E$27 -> 0 | N59: ='Fordeling af arbejdsopgaver'!O51*Kalkuler!$E$27 -> 0 | O59: ='Fordeling af arbejdsopgaver'!P51*Kalkuler!$E$27 -> 0 | P59: ='Fordeling af arbejdsopgaver'!Q51*Kalkuler!$E$27 -> 0 | Q59: ='Fordeling af arbejdsopgaver'!R51*Kalkuler!$E$27 -> 0 | R59: ='Fordeling af arbejdsopgaver'!S51*Kalkuler!$E$27 -> 0 | S59: ='Fordeling af arbejdsopgaver'!T51*Kalkuler!$E$27 -> 0 | T59: ='Fordeling af arbejdsopgaver'!U51*Kalkuler!$E$27 -> 0 | U59: ='Fordeling af arbejdsopgaver'!V51*Kalkuler!$E$27 -> 0 | V59: ='Fordeling af arbejdsopgaver'!W51*Kalkuler!$E$27 -> 0 | W59: ='Fordeling af arbejdsopgaver'!X51*Kalkuler!$E$27 -> 0 | X59: ='Fordeling af arbejdsopgaver'!Y51*Kalkuler!$E$27 -> 0 | Y59: ='Fordeling af arbejdsopgaver'!Z51*Kalkuler!$E$27 -> 0 | Z59: ='Fordeling af arbejdsopgaver'!AA51*Kalkuler!$E$27 -> 0 | AA59: ='Fordeling af arbejdsopgaver'!AB51*Kalkuler!$E$27 -> 0
B60: Jorbearb. Før såning | I60: 0.5 | J60: 0.5
B61: Afgrødeetabl. (såning, lægning o.l.) | D61: ='Fordeling af arbejdsopgaver'!E52*(Kalkuler!$E$15+Kalkuler!$E$29) -> 0 | E61: ='Fordeling af arbejdsopgaver'!F52*(Kalkuler!$E$15+Kalkuler!$E$29) -> 0 | F61: ='Fordeling af arbejdsopgaver'!G52*(Kalkuler!$E$15+Kalkuler!$E$29) -> 0 | G61: ='Fordeling af arbejdsopgaver'!H52*(Kalkuler!$E$15+Kalkuler!$E$29) -> 0 | H61: ='Fordeling af arbejdsopgaver'!I52*(Kalkuler!$E$15+Kalkuler!$E$29) -> 0 | I61: ='Fordeling af arbejdsopgaver'!J52*(Kalkuler!$E$15+Kalkuler!$E$29) -> -480 | J61: ='Fordeling af arbejdsopgaver'!K52*(Kalkuler!$E$15+Kalkuler!$E$29) -> -480 | K61: ='Fordeling af arbejdsopgaver'!L52*(Kalkuler!$E$15+Kalkuler!$E$29) -> 0 | L61: ='Fordeling af arbejdsopgaver'!M52*(Kalkuler!$E$15+Kalkuler!$E$29) -> 0 | M61: ='Fordeling af arbejdsopgaver'!N52*(Kalkuler!$E$15+Kalkuler!$E$29) -> 0 | N61: ='Fordeling af arbejdsopgaver'!O52*(Kalkuler!$E$15+Kalkuler!$E$29) -> 0 | O61: ='Fordeling af arbejdsopgaver'!P52*(Kalkuler!$E$15+Kalkuler!$E$29) -> 0 | P61: ='Fordeling af arbejdsopgaver'!Q52*(Kalkuler!$E$15+Kalkuler!$E$29) -> 0 | Q61: ='Fordeling af arbejdsopgaver'!R52*(Kalkuler!$E$15+Kalkuler!$E$29) -> 0 | R61: ='Fordeling af arbejdsopgaver'!S52*(Kalkuler!$E$15+Kalkuler!$E$29) -> 0 | S61: ='Fordeling af arbejdsopgaver'!T52*(Kalkuler!$E$15+Kalkuler!$E$29) -> 0 | T61: ='Fordeling af arbejdsopgaver'!U52*(Kalkuler!$E$15+Kalkuler!$E$29) -> 0 | U61: ='Fordeling af arbejdsopgaver'!V52*(Kalkuler!$E$15+Kalkuler!$E$29) -> 0 | V61: ='Fordeling af arbejdsopgaver'!W52*(Kalkuler!$E$15+Kalkuler!$E$29) -> 0 | W61: ='Fordeling af arbejdsopgaver'!X52*(Kalkuler!$E$15+Kalkuler!$E$29) -> 0 | X61: ='Fordeling af arbejdsopgaver'!Y52*(Kalkuler!$E$15+Kalkuler!$E$29) -> 0 | Y61: ='Fordeling af arbejdsopgaver'!Z52*(Kalkuler!$E$15+Kalkuler!$E$29) -> 0 | Z61: ='Fordeling af arbejdsopgaver'!AA52*(Kalkuler!$E$15+Kalkuler!$E$29) -> 0 | AA61: ='Fordeling af arbejdsopgaver'!AB52*(Kalkuler!$E$15+Kalkuler!$E$29) -> 0
B62: Gødskning (handelsgødning) | D62: ='Fordeling af arbejdsopgaver'!E54*(Kalkuler!$E$16+Kalkuler!$E$17+Kalkuler!$E$18+Kalkuler!$E$28) -> 0 | E62: ='Fordeling af arbejdsopgaver'!F54*(Kalkuler!$E$16+Kalkuler!$E$17+Kalkuler!$E$18+Kalkuler!$E$28) -> 0 | F62: ='Fordeling af arbejdsopgaver'!G54*(Kalkuler!$E$16+Kalkuler!$E$17+Kalkuler!$E$18+Kalkuler!$E$28) -> 0 | G62: ='Fordeling af arbejdsopgaver'!H54*(Kalkuler!$E$16+Kalkuler!$E$17+Kalkuler!$E$18+Kalkuler!$E$28) -> 0 | H62: ='Fordeling af arbejdsopgaver'!I54*(Kalkuler!$E$16+Kalkuler!$E$17+Kalkuler!$E$18+Kalkuler!$E$28) -> 0 | I62: ='Fordeling af arbejdsopgaver'!J54*(Kalkuler!$E$16+Kalkuler!$E$17+Kalkuler!$E$18+Kalkuler!$E$28) -> 0 | J62: ='Fordeling af arbejdsopgaver'!K54*(Kalkuler!$E$16+Kalkuler!$E$17+Kalkuler!$E$18+Kalkuler!$E$28) -> -2402 | K62: ='Fordeling af arbejdsopgaver'!L54*(Kalkuler!$E$16+Kalkuler!$E$17+Kalkuler!$E$18+Kalkuler!$E$28) -> -2402 | L62: ='Fordeling af arbejdsopgaver'!M54*(Kalkuler!$E$16+Kalkuler!$E$17+Kalkuler!$E$18+Kalkuler!$E$28) -> 0 | M62: ='Fordeling af arbejdsopgaver'!N54*(Kalkuler!$E$16+Kalkuler!$E$17+Kalkuler!$E$18+Kalkuler!$E$28) -> 0 | N62: ='Fordeling af arbejdsopgaver'!O54*(Kalkuler!$E$16+Kalkuler!$E$17+Kalkuler!$E$18+Kalkuler!$E$28) -> 0 | O62: ='Fordeling af arbejdsopgaver'!P54*(Kalkuler!$E$16+Kalkuler!$E$17+Kalkuler!$E$18+Kalkuler!$E$28) -> 0 | P62: ='Fordeling af arbejdsopgaver'!Q54*(Kalkuler!$E$16+Kalkuler!$E$17+Kalkuler!$E$18+Kalkuler!$E$28) -> 0 | Q62: ='Fordeling af arbejdsopgaver'!R54*(Kalkuler!$E$16+Kalkuler!$E$17+Kalkuler!$E$18+Kalkuler!$E$28) -> 0 | R62: ='Fordeling af arbejdsopgaver'!S54*(Kalkuler!$E$16+Kalkuler!$E$17+Kalkuler!$E$18+Kalkuler!$E$28) -> 0 | S62: ='Fordeling af arbejdsopgaver'!T54*(Kalkuler!$E$16+Kalkuler!$E$17+Kalkuler!$E$18+Kalkuler!$E$28) -> 0 | T62: ='Fordeling af arbejdsopgaver'!U54*(Kalkuler!$E$16+Kalkuler!$E$17+Kalkuler!$E$18+Kalkuler!$E$28) -> 0 | U62: ='Fordeling af arbejdsopgaver'!V54*(Kalkuler!$E$16+Kalkuler!$E$17+Kalkuler!$E$18+Kalkuler!$E$28) -> 0 | V62: ='Fordeling af arbejdsopgaver'!W54*(Kalkuler!$E$16+Kalkuler!$E$17+Kalkuler!$E$18+Kalkuler!$E$28) -> 0 | W62: ='Fordeling af arbejdsopgaver'!X54*(Kalkuler!$E$16+Kalkuler!$E$17+Kalkuler!$E$18+Kalkuler!$E$28) -> 0 | X62: ='Fordeling af arbejdsopgaver'!Y54*(Kalkuler!$E$16+Kalkuler!$E$17+Kalkuler!$E$18+Kalkuler!$E$28) -> 0 | Y62: ='Fordeling af arbejdsopgaver'!Z54*(Kalkuler!$E$16+Kalkuler!$E$17+Kalkuler!$E$18+Kalkuler!$E$28) -> 0 | Z62: ='Fordeling af arbejdsopgaver'!AA54*(Kalkuler!$E$16+Kalkuler!$E$17+Kalkuler!$E$18+Kalkuler!$E$28) -> 0 | AA62: ='Fordeling af arbejdsopgaver'!AB54*(Kalkuler!$E$16+Kalkuler!$E$17+Kalkuler!$E$18+Kalkuler!$E$28) -> 0
B63: Planteværn | D63: ='Fordeling af arbejdsopgaver'!E55*(Kalkuler!$E$19+Kalkuler!$E$20+Kalkuler!$E$21+Kalkuler!$E$22+Kalkuler!$E$30) -> 0 | E63: ='Fordeling af arbejdsopgaver'!F55*(Kalkuler!$E$19+Kalkuler!$E$20+Kalkuler!$E$21+Kalkuler!$E$22+Kalkuler!$E$30) -> 0 | F63: ='Fordeling af arbejdsopgaver'!G55*(Kalkuler!$E$19+Kalkuler!$E$20+Kalkuler!$E$21+Kalkuler!$E$22+Kalkuler!$E$30) -> 0 | G63: ='Fordeling af arbejdsopgaver'!H55*(Kalkuler!$E$19+Kalkuler!$E$20+Kalkuler!$E$21+Kalkuler!$E$22+Kalkuler!$E$30) -> 0 | H63: ='Fordeling af arbejdsopgaver'!I55*(Kalkuler!$E$19+Kalkuler!$E$20+Kalkuler!$E$21+Kalkuler!$E$22+Kalkuler!$E$30) -> 0 | I63: ='Fordeling af arbejdsopgaver'!J55*(Kalkuler!$E$19+Kalkuler!$E$20+Kalkuler!$E$21+Kalkuler!$E$22+Kalkuler!$E$30) -> 0 | J63: ='Fordeling af arbejdsopgaver'!K55*(Kalkuler!$E$19+Kalkuler!$E$20+Kalkuler!$E$21+Kalkuler!$E$22+Kalkuler!$E$30) -> -126.6666667 | K63: ='Fordeling af arbejdsopgaver'!L55*(Kalkuler!$E$19+Kalkuler!$E$20+Kalkuler!$E$21+Kalkuler!$E$22+Kalkuler!$E$30) -> -126.6666667 | L63: ='Fordeling af arbejdsopgaver'!M55*(Kalkuler!$E$19+Kalkuler!$E$20+Kalkuler!$E$21+Kalkuler!$E$22+Kalkuler!$E$30) -> -126.6666667 | M63: ='Fordeling af arbejdsopgaver'!N55*(Kalkuler!$E$19+Kalkuler!$E$20+Kalkuler!$E$21+Kalkuler!$E$22+Kalkuler!$E$30) -> -126.6666667 | N63: ='Fordeling af arbejdsopgaver'!O55*(Kalkuler!$E$19+Kalkuler!$E$20+Kalkuler!$E$21+Kalkuler!$E$22+Kalkuler!$E$30) -> -253.3333333 | O63: ='Fordeling af arbejdsopgaver'!P55*(Kalkuler!$E$19+Kalkuler!$E$20+Kalkuler!$E$21+Kalkuler!$E$22+Kalkuler!$E$30) -> 0 | P63: ='Fordeling af arbejdsopgaver'!Q55*(Kalkuler!$E$19+Kalkuler!$E$20+Kalkuler!$E$21+Kalkuler!$E$22+Kalkuler!$E$30) -> 0 | Q63: ='Fordeling af arbejdsopgaver'!R55*(Kalkuler!$E$19+Kalkuler!$E$20+Kalkuler!$E$21+Kalkuler!$E$22+Kalkuler!$E$30) -> 0 | R63: ='Fordeling af arbejdsopgaver'!S55*(Kalkuler!$E$19+Kalkuler!$E$20+Kalkuler!$E$21+Kalkuler!$E$22+Kalkuler!$E$30) -> 0 | S63: ='Fordeling af arbejdsopgaver'!T55*(Kalkuler!$E$19+Kalkuler!$E$20+Kalkuler!$E$21+Kalkuler!$E$22+Kalkuler!$E$30) -> 0 | T63: ='Fordeling af arbejdsopgaver'!U55*(Kalkuler!$E$19+Kalkuler!$E$20+Kalkuler!$E$21+Kalkuler!$E$22+Kalkuler!$E$30) -> 0 | U63: ='Fordeling af arbejdsopgaver'!V55*(Kalkuler!$E$19+Kalkuler!$E$20+Kalkuler!$E$21+Kalkuler!$E$22+Kalkuler!$E$30) -> 0 | V63: ='Fordeling af arbejdsopgaver'!W55*(Kalkuler!$E$19+Kalkuler!$E$20+Kalkuler!$E$21+Kalkuler!$E$22+Kalkuler!$E$30) -> 0 | W63: ='Fordeling af arbejdsopgaver'!X55*(Kalkuler!$E$19+Kalkuler!$E$20+Kalkuler!$E$21+Kalkuler!$E$22+Kalkuler!$E$30) -> 0 | X63: ='Fordeling af arbejdsopgaver'!Y55*(Kalkuler!$E$19+Kalkuler!$E$20+Kalkuler!$E$21+Kalkuler!$E$22+Kalkuler!$E$30) -> 0 | Y63: ='Fordeling af arbejdsopgaver'!Z55*(Kalkuler!$E$19+Kalkuler!$E$20+Kalkuler!$E$21+Kalkuler!$E$22+Kalkuler!$E$30) -> 0 | Z63: ='Fordeling af arbejdsopgaver'!AA55*(Kalkuler!$E$19+Kalkuler!$E$20+Kalkuler!$E$21+Kalkuler!$E$22+Kalkuler!$E$30) -> 0 | AA63: ='Fordeling af arbejdsopgaver'!AB55*(Kalkuler!$E$19+Kalkuler!$E$20+Kalkuler!$E$21+Kalkuler!$E$22+Kalkuler!$E$30) -> 0
B64: I alt | C64: =SUM(C59:C63) -> 0 | D64: 0 | E64: 0 | F64: 0 | G64: -362.5 | H64: -362.5 | I64: -479.5 | J64: -3008.166667 | K64: -2528.666667 | L64: -126.6666667 | M64: -126.6666667 | N64: -253.3333333 | O64: 0 | P64: 0 | Q64: 0 | R64: 0 | S64: 0 | T64: 0 | U64: 0 | V64: 0 | W64: 0 | X64: 0 | Y64: 0 | Z64: 0 | AA64: 0
B65: År til dato

Sheet Vandløbsnære arealer
B1: Foreløbig model for erstatning ved oversvømmelse af vandløbsnære områder
B3: Hvilken afgrøde er etableret på arealet? | C3: Vårsæd (byg)
B5: Hvornår skete oversvømmelsen? | C5: Start maj
B7: Bundet kapital i afgrøden: | C7: =INDEX(B12:AK21,MATCH(C3,B12:B21,0),MATCH(C5,B12:AK12,0)) -> -6868 | D7: kr.
C12: ='Fordeling af omkostninger'!C2 -> Året før | D12: 0_Start Aug. | E12: 0_Slut Aug. | F12: 0_Start sep. | G12: 0_Slut sep. | H12: 0_Start okt. | I12: 0_Slut okt. | J12: 0_Start nov. | K12: 0_Slut nov. | L12: 0_Start dec. | M12: 0_Slut dec. | N12: Start jan. | O12: Slut jan. | P12: Start feb. | Q12: Slut feb. | R12: Start mar. | S12: Slut mar. | T12: Start apr. | U12: Slut apr. | V12: Start maj | W12: Slut maj | X12: Start jun | Y12: Slut jun | Z12: Start jul. | AA12: Slut jul. | AB12: Start Aug. | AC12: Slut Aug. | AD12: Start sep. | AE12: Slut sep. | AF12: Start okt. | AG12: Slut okt. | AH12: Start nov. | AI12: Slut nov. | AJ12: Start dec. | AK12: Slut dec.
B13: Frøgræs (Rajgræs) | C13: =SUM('Fordeling af omkostninger'!C8:C8) -> -1240 | D13: =SUM('Fordeling af omkostninger'!$R$8:R8)+$C$13 -> -1240 | E13: =SUM('Fordeling af omkostninger'!$R$8:S8)+$C$13 -> -1463 | F13: =SUM('Fordeling af omkostninger'!$R$8:T8)+$C$13 -> -1686 | G13: =SUM('Fordeling af omkostninger'!$R$8:U8)+$C$13 -> -4996.5 | H13: =SUM('Fordeling af omkostninger'!$R$8:V8)+$C$13 -> -4996.5 | I13: =SUM('Fordeling af omkostninger'!$R$8:W8)+$C$13 -> -4996.5 | J13: =SUM('Fordeling af omkostninger'!$R$8:X8)+$C$13 -> -4996.5 | K13: =SUM('Fordeling af omkostninger'!$R$8:Y8)+$C$13 -> -4996.5 | L13: =SUM('Fordeling af omkostninger'!$R$8:Z8)+$C$13 -> -4996.5 | M13: =SUM('Fordeling af omkostninger'!$R$8:AA8)+$C$13 -> -4996.5 | N13: =SUM('Fordeling af omkostninger'!$D$8:D8)+$M$13 -> -4996.5 | O13: =SUM('Fordeling af omkostninger'!$D$8:E8)+$M$13 -> -4996.5 | P13: =SUM('Fordeling af omkostninger'!$D$8:F8)+$M$13 -> -4996.5 | Q13: =SUM('Fordeling af omkostninger'!$D$8:G8)+$M$13 -> -4996.5 | R13: =SUM('Fordeling af omkostninger'!$D$8:H8)+$M$13 -> -4996.5 | S13: =SUM('Fordeling af omkostninger'!$D$8:I8)+$M$13 -> -8307 | T13: =SUM('Fordeling af omkostninger'!$D$8:J8)+$M$13 -> -8530 | U13: =SUM('Fordeling af omkostninger'!$D$8:K8)+$M$13 -> -8753 | V13: =SUM('Fordeling af omkostninger'!$D$8:L8)+$M$13 -> -8976 | W13: =SUM('Fordeling af omkostninger'!$D$8:M8)+$M$13 -> -9199 | X13: =SUM('Fordeling af omkostninger'!$D$8:N8)+$M$13 -> -9199 | Y13: =SUM('Fordeling af omkostninger'!$D$8:O8)+$M$13 -> -9199 | Z13: =SUM('Fordeling af omkostninger'!$D$8:P8)+$M$13 -> -9199 | AA13: =SUM('Fordeling af omkostninger'!$D$8:Q8)+$M$13 -> -9199 | AB13: =SUM('Fordeling af omkostninger'!$D$8:R8)+$M$13 -> -9199
B14: Stivelseskartofler | C14: =SUM('Fordeling af omkostninger'!C15) -> 0 | N14: =SUM('Fordeling af omkostninger'!$D$15:D15) -> 0 | O14: =SUM('Fordeling af omkostninger'!$D$15:E15) -> 0 | P14: =SUM('Fordeling af omkostninger'!$D$15:F15) -> 0 | Q14: =SUM('Fordeling af omkostninger'!$D$15:G15) -> -362.5 | R14: =SUM('Fordeling af omkostninger'!$D$15:H15) -> -725 | S14: =SUM('Fordeling af omkostninger'!$D$15:I15) -> -725 | T14: =SUM('Fordeling af omkostninger'!$D$15:J15) -> -10028.5 | U14: =SUM('Fordeling af omkostninger'!$D$15:K15) -> -19332 | V14: =SUM('Fordeling af omkostninger'!$D$15:L15) -> -19776.75 | W14: =SUM('Fordeling af omkostninger'!$D$15:M15) -> -20221.5 | X14: =SUM('Fordeling af omkostninger'!$D$15:N15) -> -21111 | Y14: =SUM('Fordeling af omkostninger'!$D$15:O15) -> -22000.5 | Z14: =SUM('Fordeling af omkostninger'!$D$15:P15) -> -22890 | AA14: =SUM('Fordeling af omkostninger'!$D$15:Q15) -> -23779.5 | AB14: =SUM('Fordeling af omkostninger'!$D$15:R15) -> -24669 | AC14: =SUM('Fordeling af omkostninger'!$D$15:S15) -> -25558.5 | AD14: =SUM('Fordeling af omkostninger'!$D$15:T15) -> -26448 | AE14: =SUM('Fordeling af omkostninger'!$D$15:U15) -> -26448 | AF14: =SUM('Fordeling af omkostninger'!$D$15:V15) -> -26448 | AG14: =SUM('Fordeling af omkostninger'!$D$15:W15) -> -26448 | AH14: =SUM('Fordeling af omkostninger'!$D$15:X15) -> -26448 | AI14: =SUM('Fordeling af omkostninger'!$D$15:Y15) -> -26448
B15: Kløvergræs til slæt | C15: =SUM('Fordeling af omkostninger'!C22:C22) -> -1278 | D15: =C15 -> -1278 | E15: =D15 -> -1278 | F15: -1278 | G15: -1278 | H15: -1278 | I15: -1278 | J15: -1278 | K15: -1278 | L15: -1278 | M15: -1278 | N15: =SUM('Fordeling af omkostninger'!$D$22:D22)+$C$15 -> -1278 | O15: =SUM('Fordeling af omkostninger'!$D$22:E22)+$C$15 -> -1278 | P15: =SUM('Fordeling af omkostninger'!$D$22:F22)+$C$15 -> -1278 | Q15: =SUM('Fordeling af omkostninger'!$D$22:G22)+$C$15 -> -1278 | R15: =SUM('Fordeling af omkostninger'!$D$22:H22)+$C$15 -> -1278 | S15: =SUM('Fordeling af omkostninger'!$D$22:I22)+$C$15 -> -5092 | T15: =SUM('Fordeling af omkostninger'!$D$22:J22)+$C$15 -> -5092 | U15: =SUM('Fordeling af omkostninger'!$D$22:K22)+$C$15 -> -5092 | V15: =SUM('Fordeling af omkostninger'!$D$22:L22)+$C$15 -> -5092 | W15: =SUM('Fordeling af omkostninger'!$D$22:M22)+$C$15 -> -8906 | X15: =SUM('Fordeling af omkostninger'!$D$22:N22)+$C$15 -> -8906 | Y15: =SUM('Fordeling af omkostninger'!$D$22:O22)+$C$15 -> -8906 | Z15: =SUM('Fordeling af omkostninger'!$D$22:P22)+$C$15 -> -12720 | AA15: =SUM('Fordeling af omkostninger'!$D$22:Q22)+$C$15 -> -12720 | AB15: =SUM('Fordeling af omkostninger'!$D$22:R22)+$C$15 -> -13998 | AC15: =SUM('Fordeling af omkostninger'!$D$22:S22)+$C$15 -> -13998 | AD15: =SUM('Fordeling af omkostninger'!$D$22:T22)+$C$15 -> -13998 | AE15: =SUM('Fordeling af omkostninger'!$D$22:U22)+$C$15 -> -13998 | AF15: =SUM('Fordeling af omkostninger'!$D$22:V22)+$C$15 -> -13998
B16: Majs til helsæd | C16: =SUM('Fordeling af omkostninger'!C29) -> 0 | N16: 0 | O16: =SUM('Fordeling af omkostninger'!$D$29:D29) -> 0 | P16: =SUM('Fordeling af omkostninger'!$D$29:E29) -> 0 | Q16: =SUM('Fordeling af omkostninger'!$D$29:F29) -> 0 | R16: =SUM('Fordeling af omkostninger'!$D$29:G29) -> 0 | S16: =SUM('Fordeling af omkostninger'!$D$29:H29) -> 0 | T16: =SUM('Fordeling af omkostninger'!$D$29:I29) -> -362.5 | U16: =SUM('Fordeling af omkostninger'!$D$29:J29) -> -7549 | V16: =SUM('Fordeling af omkostninger'!$D$29:K29) -> -10124 | W16: =SUM('Fordeling af omkostninger'!$D$29:L29) -> -10124 | X16: =SUM('Fordeling af omkostninger'!$D$29:M29) -> -10584.5 | Y16: =SUM('Fordeling af omkostninger'!$D$29:N29) -> -11045 | Z16: =SUM('Fordeling af omkostninger'!$D$29:O29) -> -11045 | AA16: =SUM('Fordeling af omkostninger'!$D$29:P29) -> -11045 | AB16: =SUM('Fordeling af omkostninger'!$D$29:Q29) -> -11045 | AC16: =SUM('Fordeling af omkostninger'!$D$29:R29) -> -11045 | AD16: =SUM('Fordeling af omkostninger'!$D$29:S29) -> -11045 | AE16: =SUM('Fordeling af omkostninger'!$D$29:T29) -> -11045 | AF16: =SUM('Fordeling af omkostninger'!$D$29:U29) -> -11045
B17: Sukkerroer | C17: =SUM('Fordeling af omkostninger'!C36) -> 0 | J17: =SUM('Fordeling af omkostninger'!$X$36:X36) -> -181.25 | K17: =SUM('Fordeling af omkostninger'!$X$36:Y36) -> -362.5 | L17: =SUM('Fordeling af omkostninger'!$X$36:Z36) -> -543.75 | M17: =SUM('Fordeling af omkostninger'!$X$36:AA36) -> -725 | N17: =SUM('Fordeling af omkostninger'!$D$36:D36)+$M$17 -> -725 | O17: =SUM('Fordeling af omkostninger'!$D$36:E36)+$M$17 -> -725 | P17: =SUM('Fordeling af omkostninger'!$D$36:F36)+$M$17 -> -725 | Q17: =SUM('Fordeling af omkostninger'!$D$36:G36)+$M$17 -> -725 | R17: =SUM('Fordeling af omkostninger'!$D$36:H36)+$M$17 -> -725 | S17: =SUM('Fordeling af omkostninger'!$D$36:I36)+$M$17 -> -1125 | T17: =SUM('Fordeling af omkostninger'!$D$36:J36)+$M$17 -> -9355 | U17: =SUM('Fordeling af omkostninger'!$D$36:K36)+$M$17 -> -10575.4 | V17: =SUM('Fordeling af omkostninger'!$D$36:L36)+$M$17 -> -10575.4 | W17: =SUM('Fordeling af omkostninger'!$D$36:M36)+$M$17 -> -11185.6 | X17: =SUM('Fordeling af omkostninger'!$D$36:N36)+$M$17 -> -11795.8 | Y17: =SUM('Fordeling af omkostninger'!$D$36:O36)+$M$17 -> -12406 | Z17: =SUM('Fordeling af omkostninger'!$D$36:P36)+$M$17 -> -12406 | AA17: =SUM('Fordeling af omkostninger'!$D$36:Q36)+$M$17 -> -12406 | AB17: =SUM('Fordeling af omkostninger'!$D$36:R36)+$M$17 -> -12406 | AC17: =SUM('Fordeling af omkostninger'!$D$36:S36)+$M$17 -> -12406 | AD17: =SUM('Fordeling af omkostninger'!$D$36:T36)+$M$17 -> -12406 | AE17: =SUM('Fordeling af omkostninger'!$D$36:U36)+$M$17 -> -12406 | AF17: =SUM('Fordeling af omkostninger'!$D$36:V36)+$M$17 -> -12406 | AG17: =SUM('Fordeling af omkostninger'!$D$36:W36)+$M$17 -> -12406
B18: Vinterraps | C18: =SUM('Fordeling af omkostninger'!C43:C43) -> 0 | D18: =SUM('Fordeling af omkostninger'!$R$43:R43) -> -1255.5 | E18: =SUM('Fordeling af omkostninger'!$R$43:S43) -> -1674 | F18: =SUM('Fordeling af omkostninger'!$R$43:T43) -> -2011.5 | G18: =SUM('Fordeling af omkostninger'!$R$43:U43) -> -4197.833333 | H18: =SUM('Fordeling af omkostninger'!$R$43:V43) -> -4535.333333 | I18: =SUM('Fordeling af omkostninger'!$R$43:W43) -> -4535.333333 | J18: =SUM('Fordeling af omkostninger'!$R$43:X43) -> -4872.833333 | K18: =SUM('Fordeling af omkostninger'!$R$43:Y43) -> -4872.833333 | L18: =SUM('Fordeling af omkostninger'!$R$43:Z43) -> -4872.833333 | M18: =SUM('Fordeling af omkostninger'!$R$43:AA43) -> -4872.833333 | N18: =M18+'Fordeling af omkostninger'!D$43 -> -4872.833333 | O18: =N18+'Fordeling af omkostninger'!E$43 -> -4872.833333 | P18: =O18+'Fordeling af omkostninger'!F$43 -> -4872.833333 | Q18: =P18+'Fordeling af omkostninger'!G$43 -> -4872.833333 | R18: =Q18+'Fordeling af omkostninger'!H$43 -> -7059.166667 | S18: =R18+'Fordeling af omkostninger'!I$43 -> -7059.166667 | T18: =S18+'Fordeling af omkostninger'!J$43 -> -9414.25 | U18: =T18+'Fordeling af omkostninger'!K$43 -> -9583 | V18: =U18+'Fordeling af omkostninger'!L$43 -> -9920.5 | W18: =V18+'Fordeling af omkostninger'!M$43 -> -10258 | X18: =W18+'Fordeling af omkostninger'!N$43 -> -10258 | Y18: =X18+'Fordeling af omkostninger'!O$43 -> -10258 | Z18: =Y18+'Fordeling af omkostninger'!P$43 -> -10258 | AA18: =Z18+'Fordeling af omkostninger'!Q$43 -> -10258
B19: Vintersæd (byg) | C19: =SUM('Fordeling af omkostninger'!C50:C50) -> 0 | E19: =SUM('Fordeling af omkostninger'!$R$50:S50) -> -890 | F19: =SUM('Fordeling af omkostninger'!$R$50:T50) -> -1780 | G19: =SUM('Fordeling af omkostninger'!$R$50:U50) -> -1780 | H19: =SUM('Fordeling af omkostninger'!$R$50:V50) -> -2098.25 | I19: =SUM('Fordeling af omkostninger'!$R$50:W50) -> -2098.25 | J19: =SUM('Fordeling af omkostninger'!$R$50:X50) -> -2098.25 | K19: =SUM('Fordeling af omkostninger'!$R$50:Y50) -> -2098.25 | L19: =SUM('Fordeling af omkostninger'!$R$50:Z50) -> -2098.25 | M19: =SUM('Fordeling af omkostninger'!$R$50:AA50) -> -2098.25 | N19: =M19+'Fordeling af omkostninger'!D$50 -> -2098.25 | O19: =N19+'Fordeling af omkostninger'!E$50 -> -2098.25 | P19: =O19+'Fordeling af omkostninger'!F$50 -> -2098.25 | Q19: =P19+'Fordeling af omkostninger'!G$50 -> -2098.25 | R19: =Q19+'Fordeling af omkostninger'!H$50 -> -2098.25 | S19: =R19+'Fordeling af omkostninger'!I$50 -> -7943.25 | T19: =S19+'Fordeling af omkostninger'!J$50 -> -8102.375 | U19: =T19+'Fordeling af omkostninger'!K$50 -> -8261.5 | V19: =U19+'Fordeling af omkostninger'!L$50 -> -8579.75 | W19: =V19+'Fordeling af omkostninger'!M$50 -> -8898 | X19: =W19+'Fordeling af omkostninger'!N$50 -> -8898 | Y19: =X19+'Fordeling af omkostninger'!O$50 -> -8898 | Z19: =Y19+'Fordeling af omkostninger'!P$50 -> -8898 | AA19: =Z19+'Fordeling af omkostninger'!Q$50 -> -8898 | AB19: =AA19+'Fordeling af omkostninger'!R$50 -> -8898
B20: Vintersæd (hvede) | C20: =SUM('Fordeling af omkostninger'!C57:C57) -> 0 | E20: =SUM('Fordeling af omkostninger'!$R$57:S57) -> -181.25 | F20: =SUM('Fordeling af omkostninger'!$R$57:T57) -> -1058.75 | G20: =SUM('Fordeling af omkostninger'!$R$57:U57) -> -1755 | H20: =SUM('Fordeling af omkostninger'!$R$57:V57) -> -2108.3 | I20: =SUM('Fordeling af omkostninger'!$R$57:W57) -> -2108.3 | J20: =SUM('Fordeling af omkostninger'!$R$57:X57) -> -2108.3 | K20: =SUM('Fordeling af omkostninger'!$R$57:Y57) -> -2108.3 | L20: =SUM('Fordeling af omkostninger'!$R$57:Z57) -> -2108.3 | M20: =SUM('Fordeling af omkostninger'!$R$57:AA57) -> -2108.3 | N20: =M20+'Fordeling af omkostninger'!D$57 -> -2108.3 | O20: =N20+'Fordeling af omkostninger'!E$57 -> -2108.3 | P20: =O20+'Fordeling af omkostninger'!F$57 -> -2108.3 | Q20: =P20+'Fordeling af omkostninger'!G$57 -> -2108.3 | R20: =Q20+'Fordeling af omkostninger'!H$57 -> -2108.3 | S20: =R20+'Fordeling af omkostninger'!I$57 -> -5412.8 | T20: =S20+'Fordeling af omkostninger'!J$57 -> -5589.45 | U20: =T20+'Fordeling af omkostninger'!K$57 -> -9070.6 | V20: =U20+'Fordeling af omkostninger'!L$57 -> -9247.25 | W20: =V20+'Fordeling af omkostninger'!M$57 -> -9423.9 | X20: =W20+'Fordeling af omkostninger'!N$57 -> -9777.2 | Y20: =X20+'Fordeling af omkostninger'!O$57 -> -10130.5 | Z20: =Y20+'Fordeling af omkostninger'!P$57 -> -10130.5 | AA20: =Z20+'Fordeling af omkostninger'!Q$57 -> -10130.5 | AB20: =AA20+'Fordeling af omkostninger'!R$57 -> -10130.5
B21: Vårsæd (byg) | C21: =SUM('Fordeling af omkostninger'!C64:C64) -> 0 | N21: =SUM('Fordeling af omkostninger'!$D$64:D64) -> 0 | O21: =SUM('Fordeling af omkostninger'!$D$64:E64) -> 0 | P21: =SUM('Fordeling af omkostninger'!$D$64:F64) -> 0 | Q21: =SUM('Fordeling af omkostninger'!$D$64:G64) -> -362.5 | R21: =SUM('Fordeling af omkostninger'!$D$64:H64) -> -725 | S21: =SUM('Fordeling af omkostninger'!$D$64:I64) -> -1204.5 | T21: =SUM('Fordeling af omkostninger'!$D$64:J64) -> -4212.666667 | U21: =SUM('Fordeling af omkostninger'!$D$64:K64) -> -6741.333333 | V21: =SUM('Fordeling af omkostninger'!$D$64:L64) -> -6868 | W21: =SUM('Fordeling af omkostninger'!$D$64:M64) -> -6994.666667 | X21: =SUM('Fordeling af omkostninger'!$D$64:N64) -> -7248 | Y21: =SUM('Fordeling af omkostninger'!$D$64:O64) -> -7248 | Z21: =SUM('Fordeling af omkostninger'!$D$64:P64) -> -7248 | AA21: =SUM('Fordeling af omkostninger'!$D$64:Q64) -> -7248 | AB21: =SUM('Fordeling af omkostninger'!$D$64:R64) -> -7248

Sheet Kalkuler (hidden)
A1: Vårbyg | G1: Vinterbyg | M1: Rajgræs til frø | S1: Vinterraps | Y1: Stivelseskartofler | AE1: Sukkerroer | AK1: Vinterhvede (1.års) | AQ1: Majs til helsæd | AW1: Sædskiftegræs med 4 slæt
A2: Kalkulebeskrivelse: | B2: Salgsafgrøder | G2: Kalkulebeskrivelse: | H2: Salgsafgrøder | M2: Kalkulebeskrivelse: | N2: Salgsafgrøder | S2: Kalkulebeskrivelse: | T2: Salgsafgrøder | Y2: Kalkulebeskrivelse: | Z2: Salgsafgrøder | AE2: Kalkulebeskrivelse: | AF2: Salgsafgrøder | AK2: Kalkulebeskrivelse: | AL2: Vinterhvede, 1. års | AQ2: Kalkulebeskrivelse: | AR2: Grovfoderafgrøder | AW2: Kalkulebeskrivelse: | AX2: Grovfoderafgrøder
A3: Kalkulen gælder for: | B3: 2023 | G3: Kalkulen gælder for: | H3: 2023 | M3: Kalkulen gælder for: | N3: 2023 | S3: Kalkulen gælder for: | T3: 2023 | Y3: Kalkulen gælder for: | Z3: 2023 | AE3: Kalkulen gælder for: | AF3: 2023 | AK3: Kalkulen gælder for: | AL3: 2023 | AQ3: Kalkulen gælder for: | AR3: 2023 | AW3: Kalkulen gælder for: | AX3: 2023
A4: Produktionsform: | B4: Konventionel | G4: Produktionsform: | H4: Konventionel | M4: Produktionsform: | N4: Konventionel | S4: Produktionsform: | T4: Konventionel | Y4: Produktionsform: | Z4: Konventionel | AE4: Produktionsform: | AF4: Konventionel | AK4: Produktionsform: | AL4: Konventionel | AQ4: Produktionsform: | AR4: Konventionel | AW4: Produktionsform: | AX4: Konventionel
A5: Jordbonitet: | B5: JB 5-6 | G5: Jordbonitet: | H5: JB 5-6 | M5: Jordbonitet: | N5: JB 5-6 | S5: Jordbonitet: | T5: JB 5-6 | Y5: Jordbonitet: | Z5: JB 5-6 | AE5: Jordbonitet: | AF5: JB 5-6 | AK5: Jordbonitet: | AL5: JB 5-6 | AQ5: Jordbonitet: | AR5: JB 5-6 | AW5: Jordbonitet: | AX5: JB 5-6
A6: Gødning: | B6: Uden husdyrgødning | G6: Gødning: | H6: Uden husdyrgødning | M6: Gødning: | N6: Uden husdyrgødning | S6: Gødning: | T6: Uden husdyrgødning | Y6: Gødning: | Z6: Uden husdyrgødning | AE6: Gødning: | AF6: Uden husdyrgødning | AK6: Gødning: | AL6: Uden husdyrgødning | AQ6: Gødning: | AR6: Uden husdyrgødning | AW6: Gødning: | AX6: Uden husdyrgødning
A8: Emne | B8: Kvantum | D8: Pris | E8: Beløb | G8: Emne | H8: Kvantum | J8: Pris | K8: Beløb | M8: Emne | N8: Kvantum | P8: Pris | Q8: Beløb | S8: Emne | T8: Kvantum | V8: Pris | W8: Beløb | Y8: Emne | Z8: Kvantum | AB8: Pris | AC8: Beløb | AE8: Emne | AF8: Kvantum | AH8: Pris | AI8: Beløb | AK8: Emne | AL8: Kvantum | AN8: Pris | AO8: Beløb | AQ8: Emne | AR8: Kvantum | AT8: Pris | AU8: Beløb | AW8: Emne | AX8: Kvantum | AZ8: Pris | BA8: Beløb
A9: Udbytte | G9: Udbytte | M9: Udbytte | S9: Udbytte | Y9: Udbytte | AE9: Udbytte | AK9: Udbytte | AQ9: Udbytte | AW9: Udbytte
A10: Kerne salg | B10: 6500 | C10: Kg | D10: 1.7 | E10: =B10*D10 -> 11050 | G10: Kerne | H10: 7900 | I10: Kg | J10: 1.7 | K10: =H10*J10 -> 13430 | M10: Frøudbytte | N10: 1600 | O10: Kg | P10: 9 | Q10: =N10*P10 -> 14400 | S10: Frøudbytte | T10: 4400 | U10: Kg | V10: 3.75 | W10: =T10*V10 -> 16500 | Y10: Sorterede kartofler | Z10: 57700 | AA10: Kg | AB10: 0.72 | AC10: =Z10*AB10 -> 41544 | AE10: Roer kontrakt | AF10: 65500 | AG10: Kg | AH10: 0.3 | AI10: =AF10*AH10 -> 19650 | AK10: Kerne | AL10: 9700 | AM10: Kg | AN10: 1.8 | AO10: =AL10*AN10 -> 17460 | AQ10: Høstet udbytte | AR10: 11700 | AS10: FEN | AW10: Høstet udbytte | AX10: 8850 | AY10: FEN
A11: Halm salg eller forbrug | B11: 3500 | C11: Kg | D11: 0.65 | E11: =B11*D11 -> 2275 | G11: Halm salg eller forbrug | H11: 3900 | I11: Kg | J11: 0.65 | K11: =H11*J11 -> 2535 | M11: Halm salg | N11: 5300 | O11: Kg | P11: 0.65 | Q11: =N11*P11 -> 3445 | S11: Bruttoudbytte | W11: =SUM(W10:W10) -> 16500 | Y11: Støtte stivelseskartofler | AA11: Kg | AC11: 633 | AE11: Roeaffald | AF11: 26200 | AG11: Kg | AK11: Halm salg eller forbrug | AL11: 4800 | AM11: Kg | AN11: 0.65 | AO11: =AL11*AN11 -> 3120 | AQ11: Udfodret/solgt udbytte | AR11: 11100 | AS11: FEN | AT11: 1.13 | AU11: =AR11*AT11 -> 12543 | AW11: Udfodret/solgt udbytte | AX11: 8400 | AY11: FEN | AZ11: 1.5 | BA11: =AX11*AZ11 -> 12600
A12: Bruttoudbytte | E12: =SUM(E10:E11) -> 13325 | G12: Bruttoudbytte | K12: =SUM(K10:K11) -> 15965 | M12: Bruttoudbytte | Q12: =SUM(Q10:Q11) -> 17845 | Y12: Bruttoudbytte | AC12: =SUM(AC10:AC11) -> 42177 | AE12: Fragtgodgørelse | AF12: 65500 | AG12: Kg | AK12: Udbytte i alt | AO12: =SUM(AO10:AO11) -> 20580 | AQ12: Bruttoudbytte | AU12: =SUM(AU10:AU11) -> 12543 | AW12: Bruttoudbytte | BA12: =SUM(BA10:BA11) -> 12600
S13: Stykomkostninger | AE13: Bruttoudbytte | AI13: =SUM(AI10:AI12) -> 19650
A14: Stykomkostninger | G14: Stykomkostninger | M14: Stykomkostninger | S14: Udsæd | T14: -0.25 | U14: Unit | V14: 2200 | W14: =T14*V14 -> -550 | Y14: Stykomkostninger | AK14: Stykomkostninger | AQ14: Stykomkostninger | AW14: Stykomkostninger
A15: Udsæd | B15: -140 | C15: Kg | D15: 4 | E15: =B15*D15 -> -560 | G15: Udsæd | H15: -160 | I15: Kg | J15: 4.1 | K15: =H15*J15 -> -656 | M15: Udsæd | N15: -7 | O15: Kg | P15: 60 | Q15: =N15*P15 -> -420 | S15: Handelsgødning Kvælstof | T15: -210 | U15: Kg | V15: 23 | W15: =T15*V15 -> -4830 | Y15: Læggekartofler indkøbt | Z15: -460 | AA15: Kg | AB15: 2.2 | AC15: =Z15*AB15 -> -1012 | AE15: Stykomkostninger | AK15: Udsæd | AL15: -150 | AM15: Kg | AN15: 4.2 | AO15: =AL15*AN15 -> -630 | AQ15: Udsæd | AR15: -2 | AS15: Enh | AT15: 950 | AU15: =AR15*AT15 -> -1900 | AW15: Græsfrø udsæd | AX15: -9 | AY15: Kg | AZ15: 34.5 | BA15: =AX15*AZ15 -> -310.5
A16: Handelsgødning Kvælstof | B16: -144 | C16: Kg | D16: 23 | E16: =B16*D16 -> -3312 | G16: Handelsgødning Kvælstof | H16: -184 | I16: Kg | J16: 23 | K16: =H16*J16 -> -4232 | M16: Handelsgødning Kvælstof | N16: -170 | O16: Kg | P16: 23 | Q16: =N16*P16 -> -3910 | S16: Handelsgødning Fosfor | T16: -33 | U16: Kg | V16: 23 | W16: =T16*V16 -> -759 | Y16: Læggekartofler egen avl | Z16: -1840 | AA16: Kg | AB16: 1.25 | AC16: =Z16*AB16 -> -2300 | AE16: Roefrø udsæd | AF16: -1 | AG16: Enh | AH16: 1900 | AI16: =AF16*AH16 -> -1900 | AK16: Handelsgødning Kvælstof | AL16: -190 | AM16: Kg | AN16: 23 | AO16: =AL16*AN16 -> -4370 | AQ16: Handelsgødning Kvælstof | AR16: -157 | AS16: Kg | AT16: 23 | AU16: =AR16*AT16 -> -3611 | AW16: Handelsgødning Kvælstof | AX16: -290 | AY16: Kg | AZ16: 23 | BA16: =AX16*AZ16 -> -6670
A17: Handelsgødning Fosfor | B17: -24 | C17: Kg | D17: 23 | E17: =B17*D17 -> -552 | G17: Handelsgødning Fosfor | H17: -25 | I17: Kg | J17: 23 | K17: =H17*J17 -> -575 | M17: Handelsgødning Fosfor | N17: -21 | O17: Kg | P17: 23 | Q17: =N17*P17 -> -483 | S17: Handelsgødning Kalium | T17: -55 | U17: Kg | V17: 14 | W17: =T17*V17 -> -770 | Y17: Handelsgødning Kvælstof | Z17: -202 | AA17: Kg | AB17: 23 | AC17: =Z17*AB17 -> -4646 | AE17: Handelsgødning Kvælstof | AF17: -127 | AG17: Kg | AH17: 23 | AI17: =AF17*AH17 -> -2921 | AK17: Handelsgødning Fosfor | AL17: -29 | AM17: Kg | AN17: 23 | AO17: =AL17*AN17 -> -667 | AQ17: Handelsgødning Fosfor | AR17: -39 | AS17: Kg | AT17: 23 | AU17: =AR17*AT17 -> -897 | AW17: Handelsgødning Fosfor | AX17: -38 | AY17: Kg | AZ17: 23 | BA17: =AX17*AZ17 -> -874
A18: Handelsgødning Kalium | B18: -60 | C18: Kg | D18: 14 | E18: =B18*D18 -> -840 | G18: Handelsgødning Kalium | H18: -67 | I18: Kg | J18: 14 | K18: =H18*J18 -> -938 | M18: Handelsgødning Kalium | N18: -122 | O18: Kg | P18: 14 | Q18: =N18*P18 -> -1708 | S18: Ukrudt | U18: Enh | W18: -668 | Y18: Handelsgødning Fosfor | Z18: -32 | AA18: Kg | AB18: 23 | AC18: =Z18*AB18 -> -736 | AE18: Handelsgødning Fosfor | AF18: -33 | AG18: Kg | AH18: 23 | AI18: =AF18*AH18 -> -759 | AK18: Handelsgødning Kalium | AL18: -98 | AM18: Kg | AN18: 14 | AO18: =AL18*AN18 -> -1372 | AQ18: Handelsgødning Kalium | AR18: -144 | AS18: Kg | AT18: 14 | AU18: =AR18*AT18 -> -2016 | AW18: Handelsgødning Kalium | AX18: -257 | AY18: Kg | AZ18: 14 | BA18: =AX18*AZ18 -> -3598
A19: Ukrudt | C19: Enh | E19: -103 | G19: Ukrudt | I19: Enh | K19: -304 | M19: Ukrudt | O19: Enh | Q19: -195 | S19: Sygdom | U19: Enh | W19: -238 | Y19: Handelsgødning Kalium | Z19: -217 | AA19: Kg | AB19: 14 | AC19: =Z19*AB19 -> -3038 | AE19: Handelsgødning Kalium | AF19: -150 | AG19: Kg | AH19: 14 | AI19: =AF19*AH19 -> -2100 | AK19: Ukrudt | AM19: Enh | AO19: -458.5 | AQ19: Ukrudt | AS19: Enh | AU19: -592 | AW19: Plastik | AX19: -185 | AY19: Enh | AZ19: 2.8 | BA19: =AX19*AZ19 -> -518
A20: Sygdom | C20: Enh | E20: -173 | G20: Sygdom | I20: Enh | K20: -223 | M20: Sygdom | O20: Enh | Q20: -277 | S20: Skadedyr | U20: Enh | W20: -238 | Y20: Ukrudt | AA20: Enh | AC20: -750 | AE20: Ukrudt | AG20: Enh | AI20: -1357 | AK20: Sygdom | AM20: Enh | AO20: -465 | AQ20: Sygdom | AS20: Enh | AU20: -49 | AW20: Stykomkostninger i alt | BA20: =SUM(BA14:BA19) -> -11970.5
A21: Skadedyr | C21: Enh | E21: -26 | G21: Skadedyr | I21: Enh | K21: -46 | M21: Vækstregulering | O21: Enh | Q21: -306 | S21: Vækstregulering | U21: Enh | W21: -41 | Y21: Sygdom | AA21: Enh | AC21: -3468 | AE21: Sygdom | AG21: Enh | AI21: -279 | AK21: Skadedyr | AM21: Enh | AO21: -92 | AQ21: Plastik | AR21: -168 | AS21: Enh | AT21: 2.8 | AU21: =AR21*AT21 -> -470.4 | AW21: Dækningsbidrag pr ha | BA21: =SUM(BA12,BA20) -> 629.5
A22: Vækstregulering | C22: Enh | E22: -38 | G22: Vækstregulering | I22: Enh | K22: -140 | M22: Analyser | O22: Enh | Q22: -175 | S22: Analyser | U22: Enh | W22: -125 | Y22: Skadedyr | AA22: Enh | AC22: -423 | AE22: Fragt | AF22: -65500 | AG22: Enh | AK22: Vækstregulering | AM22: Enh | AO22: -51 | AQ22: Stykomkostninger i alt | AU22: =SUM(AU14:AU21) -> -9535.4
A23: Stykomkostninger i alt | E23: =SUM(E14:E22) -> -5604 | G23: Stykomkostninger i alt | K23: =SUM(K14:K22) -> -7114 | M23: Rensning | N23: -1880 | O23: Enh | P23: 0.5 | Q23: =N23*P23 -> -940 | S23: Rensning | T23: -4400 | U23: Enh | V23: 0.07 | W23: =T23*V23 -> -308 | Y23: Nedvisning | AA23: Enh | AC23: -91 | AE23: Stykomkostninger i alt | AI23: =SUM(AI15:AI22) -> -9316 | AK23: Stykomkostninger i alt | AO23: =SUM(AO14:AO22) -> -8105.5 | AQ23: Dækningsbidrag pr ha | AU23: =SUM(AU12,AU22) -> 3007.6 | AW23: Maskin- og arbejdsomkostninger
A24: Dækningsbidrag pr ha | E24: =SUM(E12,E23) -> 7721 | G24: Dækningsbidrag pr ha | K24: =SUM(K12,K23) -> 8851 | M24: Stykomkostninger i alt | Q24: =SUM(Q15:Q23) -> -8414 | S24: Stykomkostninger i alt | W24: =SUM(W13:W23) -> -8527 | Y24: Bejdsning v. lægning | AA24: Enh | AC24: -240 | AE24: Dækningsbidrag pr ha | AI24: =SUM(AI13,AI23) -> 10334 | AK24: Dækningsbidrag pr ha | AO24: =SUM(AO12,AO23) -> 12474.5 | AW24: Gødningsspredning | AX24: -3 | AZ24: 100 | BA24: =AX24*AZ24 -> -300
M25: Dækningsbidrag | Q25: =SUM(Q12,Q24) -> 9431 | S25: Dækningsbidrag pr ha | W25: =SUM(W11,W24) -> 7973 | Y25: Opbevaring i kule | AA25: Enh | AC25: -1000 | AQ25: Maskin- og arbejdsomkostninger | AW25: Såning | AX25: -0.33 | AZ25: 350 | BA25: =AX25*AZ25 -> -115.5
A26: Maskin- og arbejdsomkostninger | G26: Maskin- og arbejdsomkostninger | Y26: Fragt | Z26: -57700 | AA26: Enh | AB26: 0.04 | AC26: =Z26*AB26 -> -2308 | AE26: Maskin- og arbejdsomkostninger | AK26: Maskin- og arbejdsomkostninger | AQ26: Pløjning med pakning | AR26: -1 | AT26: 725 | AU26: =AR26*AT26 -> -725 | AW26: Skårlægning | AX26: -4 | AZ26: 225 | BA26: =AX26*AZ26 -> -900
A27: Pløjning med pakning | B27: -1 | D27: 725 | E27: =B27*D27 -> -725 | G27: Pløjning med pakning | H27: -1 | J27: 725 | K27: =H27*J27 -> -725 | M27: Maskin- og arbejdsomkostninger | S27: Maskin- og arbejdsomkostninger | Y27: Stykomkostninger i alt | AC27: =SUM(AC14:AC26) -> -20012 | AE27: Pløjning med pakning | AF27: -1 | AH27: 725 | AI27: =AF27*AH27 -> -725 | AK27: Pløjning med pakning | AL27: -1 | AN27: 725 | AO27: =AL27*AN27 -> -725 | AQ27: Gødningsspredning | AR27: -1 | AT27: 100 | AU27: -100 | AW27: Sammenrivning | AX27: -4 | AZ27: 170 | BA27: =AX27*AZ27 -> -680
A28: Gødningsspredning | B28: -1 | D28: 100 | E28: -100 | G28: Gødningsspredning | H28: -1 | J28: 100 | K28: -100 | M28: Gødningsspredning | N28: -1 | P28: 100 | Q28: =N28*P28 -> -100 | S28: Pløjning med pakning | T28: -1 | V28: 725 | W28: =T28*V28 -> -725 | Y28: Dækningsbidrag pr ha | AC28: =SUM(AC12,AC27) -> 22165 | AE28: Gødningsspredning | AF28: -1 | AH28: 100 | AI28: -100 | AK28: Gødningsspredning | AL28: -2 | AN28: 100 | AO28: -200 | AQ28: Såbedsharvning | AR28: -1 | AT28: 200 | AU28: -200 | AV28: jordbearbejdning | AW28: Snitning, hjemkørsel og indlægn. | AX28: -4 | AZ28: 737 | BA28: =AX28*AZ28 -> -2948
A29: Komb. harvning og såning | B29: -1 | D29: 400 | E29: -400 | G29: Komb. harvning og såning | H29: -1 | J29: 400 | K29: -400 | M29: Såning | N29: -0.5 | P29: 400 | Q29: -200 | S29: Gødningsspredning | T29: -2 | V29: 100 | W29: -200 | AE29: Såbedsharvning | AF29: -2 | AH29: 200 | AI29: -400 | AJ29: jordbarbejdning | AK29: Komb. harvning og såning | AL29: -1 | AN29: 400 | AO29: -400 | AQ29: Såning med gødningsplacering | AR29: -1 | AT29: 500 | AU29: -500 | AW29: Øvrige opgaver m.v. | BA29: -800
A30: Sprøjtning | B30: -3 | D30: 140 | E30: -420 | G30: Sprøjtning | H30: -4 | J30: 140 | K30: -560 | M30: Sprøjtning | N30: -4 | P30: 140 | Q30: -560 | S30: Komb. harvning og såning | T30: -1 | V30: 400 | W30: -400 | Y30: Maskin- og arbejdsomkostninger | AE30: Roesåning | AF30: -1 | AH30: 450 | AI30: -450 | AK30: Sprøjtning | AL30: -5 | AN30: 140 | AO30: -700 | AQ30: Tromling | AR30: -1 | AT30: 175 | AU30: -175 | AV30: såning | AW30: I alt maskin- og arbejdsomkostninger | BA30: =SUM(BA24:BA29) -> -5743.5
A31: Mejetærskning | B31: -1 | D31: 866 | E31: -866 | G31: Mejetærskning | H31: -1 | J31: 963 | K31: -963 | M31: Mejetærskning | N31: -1 | P31: 1517 | Q31: -1517 | S31: Sprøjtning | T31: -6 | V31: 140 | W31: -840 | Y31: Pløjning med pakning | Z31: -1 | AB31: 725 | AC31: =Z31*AB31 -> -725 | AE31: Sprøjtning | AF31: -6 | AH31: 165 | AI31: -990 | AK31: Mejetærskning | AL31: -1 | AN31: 1093 | AO31: -1093 | AQ31: Sprøjtning | AR31: -2 | AT31: 140 | AU31: -280 | AW31: DB efter maskin- og arbejdsomkostninger | BA31: =SUM(BA21,BA30) -> -5114
A32: Hjemkørsel, korn | B32: -1 | D32: 394 | E32: -394 | G32: Hjemkørsel, korn | H32: -1 | J32: 438 | K32: -438 | M32: Hjemkørsel, frø | N32: -1 | P32: 418 | Q32: -418 | S32: Mejetærskning | T32: -1 | V32: 980 | W32: -980 | Y32: Efterharvning | Z32: -1 | AB32: 225 | AC32: -225 | AD32: jordbearbejdning | AE32: Radrensning | AF32: -1 | AH32: 425 | AI32: -425 | AJ32: planteværn | AK32: Hjemkørsel, korn | AL32: -1 | AN32: 497 | AO32: -497 | AQ32: Snitning, hjemkørsel og indlægning | AR32: -1 | AT32: 1754 | AU32: -1754
A33: Tørring, korn | B33: -6500 | D33: 0.12 | E33: -780 | G33: Tørring, korn | H33: -7900 | J33: 0.12 | K33: -948 | M33: Tørring, frø | N33: -2130 | P33: 0.34 | Q33: -724.2 | S33: Hjemkørsel, raps | T33: -1 | V33: 445 | W33: -445 | Y33: Gødningsspredning | Z33: -1 | AB33: 100 | AC33: -100 | AE33: Optagning af roer inkl. aftopning | AF33: -1 | AH33: 2118 | AI33: -2118 | AK33: Tørring, korn | AL33: -9700 | AN33: 0.12 | AO33: -1164 | AQ33: Øvrige opgaver m.v. | AU33: -800
A34: Halmpresning | B34: -7 | D34: 90 | E34: -630 | G34: Halmpresning | H34: -7.8 | J34: 90 | K34: -702 | M34: Halmpresning | N34: -10.6 | P34: 90 | Q34: -954 | S34: Tørring, raps | T34: -4400 | V34: 0.23 | W34: -1012 | Y34: Stenstrenglægning | Z34: -1 | AB34: 2550 | AC34: -2550 | AD34: jordbearbejdning | AE34: Øvrige opgaver m.v. | AI34: -800 | AK34: Halmpresning | AL34: -9.6 | AN34: 90 | AO34: -864 | AQ34: I alt Maskin- og arbejdsomkostninger | AU34: =SUM(AU26:AU33) -> -4534
A35: Hjemkørsel, halm | B35: -1 | D35: 244 | E35: -244 | G35: Hjemkørsel, halm | H35: -1 | J35: 259 | K35: -259 | M35: Hjemkørsel, halm | N35: -1 | P35: 311 | Q35: -311 | S35: Øvrige opgaver m.v. | W35: -800 | Y35: Lægning m. gødn. placering | Z35: -1 | AB35: 1450 | AC35: -1450 | AE35: I alt maskin- og arbejdsomkostninger | AI35: =SUM(AI27:AI34) -> -6008 | AK35: Hjemkørsel, halm | AL35: -1 | AN35: 293 | AO35: -293 | AQ35: DB efter maskin- og arbejdsomkostninger | AU35: =SUM(AU23,AU34) -> -1526.4
A36: Øvrige opgaver m.v. | E36: -800 | G36: Øvrige opgaver m.v. | K36: -800 | M36: Øvrige opgaver m.v. | Q36: -800 | S36: I alt maskin- og arbejdsomkostninger | W36: =SUM(W28:W35) -> -5402 | Y36: Sprøjtning | Z36: -15 | AB36: 165 | AC36: -2475 | AE36: DB efter maskin- og arbejdsomkostninger | AI36: =SUM(AI24,AI35) -> 4326 | AK36: Øvrige opgaver m.v. | AO36: -800
A37: I alt maskin- og arbejdsomkostninger | E37: =SUM(E27:E36) -> -5359 | G37: I alt maskin- og arbejdsomkostninger | K37: =SUM(K27:K36) -> -5895 | M37: I alt maskin- og arbejdsomkostninger | Q37: =SUM(Q28:Q36) -> -5584.2 | S37: DB efter maskin- og arbejdsomkostninger | W37: =SUM(W25,W36) -> 2571 | Y37: Optagning | Z37: -1 | AB37: 3153 | AC37: -3153 | AK37: I alt maskin- og arbejdsomkostninger | AO37: =SUM(AO27:AO36) -> -6736
A38: DB efter maskin- og arbejdsomkostninger | E38: =SUM(E24,E37) -> 2362 | G38: DB efter maskin- og arbejdsomkostninger | K38: =SUM(K24,K37) -> 2956 | M38: DB efter maskin- og arbejdsomkostninger | Q38: =SUM(Q25,Q37) -> 3846.8 | Y38: Øvrige opgaver m.v. | AC38: -800 | AK38: DB efter maskin- og arbejdsomkostninger | AO38: =SUM(AO24,AO37) -> 5738.5
Y39: I alt maskin- og arbejdsomkostninger | AC39: =SUM(AC31:AC38) -> -11478
Y40: DB efter maskin- og arbejdsomkostninger | AC40: =SUM(AC28,AC39) -> 10687
A53: Frøgræs (Rajgræs)
A54: Stivelseskartofler
A55: Kløvergræs til slæt
A56: Majs til helsæd
A57: Sukkerroer
A58: Vinterraps
A59: Vintersæd (byg)
A60: Vintersæd (hvede)
A61: Vårsæd (byg)

Sheet Fordeling af arbejdsopgaver (hidden)
A1: Aktivitet | B1: Afgrøde | C1: Aktivitet | D1: Antal | E1: Start jan. | F1: Slut jan. | G1: Start feb. | H1: Slut feb. | I1: Start mar. | J1: Slut mar. | K1: Start apr. | L1: Slut apr. | M1: Start maj | N1: Slut maj | O1: Start jun | P1: Slut jun | Q1: Start jul. | R1: Slut jul. | S1: Start Aug. | T1: Slut Aug. | U1: Start sep. | V1: Slut sep. | W1: Start okt. | X1: Slut okt. | Y1: Start nov. | Z1: Slut nov. | AA1: Start dec. | AB1: Slut dec.
B2: Frøgræs (Rajgræs) | C2: Pløjning | D2: 0
B3: Frøgræs (Rajgræs) | C3: Jorbearb. Før såning | D3: 0
B4: Frøgræs (Rajgræs) | C4: Afgrødeetabl. (såning, lægning o.l.) | D4: 1 | S4: 1
B5: Frøgræs (Rajgræs) | C5: Gødskning (handelsgødning) | D5: 2 | J5: =1/D5 -> 0.5 | V5: =1/D5 -> 0.5
B6: Frøgræs (Rajgræs) | C6: Planteværn | D6: 3 | K6: =0.5/D6 -> 0.1666666667 | L6: =0.5/D6 -> 0.1666666667 | M6: =0.5/D6 -> 0.1666666667 | N6: =0.5/D6 -> 0.1666666667 | T6: =0.5/D6 -> 0.1666666667 | U6: =0.5/D6 -> 0.1666666667
B7: Frøgræs (Rajgræs) | C7: Høst | D7: 1 | Q7: =0.5/D7 -> 0.5 | R7: =0.5/D7 -> 0.5
B8: Frøgræs (Rajgræs) | C8: Hjemkørsel | D8: 1 | Q8: =0.5/D8 -> 0.5 | R8: =0.5/D8 -> 0.5
B9: Kartofler | C9: Pløjning | D9: 1 | H9: =0.5/D9 -> 0.5 | I9: =0.5/D9 -> 0.5
B10: Kartofler | C10: Jorbearb. Før såning | D10: 1 | K10: =0.5/D10 -> 0.5 | L10: =0.5/D10 -> 0.5
B11: Kartofler | C11: Afgrødeetabl. (såning, lægning o.l.) | D11: 1 | K11: =0.5/D11 -> 0.5 | L11: =0.5/D11 -> 0.5
B12: Kartofler | C12: Gødskning (handelsgødning) | D12: 1 | K12: =0.5/D12 -> 0.5 | L12: =0.5/D12 -> 0.5
B13: Kartofler | C13: Planteværn | D13: 16 | M13: =1/D13 -> 0.0625 | N13: =1/D13 -> 0.0625 | O13: =2/D13 -> 0.125 | P13: =2/D13 -> 0.125 | Q13: =2/D13 -> 0.125 | R13: =2/D13 -> 0.125 | S13: =2/D13 -> 0.125 | T13: =2/D13 -> 0.125 | U13: =2/D13 -> 0.125
B14: Kartofler | C14: Høst og hjemkørsel | D14: 1 | J14: 0 | U14: =0.25/D14 -> 0.25 | V14: =0.25/D14 -> 0.25 | W14: =0.25/D14 -> 0.25 | X14: =0.25/D14 -> 0.25
B15: Kløvergræs til slæt | C15: Pløjning | D15: 0
B16: Kløvergræs til slæt | C16: Jorbearb. Før såning | D16: 0
B17: Kløvergræs til slæt | C17: Afgrødeetabl. (såning, lægning o.l.) | D17: 1 | S17: 1
B18: Kløvergræs til slæt | C18: Gødskning (handelsgødning) | D18: 3 | J18: =1/D18 -> 0.3333333333 | N18: =1/D18 -> 0.3333333333 | Q18: =1/D18 -> 0.3333333333
B19: Kløvergræs til slæt | C19: Planteværn | D19: 0
B20: Kløvergræs til slæt | C20: Høst og hjemkørsel | D20: 4 | N20: =1/D20 -> 0.25 | Q20: =1/D20 -> 0.25 | S20: =0.5/D20 -> 0.125 | T20: =0.5/D20 -> 0.125 | V20: =1/D20 -> 0.25
B21: Majs til helsæd | C21: Pløjning | D21: 1 | J21: =0.5/D21 -> 0.5 | K21: =0.5/D21 -> 0.5
B22: Majs til helsæd | C22: Jorbearb. Før såning | D22: 1 | K22: =1/D22 -> 1
B23: Majs til helsæd | C23: Afgrødeetabl. (såning, lægning o.l.) | D23: 1 | L23: =1/D23 -> 1
B24: Majs til helsæd | C24: Gødskning (handelsgødning) | D24: 1 | K24: =1/D24 -> 1
B25: Majs til helsæd | C25: Planteværn | D25: 2 | N25: =1/D25 -> 0.5 | O25: =1/D25 -> 0.5
B26: Majs til helsæd | C26: Høst og hjemkørsel | D26: 1 | V26: =0.5/D26 -> 0.5 | W26: =0.5/D26 -> 0.5
B27: Roer | C27: Pløjning | D27: 1 | Y27: =0.25/D27 -> 0.25 | Z27: =0.25/D27 -> 0.25 | AA27: =0.25/D27 -> 0.25 | AB27: =0.25/D27 -> 0.25
B28: Roer | C28: Jorbearb. Før såning | D28: 1 | J28: =1/D28 -> 1
B29: Roer | C29: Afgrødeetabl. (såning, lægning o.l.) | D29: 1 | K29: =1/D29 -> 1
B30: Roer | C30: Gødskning (handelsgødning) | D30: 1 | K30: =1/D30 -> 1
B31: Roer | C31: Planteværn | D31: 5 | L31: =2/D31 -> 0.4 | N31: =1/D31 -> 0.2 | O31: =1/D31 -> 0.2 | P31: =1/D31 -> 0.2
B32: Roer | C32: Høst og hjemkørsel | D32: 1 | W32: =0.2/D32 -> 0.2 | X32: =0.2/D32 -> 0.2 | Y32: =0.2/D32 -> 0.2 | Z32: =0.2/D32 -> 0.2 | AA32: =0.2/D32 -> 0.2
B33: Vinterraps | C33: Pløjning | D33: 1 | S33: =0.75/D33 -> 0.75 | T33: =0.25/D33 -> 0.25
B34: Vinterraps | C34: Jorbearb. Før såning | D34: 1 | S34: =0.75/D34 -> 0.75 | T34: =0.25/D34 -> 0.25
B35: Vinterraps | C35: Afgrødeetabl. (såning, lægning o.l.) | D35: 1 | S35: =0.75/D35 -> 0.75 | T35: =0.25/D35 -> 0.25
B36: Vinterraps | C36: Gødskning (handelsgødning) | D36: 3 | I36: =1/D36 -> 0.3333333333 | K36: =1/D36 -> 0.3333333333 | V36: =1/D36 -> 0.3333333333
B37: Vinterraps | C37: Planteværn | D37: 6 | K37: =0.5/D37 -> 0.08333333333 | L37: =0.5/D37 -> 0.08333333333 | M37: =1/D37 -> 0.1666666667 | N37: =1/D37 -> 0.1666666667 | U37: =1/D37 -> 0.1666666667 | W37: =1/D37 -> 0.1666666667 | Y37: =1/D37 -> 0.1666666667
B38: Vinterraps | C38: Høst og hjemkørsel | D38: 1 | R38: =0.5/D38 -> 0.5 | S38: =0.5/D38 -> 0.5
B39: Vintersæd (byg) | C39: Pløjning | D39: 1 | T39: =0.5/D39 -> 0.5 | U39: =0.5/D39 -> 0.5
B40: Vintersæd (byg) | C40: Jorbearb. Før såning | D40: 1 | T40: =0.5/D40 -> 0.5 | U40: =0.5/D40 -> 0.5
B41: Vintersæd (byg) | C41: Afgrødeetabl. (såning, lægning o.l.) | D41: 1 | U41: =1/D41 -> 1
B42: Vintersæd (byg) | C42: Gødskning (handelsgødning) | D42: 1 | J42: =1/D42 -> 1
B43: Vintersæd (byg) | C43: Planteværn | D43: 4 | K43: =0.5/D43 -> 0.125 | L43: =0.5/D43 -> 0.125 | M43: =1/D43 -> 0.25 | N43: =1/D43 -> 0.25 | W43: =1/D43 -> 0.25
B44: Vintersæd (byg) | C44: Høst og hjemkørsel | D44: 1 | R44: =0.5/D44 -> 0.5 | S44: =0.5/D44 -> 0.5
B45: Vintersæd (hvede) | C45: Pløjning | D45: 1 | T45: =0.25/D45 -> 0.25 | U45: =0.5/D45 -> 0.5 | V45: =0.25/D45 -> 0.25
B46: Vintersæd (hvede) | C46: Jorbearb. Før såning | D46: 1 | T46: =0.25/D46 -> 0.25 | U46: =0.5/D46 -> 0.5 | V46: =0.25/D46 -> 0.25
B47: Vintersæd (hvede) | C47: Afgrødeetabl. (såning, lægning o.l.) | D47: 1 | U47: =0.5/D47 -> 0.5 | V47: =0.5/D47 -> 0.5
B48: Vintersæd (hvede) | C48: Gødskning (handelsgødning) | D48: 2 | J48: =1/D48 -> 0.5 | L48: =1/D48 -> 0.5
B49: Vintersæd (hvede) | C49: Planteværn | D49: 5 | K49: =0.5/D49 -> 0.1 | L49: =0.5/D49 -> 0.1 | M49: =0.5/D49 -> 0.1 | N49: =0.5/D49 -> 0.1 | O49: =1/D49 -> 0.2 | P49: =1/D49 -> 0.2 | W49: =1/D49 -> 0.2
B50: Vintersæd (hvede) | C50: Høst og hjemkørsel | D50: 1 | S50: =0.5/D50 -> 0.5 | T50: =0.5/D50 -> 0.5
B51: Vårsæd (byg) | C51: Pløjning | D51: 1 | H51: =0.5/D51 -> 0.5 | I51: =0.5/D51 -> 0.5
B52: Vårsæd (byg) | C52: Jorbearb. Før såning | D52: 1 | J52: =0.5/D52 -> 0.5 | K52: =0.5/D52 -> 0.5
B53: Vårsæd (byg) | C53: Afgrødeetabl. (såning, lægning o.l.) | D53: 1 | J53: =0.5/D53 -> 0.5 | K53: =0.5/D53 -> 0.5
B54: Vårsæd (byg) | C54: Gødskning (handelsgødning) | D54: 1 | K54: =0.5/D54 -> 0.5 | L54: =0.5/D54 -> 0.5
B55: Vårsæd (byg) | C55: Planteværn | D55: 3 | K55: =0.5/D55 -> 0.1666666667 | L55: =0.5/D55 -> 0.1666666667 | M55: =0.5/D55 -> 0.1666666667 | N55: =0.5/D55 -> 0.1666666667 | O55: =1/D55 -> 0.3333333333
B56: Vårsæd (byg) | C56: Høst og hjemkørsel | D56: 1 | S56: =0.5/D56 -> 0.5 | T56: =0.5/D56 -> 0.5

Sheet Ark4 (hidden)
